Workbook

Sheet AER CF (hidden)
B1: AER CONDITIONAL FORMATTING
B4: CONDITIONAL FORMATTING MAP
F5: =INDEX(dms_CF_3.6.1, MATCH(dms_TradingName,dms_CF_TradingName))="Y" | G5: =INDEX(dms_CF_3.6.5, MATCH(dms_TradingName,dms_CF_TradingName))="Y" | H5: =INDEX(dms_CF_3.6.6, MATCH(dms_TradingName,dms_CF_TradingName))="Y" | I5: =INDEX(dms_CF_3.6.7.1, MATCH(dms_TradingName,dms_CF_TradingName))="Y" | J5: =INDEX(dms_CF_3.6.7.2, MATCH(dms_TradingName,dms_CF_TradingName))="Y" | K5: =INDEX(dms_CF_3.6.7.3, MATCH(dms_TradingName,dms_CF_TradingName))="Y" | L5: =INDEX(dms_CF_3.6.7.4, MATCH(dms_TradingName,dms_CF_TradingName))="Y" | M5: =INDEX(dms_CF_3.6.8, MATCH(dms_TradingName,dms_CF_TradingName))="Y" | N5: =INDEX(dms_CF_4.1, MATCH(dms_TradingName,dms_CF_TradingName))="Y" | O5: =INDEX(dms_CF_6.6.1, MATCH(dms_TradingName,dms_CF_TradingName))="Y" | P5: =INDEX(dms_CF_6.8, MATCH(dms_TradingName,dms_CF_TradingName))="Y" | Q5: =INDEX(dms_CF_7.12, MATCH(dms_TradingName,dms_CF_TradingName))="Y" | R5: =INDEX(dms_CF_8.1_A, MATCH(dms_TradingName,dms_CF_TradingName))="Y" | S5: =INDEX(dms_CF_8.1_B, MATCH(dms_TradingName,dms_CF_TradingName))="Y" | T5: =INDEX(dms_CF_8.1_Neg, MATCH(dms_TradingName,dms_CF_TradingName))="Y" | U5: =INDEX(dms_CF_4.4.1_Neg, MATCH(dms_TradingName,dms_CF_TradingName))="Y"
B6: dms_CF_TradingName | C6: JurisdictionList | D6: Sector | E6: Segment | F6: dms_CF_3.6.1 | G6: dms_CF_3.6.5 | H6: dms_CF_3.6.6 | I6: dms_CF_3.6.7.1 | J6: dms_CF_3.6.7.2 | K6: dms_CF_3.6.7.3 | L6: dms_CF_3.6.7.4 | M6: dms_CF_3.6.8 | N6: dms_CF_4.1 | O6: dms_CF_6.6.1 | P6: dms_CF_6.8 | Q6: dms_CF_7.12 | R6: dms_CF_8.1_A | S6: dms_CF_8.1_B | T6: dms_CF_8.1_Neg | U6: dms_CF_4.4.1 | V6: dms_CF_MAIFI_flag | W6: Spare1 | X6: Spare2
B7: ActewAGL Distribution | C7: ACT | D7: Electricity | E7: Distribution | G7: Y | I7: Y | J7: Y | K7: N | L7: Y | M7: N | N7: N | O7: N | P7: Y | Q7: Y | R7: N | S7: Y | T7: Y | U7: N | V7: N | W7: N | X7: N
B8: Ausgrid | C8: NSW | D8: Electricity | E8: Distribution | G8: Y | I8: N | J8: N | K8: N | L8: Y | M8: N | N8: N | O8: N | P8: Y | Q8: Y | R8: N | S8: Y | T8: Y | U8: N | V8: N | W8: N | X8: N
B9: AusNet (D) | C9: Vic | D9: Electricity | E9: Distribution | G9: N | I9: N | J9: N | K9: N | L9: N | M9: N | N9: Y | O9: N | P9: Y | Q9: N | R9: N | S9: N | T9: Y | U9: N | V9: N | W9: N | X9: N
B10: AusNet (T) | C10: Vic | D10: Electricity | E10: Transmission | G10: N | I10: N | J10: N | K10: N | L10: N | M10: N | N10: Y | O10: N | P10: Y | Q10: N | R10: N | S10: N | T10: Y | U10: N | V10: N | W10: N | X10: N
B11: CitiPower | C11: Vic | D11: Electricity | E11: Distribution | G11: N | I11: N | J11: N | K11: N | L11: N | M11: N | N11: Y | O11: N | P11: Y | Q11: N | R11: N | S11: N | T11: Y | U11: N | V11: N | W11: N | X11: N
B12: Directlink | C12: Qld | D12: Electricity | E12: Transmission | G12: N | I12: N | J12: N | K12: N | L12: N | M12: N | N12: Y | O12: N | P12: Y | Q12: N | R12: N | S12: Y | T12: Y | U12: N | V12: N | W12: N | X12: N
B13: ElectraNet | C13: SA | D13: Electricity | E13: Transmission | G13: N | I13: N | J13: N | K13: N | L13: N | M13: N | N13: Y | O13: N | P13: Y | Q13: N | R13: N | S13: Y | T13: Y | U13: N | V13: N | W13: N | X13: N
B14: Endeavour Energy | C14: NSW | D14: Electricity | E14: Distribution | G14: Y | I14: N | J14: N | K14: N | L14: Y | M14: N | N14: N | O14: N | P14: Y | Q14: Y | R14: N | S14: Y | T14: Y | U14: Y | V14: N | W14: N | X14: N
B15: Energex | C15: Qld | D15: Electricity | E15: Distribution | G15: Y | I15: N | J15: N | K15: N | L15: N | M15: N | N15: N | O15: N | P15: Y | Q15: Y | R15: N | S15: Y | T15: Y | U15: Y | V15: N | W15: N | X15: N
B16: Ergon Energy | C16: Qld | D16: Electricity | E16: Distribution | G16: Y | I16: N | J16: N | K16: N | L16: N | M16: N | N16: N | O16: N | P16: Y | Q16: Y | R16: N | S16: Y | T16: Y | U16: N | V16: N | W16: N | X16: N
B17: Essential Energy | C17: NSW | D17: Electricity | E17: Distribution | G17: Y | I17: N | J17: N | K17: N | L17: Y | M17: N | N17: N | O17: N | P17: Y | Q17: Y | R17: N | S17: Y | T17: Y | U17: N | V17: N | W17: N | X17: N
B18: Jemena Electricity | C18: Vic | D18: Electricity | E18: Distribution | G18: N | I18: N | J18: N | K18: N | L18: N | M18: N | N18: Y | O18: N | P18: Y | Q18: N | R18: N | S18: N | T18: Y | U18: N | V18: N | W18: N | X18: N
B19: Murraylink | C19: SA | D19: Electricity | E19: Transmission | G19: N | I19: N | J19: N | K19: N | L19: N | M19: N | N19: Y | O19: N | P19: Y | Q19: N | R19: N | S19: Y | T19: Y | U19: N | V19: N | W19: N | X19: N
B20: Power and Water | C20: NT | D20: Electricity | E20: Distribution | G20: N | I20: N | J20: Y | K20: N | L20: N | M20: Y | N20: Y | O20: Y | P20: Y | Q20: Y | R20: N | S20: Y | T20: Y | U20: N | V20: N | W20: N | X20: N
B21: Powercor Australia | C21: Vic | D21: Electricity | E21: Distribution | G21: N | I21: N | J21: N | K21: N | L21: N | M21: N | N21: Y | O21: N | P21: Y | Q21: N | R21: N | S21: N | T21: Y | U21: N | V21: N | W21: N | X21: N
B22: Powerlink | C22: Qld | D22: Electricity | E22: Transmission | G22: N | I22: N | J22: N | K22: N | L22: N | M22: N | N22: Y | O22: N | P22: Y | Q22: N | R22: N | S22: Y | T22: Y | U22: N | V22: N | W22: N | X22: N
B23: SA Power Networks | C23: SA | D23: Electricity | E23: Distribution | G23: Y | I23: N | J23: N | K23: N | L23: N | M23: N | N23: Y | O23: N | P23: Y | Q23: Y | R23: Y | S23: Y | T23: N | U23: N | V23: N | W23: N | X23: N
B24: TasNetworks (D) | C24: Tas | D24: Electricity | E24: Distribution | G24: Y | I24: N | J24: N | K24: N | L24: N | M24: N | N24: N | O24: N | P24: Y | Q24: Y | R24: N | S24: Y | T24: Y | U24: N | V24: N | W24: N | X24: N
B25: TasNetworks (T) | C25: Tas | D25: Electricity | E25: Transmission | G25: N | I25: N | J25: N | K25: N | L25: N | M25: N | N25: Y | O25: N | P25: Y | Q25: N | R25: N | S25: Y | T25: Y | U25: N | V25: N | W25: N | X25: N
B26: TransGrid | C26: NSW | D26: Electricity | E26: Transmission | G26: N | I26: N | J26: N | K26: N | L26: N | M26: N | N26: Y | O26: N | P26: Y | Q26: N | R26: N | S26: Y | T26: Y | U26: N | V26: N | W26: N | X26: N
B27: United Energy | C27: Vic | D27: Electricity | E27: Distribution | G27: N | I27: N | J27: N | K27: N | L27: N | M27: N | N27: Y | O27: N | P27: Y | Q27: N | R27: N | S27: N | T27: Y | U27: N | V27: N | W27: N | X27: N
B30: Confidential
B31: Amended
B33: Worksheet 6.2 STPIS reliability
B34: Formula | F34: Applied to:
B36: =INDEX(dms_CBD_flag,MATCH(dms_TradingName,dms_TradingName_List))="NO" | F36: $D$11,$D$17,$D$23,$D$33,$D$39,$D$45,$D$55,$D$61,$D$67,$D$77,$D$83,$D$89
B37: =INDEX(dms_Urban_flag,MATCH(dms_TradingName,dms_TradingName_List))="NO" | F37: $D$12,$D$18,$D$24,$D$56,$D$62,$D$78,$D$68,$D$84
B38: =INDEX(dms_ShortRural_flag,MATCH(dms_TradingName,dms_TradingName_List))="NO" | F38: $D$13,$D$19,$D$25,$D$57,$D$63,$D$69,$D$79,$D$85
B39: =INDEX(dms_LongRural_flag,MATCH(dms_TradingName,dms_TradingName_List))="NO" | F39: $D$14,$D$20,$D$26,$D$58,$D$64,$D$65,$D$70,$D$71,$D$80,$D$86
B40: =INDEX(dms_FeederType_5_flag,MATCH(dms_TradingName,dms_TradingName_List))="NO" | F40: $D$87,$D$81,$D$71,$D$65,$D$59,$D$49,$D$43,$D$37,$D$21,$D$15
B41: =dms_MAIFI_Flag="No" | F41: $D$55:$D$72
B44: Business & other details
B45: =(INDEX(dms_Model_Span,MATCH(dms_Model,dms_Model_List))>1)
B46: =(INDEX(dms_Model_Span,MATCH(dms_Model,dms_Model_List))=1)
B49: STYLES IN USE
C50: dms_1
C51: dms_2
C52: dms_3
C53: dms_4
C54: dms_5
C55: dms_NUM
C56: dms_NUM%
C57: dms_Row_Locked
C58: dms_Row1
C59: dms_Row2
C60: dms_T1
C61: dms_T2
C62: dms_BH
C63: dms_BY1
C64: dms_BY2
C65: dms_GH
C66: dms_GY1
C67: dms_GY2
C126: 0
C127: =IFERROR(IF(dms_Model="ARR",(MAX(0,dms_0608_LastRow-dms_0608_OffsetRows)),"not an ARR"),"0") -> 0

Sheet AER NRs (hidden)
B1: AER NAMED RANGES
B3: DROP DOWN SELECTORS USED IN WORKBOOKS
B5: COVER SHEET | C5: dms_DataQuality_List | D5: dms_Confid_status_List
C6: -- select -- | D6: -- select --
C7: Actual | D7: Public
C8: Estimate | D8: Confidential
C9: Consolidated
C12: For all files either AER or business needs to be able to specify the type of submission | D12: For PTRM & RFM templates we must provide a choice in case they change their form of control - otherwise it is drawn from the business specific lookup table above.
C13: dms_SourceList | D13: dms_FormControl_Choices
C14: -- select -- | D14: Revenue cap
C15: After appeal | D15: Revenue yield
C16: Draft decision | D16: Weighted average price cap
C17: Final decision
C18: PTRM update 1
C19: PTRM update 2
C20: PTRM update 3
C21: PTRM update 4
C22: PTRM update 5
C23: PTRM update 6
C24: PTRM update 7
C25: Regulatory proposal
C26: Reporting
C27: Revised regulatory proposal
K30: This is used to create an image to insert on 6.3 STPIS sheet - not for dropdown lists.
B31: CA & RESET RINS DNSP | C31: dms_DNSP_020301_SubstationType | D31: dms_DNSP_020301_ProjectType | E31: dms_DNSP_020301_ProjectTrigger | F31: dms_DNSP_020302_ProjectType | G31: dms_DNSP_020302_ProjectTrigger | H31: dms_STPIS_Exclusion_List | I31: dms_Reason_Interruption | J31: dms_Reason_Interruption_Detailed | K31: Reason for interruption | N31: dms_N0205_AssetType
C32: Subtransmission substation | D32: New substation establishment | E32: Demand growth | F32: New line on new route - single circuit | G32: Demand growth | H32: Weather | I32: Animal | J32: Animal impact | K32: Animal | L32: Animal impact | N32: Cast Iron
C33: Zone substation | D33: Substation upgrade - capacity | E33: Voltage issues | F33: New line on new route - dual circuit | G33: Voltage issues | H33: Equipment failure | I33: Asset failure | J33: Animal nesting/burrowing, etc and other | L33: Animal nesting/burrowing, etc and other | N33: PVC
C34: Switching station | D34: Substation upgrade - voltage | E34: Reactive power issue | F34: New line on new route - other | G34: Reactive power issue | H34: Operational error | I34: Other | J34: Other | L34: Other | N34: Polyamide
C35: Other | D35: Other | E35: Fault level issues | F35: Line rebuild over existing route - single circuit | G35: Fault level issues | H35: Vegetation | I35: Overloads | J35: LV | K35: Asset failure | L35: LV | N35: High density polyethylene (80)
E36: Safety | F36: Line rebuild over existing route - dual circuit | G36: Net market benefit | H36: Animals | I36: Planned | J36: Distribution substation | L36: Distribution substation | N36: High density polyethylene (100)
E37: Environment | F37: Reconductor - Single circuit | G37: Safety | H37: Third party impacts | I37: Network business | J37: HV | L37: HV | N37: High density polyethylene (250)
E38: Other | F38: Reconductor - Dual circuit | G38: Environment | H38: Transmission failure | I38: Third party | J38: Zone substation | L38: Zone substation | N38: High density polyethylene (575)
F39: Reconductor - Other | G39: Other | H39: Load shedding | I39: Unknown | J39: Subtransmission | L39: Subtransmission | N39: Medium density polyethylene
F40: Line upgrade - raising/retensoring | H40: Inter-distributor connection failure | I40: Vegetation | J40: insert description of 'other' | K40: Other | L40: insert description of 'other' | N40: Unprotected steel
F41: Line upgrade - voltage upgrade | H41: Other | I41: Weather | J41: Network error | K41: Overloads | N41: Protected steel
F42: Line upgrade - capacity | I42: 2 - STPIS Exclusion (3.3)(a) | J42: Switching and protection error | K42: Planned | N42: Other
F43: String spare circuit | I43: 3 - STPIS Exclusion (3.3)(a) | J43: Fire | K43: Network business | L43: Network error
F44: Other | I44: 4 - STPIS Exclusion (3.3)(a) | J44: Other | L44: Switching and protection error
I45: 5 - STPIS Exclusion (3.3)(a) | J45: Dig-in | K45: Third party | L45: Fire
I46: 6 - STPIS Exclusion (3.3)(a) | J46: Unauthorised access | L46: Other
I47: 7 - STPIS Exclusion (3.3)(a) | J47: Vehicle impact | L47: Dig-in
J48: Unknown | L48: Unauthorised access
J49: Blow-in/Fall-in - NSP responsibility | L49: Vehicle impact
J50: Grow-in - NSP responsibility | K50: Unknown | L50: Unknown
J51: Blow-in/Fall-in - Other responsible party | K51: Vegetation | L51: Blow-in/Fall-in - NSP responsibility
J52: Grow-in - Other responsible party | L52: Grow-in - NSP responsibility
L53: Blow-in/Fall-in - Other responsible party
L54: Grow-in - Other responsible party
K55: Weather
K56: 2 - STPIS Exclusion (3.3)(a)
K57: 3 - STPIS Exclusion (3.3)(a)
K58: 4 - STPIS Exclusion (3.3)(a)
K59: 5 - STPIS Exclusion (3.3)(a)
K60: 6 - STPIS Exclusion (3.3)(a)
K61: 7 - STPIS Exclusion (3.3)(a)
B64: CA & RESET RINS TNSP | C64: dms_TNSP_0203_SubstationType | D64: dms_TNSP_020301_ProjectType | E64: dms_TNSP_020301_ProjectTrigger | F64: dms_TNSP_020302_ProjectType | G64: dms_TNSP_0203_ProjectTrigger
C65: Terminal station | D65: New substation establishment | E65: Demand growth | F65: New line on new route - single circuit | G65: Demand growth
C66: Switching station | D66: Capacity upgrade | E66: Voltage issues | F66: New line on new route - dual circuit | G66: Voltage issues
C67: Transmission substation | D67: Voltage upgrade | E67: Reactive power issue | F67: New line on new route - other | G67: Reactive power issue
C68: Other | D68: Other | E68: Fault level issues | F68: Line rebuild over existing route - single circuit | G68: Fault level issues
E69: Net market benefit | F69: Line rebuild over existing route - dual circuit | G69: Net market benefit
E70: Safety | F70: Reconductor - Single circuit | G70: Safety
E71: Environment | F71: Reconductor - Dual circuit | G71: Environment
E72: Other | F72: Reconductor - Other | G72: Other
F73: Line upgrade - raising/retensoring
F74: Line upgrade - voltage upgrade
F75: Line upgrade - capacity
F76: String spare circuit
F77: Other
B81: NAMED RANGES USED IN ETL PROCESS
B83: CA & RESET RINS DNSP ONLY | C83: dms_020303_01_UOM | D83: dms_020501_01_UOM | E83: dms_020501_02_UOM | F83: dms_020501_03_UOM | G83: dms_020501_04_UOM | H83: dms_020701_01_UOM | I83: dms_020701_02_UOM | J83: dms_020701_01_Rows | K83: dms_040102_01_UOM | L83: dms_040102_04_UOM | M83: dms_E050201_UOM | N83: dms_E050302_UOM
C84: Circuit line length in km | D84: 0's | E84: 0's | F84: 0's | G84: 0's | H84: km | I84: km | J84: Route line length within zone | K84: 0's | L84: days | M84: per metre per connection | N84: metres per connection
C85: Circuit line length in km | D85: 0's | E85: 0's | F85: 0's | G85: 0's | H85: 0's | I85: 0's | J85: Number of maintenance spans | K85: 0's | L85: 0's | M85: per service per connection | N85: number per connection
C86: Circuit line length in km | D86: MVA added | E86: MVA added | F86: MVA added | G86: MVA added | H86: km | I86: km | J86: Total length of maintenance spans | K86: 0's | L86: $0s | M86: number per connection | N86: number per connection
C87: Circuit line length in km | D87: 0's | E87: 0's | F87: 0's | G87: 0's | H87: km | I87: km | J87: Length of vegetation corridors | K87: $0s | L87: 0's
C88: Number | D88: total spend $0s | E88: total spend $0s | F88: total spend $0s | G88: total spend $0s | H88: 0's | I88: 0's | J88: Average number of trees per maintenance span
C89: Number | D89: net circuit km added | E89: net circuit km added | F89: net circuit km added | G89: net circuit km added | H89: years | I89: years | J89: Average frequency of cutting cycle
C90: Number | D90: total spend $0s | E90: total spend $0s | F90: total spend $0s | G90: total spend $0s
D91: net circuit km added | E91: net circuit km added | F91: net circuit km added | G91: net circuit km added
D92: total spend $0s | E92: total spend $0s | F92: total spend $0s | G92: total spend $0s
D93: 0's | F93: $0s
D94: 0's
D95: 0's
D96: $0s
B99: CA & RESET RINS TNSP ONLY | C99: dms_020701_01_UOM
C100: km
C101: 0's
C102: km
C103: 0's
C104: km
C105: metres
C106: years
B109: CA & RESET RINS DNSP & TNSP | C109: dms_020603_01_UOM
C110: 0's
C111: 0's
C112: 0's
C113: 0's
C114: (per cent)
B117: EB & RESET RINS DNSP ONLY | C117: dms_030601_01_UOM | D117: dms_030601_02_UOM | E117: dms_030701_01_UOM | F117: dms_030702_01_UOM | G117: dms_030703_01_UOM
C118: minutes/customer | D118: minutes/customer | E118: Customer / km | F118: % | G118: km
C119: minutes/customer | D119: minutes/customer | E119: MWh/customer | F119: Number of spans
C120: interruptions/customer | D120: interruptions/customer | E120: kVA / customer | F120: Number of spans
C121: interruptions/customer | D121: interruptions/customer | F121: Number of spans
F122: Number of spans
F123: Years
F124: Years
F125: Trees
F126: Trees
F127: Defects
F128: Defects
F129: Spans
F130: km
F131: Spans
C133: WHEN INSERTING COVER SHEET INTO A TNSP FILE - APPLY THESE NAMED RANGES
B134: EB & RESET RINS TNSP ONLY | C134: dms_030601_01_UOM | E134: dms_030701_01_UOM | F134: dms_030702_01_UOM
C135: % | E135: Number of spans | F135: km
C136: number | E136: Years | F136: %
C137: number | E137: Trees | F137: km
C138: % | E138: Defects | F138: number
C139: number | E139: Number of spans
C140: number | E140: km
C141: % | E141: km
C142: number | E142: Number of spans
C143: number
C144: %
C145: number
C146: %
C147: number
C148: %
C149: number
B151: EB & RESET RINS DNSP & TNSP | C151: dms_EB_RAB_PIT
C152: Beginning of year
C153: End of year
C154: End of year
C155: End of year
C156: End of year
C157: End of year
B159: ARR DNSP ONLY | C159: dms_030605_UOM | D159: dms_03060703_UOM | E159: dms_E020202_UOM | F159: Spare
C160: number | D160: number | E160: Length of mains replaced
C161: number | D161: number | E161: Number of services replaced
C162: number | D162: number
C163: number | D163: number
C164: number | D164: (per cent)
C165: number
C166: number
C167: number
C168: number
C169: number
C170: number
C171: number
C172: (per cent)
C173: (per cent)
B175: RFM | C175: dms_Beg | D175: dms_Mid | E175: dms_End
C176: Beginning of year | D176: Mid year | E176: End of Year
B178: PTRM | C178: dms_PTRM_RAB_PIT | D178: dms_PTRM_TAB_PIT | E178: DMS_Xfactor
C179: Beginning of year | D179: Beginning of year | E179: x factors
C180: End of year | D180: End of year
C181: End of year | D181: End of year
C182: End of year | D182: End of year
C183: End of year
B186: STPIS & MIC NAMED RANGES
B188: These "row descriptions" are the column headings in the various templates but become row descriptions in the ETL process
B190: Table 6.3 sustained interruptions - row descriptions | C190: dms_060301_CustNo_Affected_Row | D190: dms_060301_Avg_Duration_Sustained_Int_Row | E190: dms_060301_Effect_unplanned_SAIDI_Row | F190: dms_060301_Effect_unplanned_SAIFI_Row
C191: Number of customers affected by the interruption | D191: Average duration of sustained customer interruption | E191: Effect on unplanned SAIDI | F191: Effect on unplanned SAIFI
B194: Table 6.1 telephone answering - row descriptions and start date | C194: dms_060101_Rows | D194: dms_060102_Rows | E194: dms_060101_StartDateTxt
C195: Total number of calls (after removing excluded events) | D195: Number of calls answered within 30 seconds (after excluding excluded events) | E195: =dms_060701_StartDateTxt -> 1-Jan-2017
B198: Table 6.8.1 - row descriptions | C198: dms_060801_01_Rows | D198: dms_060801_02_Rows | E198: dms_060801_03_Rows | F198: dms_060801_04_Rows
C199: Number of interruptions | D199: Duration of interruptions | E199: Total unplanned minutes off supply | F199: Effect on unplanned MAIFI
B202: Table 7.9.4 - market impact component - row descriptions | C202: dms_070904_01_Rows | D202: without exclusions | E202: with exclusions
B205: These headings (Lists) are determined from the INDEX/MATCH function on the NSP selected on the Business & other details sheet
B207: Table 6.7.1 - daily performance data - unplanned - MAIFI -- row descriptions and header named range values | C207: dms_060701_Feeder_Header_Lvl4 | D207: =INDEX(dms_FeederName_1,MATCH(dms_TradingName,dms_TradingName_List)) -> CBD | E207: =INDEX(dms_FeederName_1,MATCH(dms_TradingName,dms_TradingName_List)) -> CBD | F207: =INDEX(dms_FeederName_2,MATCH(dms_TradingName,dms_TradingName_List)) -> Urban | G207: =INDEX(dms_FeederName_2,MATCH(dms_TradingName,dms_TradingName_List)) -> Urban | H207: =INDEX(dms_FeederName_3,MATCH(dms_TradingName,dms_TradingName_List)) -> Short rural | I207: =INDEX(dms_FeederName_3,MATCH(dms_TradingName,dms_TradingName_List)) -> Short rural | J207: =INDEX(dms_FeederName_4,MATCH(dms_TradingName,dms_TradingName_List)) -> Long rural | K207: =INDEX(dms_FeederName_4,MATCH(dms_TradingName,dms_TradingName_List)) -> Long rural | L207: =IF((INDEX(dms_FeederName_5,MATCH(dms_TradingName,dms_TradingName_List))=0),"Network",(INDEX(dms_FeederName_5,MATCH(dms_TradingName,dms_TradingName_List)))) -> Network | M207: =IF((INDEX(dms_FeederName_5,MATCH(dms_TradingName,dms_TradingName_List))=0),"Network",(INDEX(dms_FeederName_5,MATCH(dms_TradingName,dms_TradingName_List)))) -> Network | N207: Network | O207: Network
C209: dms_060701_Rows | D209: All events | E209: After removing excluded events | F209: All events | G209: After removing excluded events | H209: All events | I209: After removing excluded events | J209: All events | K209: After removing excluded events | L209: All events | M209: After removing excluded events | N209: All events | O209: After removing excluded events
D210: the number of column headings changes from 10 to 12 depending on the number of feeder categories for the NSP
C212: dms_0603_FeederList | D212: =INDEX(dms_FeederName_1,MATCH(dms_TradingName,dms_TradingName_List)) -> CBD | E212: =INDEX(dms_FeederName_2,MATCH(dms_TradingName,dms_TradingName_List)) -> Urban | F212: =INDEX(dms_FeederName_3,MATCH(dms_TradingName,dms_TradingName_List)) -> Short rural | G212: =INDEX(dms_FeederName_4,MATCH(dms_TradingName,dms_TradingName_List)) -> Long rural
B215: Use these to add to specific worksheets in existing files | C215: Use these to add to specific worksheets in existing files
B218: ARRs 6.7 STPIS daily performance | C218: dms_060101_Values | D218: dms_060102_Values | E218: dms_060701_Values
C219: dms_LeapYear
B222: ARR's 6.8 STPIS exclusions | C222: dms_060801_Event_Date | D222: dms_060801_OutageID | E222: dms_060801_FeederID | F222: dms_060801_FeederClass | G222: dms_060801_CauseID | H222: dms_060801_01_Values | I222: dms_060801_02_Values | J222: dms_060801_03_Values | K222: dms_060801_Excl_Cat | L222: dms_060801_04_Values
C223: dms_060801_StartCell
B226: CA 6.3 sustained interruptions | C226: dms_060301_Event_Date | D226: dms_060301_Event_Time | E226: dms_060301_AssetID | F226: dms_060301_FeederClass | G226: dms_060301_Reason | H226: dms_060301_DetailedReason | I226: dms_060301_CustNo_Affected_Values | J226: dms_060301_Avg_Duration_Sustained_Int_Values | K226: dms_060301_Effect_unplanned_SAIDI_Values | L226: dms_060301_Effect_unplanned_SAIFI_Values | M226: dms_060301_MED

Sheet AER lookups (hidden)
B1: AER LOOKUP TABLES
B3: Data in these columns used for data validation and database purposes.
B4: Date last modified: | C4: 2017-01-16 | D4: added (Albury and Victora) for AGN
C5: 2016-10-17 | D5: updated TransGrid's correct legal name, corrected TasNetworks (T) to June financial year
C6: 2017-02-01 | D6: inserted Power and Water, added NRs (dms_FeederCat_1 and dms_FeederCat_2)
C7: 2017-03-03 | D7: inserted AEMO as a business
C8: 2018-03-28 | D8: major changes to accommodate STPIS
C9: Template Version | D9: 5
Z14: Feeder Types | AD14: TasNetworks (D) | AE14: MAIFI flag | AF14: Feeder Names
B16: dms_TradingName_List | C16: dms_TradingNameFull_List | D16: dms_ABN_List | E16: dms_JurisdictionList | F16: dms_Sector_List | G16: dms_Segment_List | H16: dms_FormControl_List | I16: dms_RPT_List | J16: dms_RPTMonth_List | K16: dms_CRCPlength_List | L16: dms_FRCPlength_List | M16: dms_PRCPlength_List | N16: dms_663_List | O16: dms_DeterminationRef_List | P16: dms_Addr1_List | Q16: dms_Addr2_List | R16: dms_Suburb_List | S16: dms_State_List | T16: dms_PostCode_List | U16: dms_PAddr1_List | V16: dms_PAddr2_List | W16: dms_PSuburb_List | X16: dms_PState_List | Y16: dms_PPostCode_List | Z16: dms_CBD_flag | AA16: dms_Urban_flag | AB16: dms_ShortRural_flag | AC16: dms_LongRural_flag | AD16: dms_FeederType_5_flag | AE16: dms_MAIFI_flag_List | AF16: dms_FeederName_1 | AG16: dms_FeederName_2 | AH16: dms_FeederName_3 | AI16: dms_FeederName_4 | AJ16: dms_FeederName_5 | AK16: dms_Public_Lighting_List | AL16: Name
B17: AGN (Albury and Victoria) | C17: Australian Gas Networks Limited (reporting data for Albury and Victoria) | D17: 19078551685 | E17: Vic | F17: Gas | G17: Distribution | H17: Weighted average price cap | I17: Calendar | J17: December | K17: 5 | L17: 5 | M17: 5 | N17: x | P17: Level 6 | Q17: 400 King William Street | R17: ADELAIDE | S17: SA | T17: 5000 | U17: PO Box 6468 | V17: Halifax Street | W17: ADELAIDE | X17: SA | Y17: 5000 | Z17: NO | AA17: NO | AB17: NO | AC17: NO | AD17: NO | AE17: - | AF17: CBD | AG17: Urban | AH17: Short rural | AI17: Long rural | AK17: NO | AL17: AGN (Albury)
B18: AGN (Albury) | C18: Australian Gas Networks Limited (reporting data for Albury) | D18: 19078551685 | E18: Vic | F18: Gas | G18: Distribution | H18: Weighted average price cap | I18: Calendar | J18: December | K18: 5 | L18: 5 | M18: 5 | N18: x | P18: Level 6 | Q18: 400 King William Street | R18: ADELAIDE | S18: SA | T18: 5000 | U18: PO Box 6468 | V18: Halifax Street | W18: ADELAIDE | X18: SA | Y18: 5000 | Z18: NO | AA18: NO | AB18: NO | AC18: NO | AD18: NO | AE18: - | AF18: CBD | AG18: Urban | AH18: Short rural | AI18: Long rural | AK18: NO
B19: AGN (SA) | C19: Australian Gas Networks Limited (reporting data for SA) | D19: 19078551685 | E19: SA | F19: Gas | G19: Distribution | H19: Weighted average price cap | I19: Financial | J19: June | K19: 5 | L19: 5 | M19: 5 | N19: 5 | O19: distribution determination | P19: Level 6 | Q19: 400 King William Street | R19: ADELAIDE | S19: SA | T19: 5000 | U19: PO Box 6468 | V19: Halifax Street | W19: ADELAIDE | X19: SA | Y19: 5000 | Z19: NO | AA19: NO | AB19: NO | AC19: NO | AD19: NO | AE19: - | AF19: CBD | AG19: Urban | AH19: Short rural | AI19: Long rural | AK19: NO | AL19: AGN (SA)
B20: AGN (Victoria) | C20: Australian Gas Networks Limited (reporting data for Victoria) | D20: 19078551685 | E20: Vic | F20: Gas | G20: Distribution | H20: Weighted average price cap | I20: Calendar | J20: December | K20: 5 | L20: 5 | M20: 5 | N20: x | P20: Level 6 | Q20: 400 King William Street | R20: ADELAIDE | S20: SA | T20: 5000 | U20: PO Box 6468 | V20: Halifax Street | W20: ADELAIDE | X20: SA | Y20: 5000 | Z20: NO | AA20: NO | AB20: NO | AC20: NO | AD20: NO | AE20: - | AF20: CBD | AG20: Urban | AH20: Short rural | AI20: Long rural | AK20: NO | AL20: AGN (Victoria)
B21: AusNet (Gas) | C21: AusNet Gas Services | D21: 086015036 | E21: Vic | F21: Gas | G21: Distribution | H21: Weighted average price cap | I21: Calendar | J21: December | K21: 5 | L21: 5 | M21: 5 | N21: X | P21: Level 31 | Q21: 2 Southbank Boulevard | R21: SOUTHBANK | S21: Vic | T21: 3008 | X21: Vic | Y21: - | Z21: NO | AA21: NO | AB21: NO | AC21: NO | AD21: NO | AE21: - | AF21: CBD | AG21: Urban | AH21: Short rural | AI21: Long rural | AK21: NO | AL21: AusNet (Gas)
B22: Australian Distribution Co. (Gas) | C22: Australian Gas Distribution Co. | D22: 11222333444 | E22: Vic | F22: Gas | G22: Distribution | H22: Weighted average price cap | I22: Calendar | J22: December | K22: 5 | L22: 5 | M22: 5 | P22: 123 Straight Street | R22: MELBOURNE | S22: Vic | T22: 3000 | U22: PO Box 123 | W22: MELBOURNE | X22: Vic | Y22: 3000 | Z22: NO | AA22: NO | AB22: NO | AC22: NO | AD22: NO | AE22: - | AF22: CBD | AG22: Urban | AH22: Short rural | AI22: Long rural | AK22: NO | AL22: Australian Distribution Co. (Vic)
B23: Central Ranges Pipeline (D) | C23: Central Ranges Pipeline Pty Ltd | D23: 108218355 | E23: NSW | F23: Gas | G23: Distribution | H23: Weighted average price cap | I23: Financial | J23: June | K23: 15 | L23: 5 | M23: 5 | N23: 5 | O23: distribution determination | P23: Level 19 | Q23: 580 George Street | R23: SYDNEY | S23: NSW | T23: 2000 | U23: PO Box R41 | W23: ROYAL EXCHANGE | X23: NSW | Y23: 1225 | Z23: NO | AA23: NO | AB23: NO | AC23: NO | AD23: NO | AE23: - | AF23: CBD | AG23: Urban | AH23: Short rural | AI23: Long rural | AK23: NO
B24: Evoenergy Gas | C24: Evoenergy Gas | D24: 76670568688 | E24: ACT | F24: Gas | G24: Distribution | H24: Weighted average price cap | I24: Financial | J24: June | K24: 5 | L24: 5 | M24: 5 | N24: x | P24: 40 Bunda Street | R24: CANBERRA | S24: ACT | T24: 2600 | U24: GPO BOX 366 | W24: CANBERRA | X24: ACT | Y24: 2601 | Z24: NO | AA24: NO | AB24: NO | AC24: NO | AD24: NO | AE24: - | AF24: CBD | AG24: Urban | AH24: Short rural | AI24: Long rural | AK24: NO | AL24: ActewAGL Gas
B25: JGN | C25: Jemena Gas Networks (NSW) Ltd | D25: 003 004 322 | E25: NSW | F25: Gas | G25: Distribution | H25: Weighted average price cap | I25: Financial | J25: June | K25: 5 | L25: 5 | M25: 5 | P25: please provide street address | U25: please provide postal address | Z25: NO | AA25: NO | AB25: NO | AC25: NO | AD25: NO | AE25: - | AF25: CBD | AG25: Urban | AH25: Short rural | AI25: Long rural | AK25: NO | AL25: JGN
B26: Multinet Gas | C26: Multinet Gas (DB No.1) Pty Ltd (ACN 086 026 986), Multinet Gas (DB No.2) Pty Ltd (ACN 086 230 122) | D26: 086026986 | E26: Vic | F26: Gas | G26: Distribution | H26: Weighted average price cap | I26: Calendar | J26: December | K26: 5 | L26: 5 | M26: 5 | N26: x | P26: 43-45 Centreway | R26: MT WAVERLEY | S26: Vic | T26: 3149 | Z26: NO | AA26: NO | AB26: NO | AC26: NO | AD26: NO | AE26: - | AF26: CBD | AG26: Urban | AH26: Short rural | AI26: Long rural | AK26: NO | AL26: Multinet Gas
B31: The Reg Year Ending (dms_RYE) must be set to the last year of the regulatory period. For forecast data is is usually (FRCP_y5) for actual it is a single year (CRY). For historical actual data the RYE will need to be set manually in the business details sheet by setting the dms_Multiyear_flag to 1 and putting the correct value in 'dms_Specified_FinalYear. See cells C67:C68
B32: dms_Model_List | C32: dms_Model_Name_Format1 | D32: dms_Worksheet_List | E32: dms_Model_Span_List
B33: ARR | C33: Annual Reporting | D33: =IF(dms_MultiYear_ResponseFlag="yes","HISTORICAL ANNUAL REPORTING","ANNUAL REPORTING") -> HISTORICAL ANNUAL REPORTING | E33: 1
B34: CA | C34: Category Analysis | D34: =IF(dms_MultiYear_ResponseFlag="yes","NEW HISTORICAL CATEGORY ANALYSIS","CATEGORY ANALYSIS") -> NEW HISTORICAL CATEGORY ANALYSIS | E34: 1
B35: CESS | C35: Capitlal Expenditure | D35: CAPITLAL EXPENDITURE SHARING SCHEMING | E35: 5
B36: CPI | C36: CPI | D36: CPI | E36: 5
B37: EB | C37: Economic Benchmarking | D37: =IF(dms_MultiYear_ResponseFlag="yes","NEW HISTORICAL ECONOMIC BENCHMARKING","ECONOMIC BENCHMARKING") -> NEW HISTORICAL ECONOMIC BENCHMARKING | E37: 1
B38: Pricing | C38: Pricing Proposal | D38: PRICING PROPOSAL | E38: 5
B39: PTRM | C39: Post Tax Revenue Model | D39: POST TAX REVENUE MODEL | E39: 5
B40: Reset | C40: Regulatory Reporting (Reset) | D40: REGULATORY REPORTING STATEMENT | E40: 5
B41: RFM | C41: Roll Forward Model | D41: ROLL FORWARD MODEL | E41: 5
B42: WACC | C42: Weighted Average Cost of Capital | D42: WEIGHTED AVERAGE COST OF CAPITAL | E42: 1
B46: Financial | C46: Calendar | E46: PREVIOUS | G46: CURRENT | I46: FORTHCOMING
B47: 1987-88 | C47: 1988 | D47: PRCP_y1 | E47: =INDEX(INDIRECT(dms_RPT),dms_PRCP_start_row) -> 2011 | F47: CRCP_y1 | G47: =INDEX(INDIRECT(dms_RPT),dms_CRCP_start_row) -> 2016 | H47: =FRCP_y1 -> 2021 | I47: =INDEX(INDIRECT(dms_RPT),dms_FRCP_start_row) -> 2021
B48: 1988-89 | C48: 1989 | D48: PRCP_y2 | E48: =INDEX(INDIRECT(dms_RPT),dms_PRCP_start_row+1) -> 2012 | F48: CRCP_y2 | G48: =INDEX(INDIRECT(dms_RPT),dms_CRCP_start_row+1) -> 2017 | H48: FRCP_y2 | I48: =INDEX(INDIRECT(dms_RPT),dms_FRCP_start_row+1) -> 2022
B49: 1989-90 | C49: 1990 | D49: PRCP_y3 | E49: =INDEX(INDIRECT(dms_RPT),dms_PRCP_start_row+2) -> 2013 | F49: CRCP_y3 | G49: =INDEX(INDIRECT(dms_RPT),dms_CRCP_start_row+2) -> 2018 | H49: FRCP_y3 | I49: =INDEX(INDIRECT(dms_RPT),dms_FRCP_start_row+2) -> 2023
B50: 1990-91 | C50: 1991 | D50: PRCP_y4 | E50: =INDEX(INDIRECT(dms_RPT),dms_PRCP_start_row+3) -> 2014 | F50: CRCP_y4 | G50: =INDEX(INDIRECT(dms_RPT),dms_CRCP_start_row+3) -> 2019 | H50: FRCP_y4 | I50: =INDEX(INDIRECT(dms_RPT),dms_FRCP_start_row+3) -> 2024
B51: 1991-92 | C51: 1992 | D51: PRCP_y5 | E51: =INDEX(INDIRECT(dms_RPT),dms_PRCP_start_row+4) -> 2015 | F51: CRCP_y5 | G51: =INDEX(INDIRECT(dms_RPT),dms_CRCP_start_row+4) -> 2020 | H51: FRCP_y5 | I51: =INDEX(INDIRECT(dms_RPT),dms_FRCP_start_row+4) -> 2025
B52: 1992-93 | C52: 1993 | D52: PRCP_y6 | E52: =INDEX(INDIRECT(dms_RPT),dms_PRCP_start_row+5) -> 2016 | F52: CRCP_y6 | G52: =INDEX(INDIRECT(dms_RPT),dms_CRCP_start_row+5) -> 2021 | H52: FRCP_y6 | I52: =INDEX(INDIRECT(dms_RPT),dms_FRCP_start_row+5) -> 2026
B53: 1993-94 | C53: 1994 | D53: PRCP_y7 | E53: =INDEX(INDIRECT(dms_RPT),dms_PRCP_start_row+6) -> 2017 | F53: CRCP_y7 | G53: =INDEX(INDIRECT(dms_RPT),dms_CRCP_start_row+6) -> 2022 | H53: FRCP_y7 | I53: =INDEX(INDIRECT(dms_RPT),dms_FRCP_start_row+6) -> 2027
B54: 1994-95 | C54: 1995 | D54: PRCP_y8 | E54: =INDEX(INDIRECT(dms_RPT),dms_PRCP_start_row+7) -> 2018 | F54: CRCP_y8 | G54: =INDEX(INDIRECT(dms_RPT),dms_CRCP_start_row+7) -> 2023 | H54: FRCP_y8 | I54: =INDEX(INDIRECT(dms_RPT),dms_FRCP_start_row+7) -> 2028
B55: 1995-96 | C55: 1996 | D55: PRCP_y9 | E55: =INDEX(INDIRECT(dms_RPT),dms_PRCP_start_row+8) -> 2019 | F55: CRCP_y9 | G55: =INDEX(INDIRECT(dms_RPT),dms_CRCP_start_row+8) -> 2024 | H55: FRCP_y9 | I55: =INDEX(INDIRECT(dms_RPT),dms_FRCP_start_row+8) -> 2029
B56: 1996-97 | C56: 1997 | D56: PRCP_y10 | E56: =INDEX(INDIRECT(dms_RPT),dms_PRCP_start_row+9) -> 2020 | F56: CRCP_y10 | G56: =INDEX(INDIRECT(dms_RPT),dms_CRCP_start_row+9) -> 2025 | H56: FRCP_y10 | I56: =INDEX(INDIRECT(dms_RPT),dms_FRCP_start_row+9) -> 2030
B57: 1997-98 | C57: 1998 | D57: PRCP_y11 | E57: =INDEX(INDIRECT(dms_RPT),dms_PRCP_start_row+10) -> 2021 | F57: CRCP_y11 | G57: =INDEX(INDIRECT(dms_RPT),dms_CRCP_start_row+10) -> 2026 | H57: FRCP_y11 | I57: =INDEX(INDIRECT(dms_RPT),dms_FRCP_start_row+10) -> 2031
B58: 1998-99 | C58: 1999 | D58: PRCP_y12 | E58: =INDEX(INDIRECT(dms_RPT),dms_PRCP_start_row+11) -> 2022 | F58: CRCP_y12 | G58: =INDEX(INDIRECT(dms_RPT),dms_CRCP_start_row+11) -> 2027 | H58: FRCP_y12 | I58: =INDEX(INDIRECT(dms_RPT),dms_FRCP_start_row+11) -> 2032
B59: 1999-00 | C59: 2000 | D59: PRCP_y13 | E59: =INDEX(INDIRECT(dms_RPT),dms_PRCP_start_row+12) -> 2023 | F59: CRCP_y13 | G59: =INDEX(INDIRECT(dms_RPT),dms_CRCP_start_row+12) -> 2028 | H59: FRCP_y13 | I59: =INDEX(INDIRECT(dms_RPT),dms_FRCP_start_row+12) -> 2033
B60: 2000-01 | C60: 2001 | D60: PRCP_y14 | E60: =INDEX(INDIRECT(dms_RPT),dms_PRCP_start_row+13) -> 2024 | F60: CRCP_y14 | G60: =INDEX(INDIRECT(dms_RPT),dms_CRCP_start_row+13) -> 2029 | H60: FRCP_y14 | I60: =INDEX(INDIRECT(dms_RPT),dms_FRCP_start_row+13) -> 2034
B61: 2001-02 | C61: 2002 | D61: PRCP_y15 | E61: =INDEX(INDIRECT(dms_RPT),dms_PRCP_start_row+14) -> 2025 | F61: CRCP_y15 | G61: =INDEX(INDIRECT(dms_RPT),dms_CRCP_start_row+14) -> 2030 | H61: FRCP_y15 | I61: =INDEX(INDIRECT(dms_RPT),dms_FRCP_start_row+14) -> 2035
B62: 2002-03 | C62: 2003 | D62: PRCP_y16 | E62: =INDEX(INDIRECT(dms_RPT),dms_PRCP_start_row+15) -> 2026 | F62: CRCP_y16 | G62: =INDEX(INDIRECT(dms_RPT),dms_CRCP_start_row+15) -> 2031 | H62: FRCP_y16 | I62: =INDEX(INDIRECT(dms_RPT),dms_FRCP_start_row+15) -> 2036
B63: 2003-04 | C63: 2004
B64: 2004-05 | C64: 2005
B65: 2005-06 | C65: 2006 | E65: CRY - FRY
B66: 2006-07 | C66: 2007 | D66: dms_y1 | E66: =IFERROR(INDEX(INDIRECT(dms_RPT),dms_CRY_start_row),0) -> 2017
B67: 2007-08 | C67: 2008 | D67: dms_y2 | E67: =IFERROR(INDEX(INDIRECT(dms_RPT),dms_CRY_start_row+1),0) -> 2018
B68: 2008-09 | C68: 2009 | D68: dms_y3 | E68: =IFERROR(INDEX(INDIRECT(dms_RPT),dms_CRY_start_row+2),0) -> 2019
B69: 2009-10 | C69: 2010 | D69: dms_y4 | E69: =IFERROR(INDEX(INDIRECT(dms_RPT),dms_CRY_start_row+3),0) -> 2020
B70: 2010-11 | C70: 2011 | D70: dms_y5 | E70: =IFERROR(INDEX(INDIRECT(dms_RPT),dms_CRY_start_row+4),0) -> 2021
B71: 2011-12 | C71: 2012 | D71: dms_y6 | E71: =IFERROR(INDEX(INDIRECT(dms_RPT),dms_CRY_start_row+5),0) -> 2022
B72: 2012-13 | C72: 2013 | D72: dms_y7 | E72: =IFERROR(INDEX(INDIRECT(dms_RPT),dms_CRY_start_row+6),0) -> 2023
B73: 2013-14 | C73: 2014 | D73: dms_y8 | E73: =IFERROR(INDEX(INDIRECT(dms_RPT),dms_CRY_start_row+7),0) -> 2024
B74: 2014-15 | C74: 2015 | D74: dms_y9 | E74: =IFERROR(INDEX(INDIRECT(dms_RPT),dms_CRY_start_row+8),0) -> 2025
B75: 2015-16 | C75: 2016 | D75: dms_y10 | E75: =IFERROR(INDEX(INDIRECT(dms_RPT),dms_CRY_start_row+9),0) -> 2026
B76: 2016-17 | C76: 2017 | D76: dms_y11 | E76: =IFERROR(INDEX(INDIRECT(dms_RPT),dms_CRY_start_row+10),0) -> 2027
B77: 2017-18 | C77: 2018 | D77: dms_y12 | E77: =IFERROR(INDEX(INDIRECT(dms_RPT),dms_CRY_start_row+11),0) -> 2028
B78: 2018-19 | C78: 2019 | D78: dms_y13 | E78: =IFERROR(INDEX(INDIRECT(dms_RPT),dms_CRY_start_row+12),0) -> 2029
B79: 2019-20 | C79: 2020 | D79: dms_y14 | E79: =IFERROR(INDEX(INDIRECT(dms_RPT),dms_CRY_start_row+13),0) -> 2030
B80: 2020-21 | C80: 2021 | D80: dms_y15 | E80: =IFERROR(INDEX(INDIRECT(dms_RPT),dms_CRY_start_row+14),0) -> 2031
B81: 2021-22 | C81: 2022 | D81: dms_y16 | E81: =IFERROR(INDEX(INDIRECT(dms_RPT),dms_CRY_start_row+15),0) -> 2032
B82: 2022-23 | C82: 2023
B83: 2023-24 | C83: 2024
B84: 2024-25 | C84: 2025
B85: 2025-26 | C85: 2026
B86: 2026-27 | C86: 2027
B87: 2027-28 | C87: 2028
B88: 2028-29 | C88: 2029
B89: 2029-30 | C89: 2030
B90: 2030-31 | C90: 2031
B91: 2031-32 | C91: 2032
B92: 2032-33 | C92: 2033
B93: 2033-34 | C93: 2034
B94: 2034-35 | C94: 2035
B95: 2035-36 | C95: 2036
B96: 2036-37 | C96: 2037

Sheet AER ETL (hidden)
B1: AER ETL INFORMATION
B3: USES NAMED RANGES FLAG | C3: yes | D3: dms_Defined_Names_Used
B5: IF THIS IS AN ABC RIN - make sure the the named range CRY is applied and the named range dms_dollar_nom_UOM is applied
B6: IF THIS IS A RESET RIN - make sure the named ranges CRY and dms_dollar_nom_UOM are NOT present in the workbook
B7: FOR ABC RINS THAT SPAN MULTIPLE YEARS - make sure MultiYear Flag is set and final year entered as required
B9: Full trading name | C9: =INDEX(dms_TradingNameFull_List,MATCH(dms_TradingName,dms_TradingName_List)) -> Australian Gas Networks Limited (reporting data for Albury and Victoria) | E9: dms_TradingNameFull
B10: Trading name | C10: =dms_TradingName -> AGN (Albury and Victoria)
A11: Selected here | B11: Model / RIN | C11: ARR | D11: dms_Model
A12: Read from Business & other details | B12: Source | C12: Reporting | D12: dms_Source
B13: Data quality | C13: =dms_Selected_Quality -> Actual | D13: dms_DQ_1
B14: Data status | C14: =dms_Selected_Status -> Public | D14: dms_DQ_2
B15: Amendment reason | C15: =dms_Amendment_Text -> 0 | F15: dms_AmendmentReason
B16: Submission date | C16: =dms_Typed_Submission_Date -> 2022-07-01 | D16: dms_SubmissionDate
A18: Redundant | B18: EBSS - First application of scheme in forthcoming period? | C18: No
A19: Pre-populated from lookup table | B19: Data ingestion data quality | C19: =dms_Selected_Quality -> Actual | D19: dms_DataQuality | E19: =IF(dms_DQ_2="Confidential","Consolidated","Public")
B20: Sector | C20: =INDEX(dms_Sector_List,MATCH(dms_TradingName,dms_TradingName_List)) -> Gas | D20: dms_Sector | E20: =INDEX(dms_Sector_List,MATCH(dms_TradingName,dms_TradingName_List))
B21: Segment | C21: =INDEX(dms_Segment_List,MATCH(dms_TradingName,dms_TradingName_List)) -> Distribution | D21: dms_Segment | E21: =INDEX(dms_Segment_List,MATCH(dms_TradingName,dms_TradingName_List))
B22: Regulatory Year Ending | C22: =dms_RYE_result -> 2021 | D22: dms_RYE | E22: =IF(dms_MultiYear_Flag=1,LEFT(dms_Specified_FinalYear,2)&RIGHT(dms_Specified_FinalYear,2),INDEX(dms_RYE_Formula_Result,MATCH(dms_Model,dms_Model_List)))
B23: Reporting Period Type | C23: =INDEX(dms_RPT_List,MATCH(dms_TradingName,dms_TradingName_List)) -> Calendar | D23: dms_RPT | E23: =INDEX(dms_RPT_List,MATCH(dms_TradingName,dms_TradingName_List))
B24: EB/CA Unit of Measure for Monetary Values | C24: $0s | D24: dms_dollar_nom_UOM | E24: If the cover sheet is attached to an ABC RIN apply the NAMED RANGE to the cell
B25: Security Classification | C25: Public | D25: dms_Classification | E25: Always Public
B26: Jurisdiction | C26: =INDEX(dms_JurisdictionList,MATCH(dms_TradingName,dms_TradingName_List)) -> Vic | D26: dms_Jurisdiction | E26: =INDEX(dms_JurisdictionList,MATCH(dms_TradingName,dms_TradingName_List))
A27: Relevant for PTRM, RFMs and Reset RINS | B27: $ REAL REFERENCES
B28: Does the named range CRY exist in this file? | C28: =IFERROR("Yes "&CRY,"NO") -> Yes 2017
B29: CRY-1 (last full calendar year before CRY) | C29: =IFERROR(IF(dms_RPT="calendar",CRY-1,LEFT(CRY,4)),"CRY not present") -> 2016 | D29: dms_Cal_Year_B4_CRY | E29: '=IF(dms_RPT="financial",VALUE(LEFT(dms_SingleYear_FinalYear_Result,4)),VALUE(LEFT(dms_SingleYear_FinalYear_Result,4)-1))
B30: Dollar $ real month | C30: =INDEX(dms_RPTMonth_List,MATCH(dms_TradingName,dms_TradingName_List)) -> December | D30: dms_RPTMonth | E30: =INDEX(dms_RPTMonth_List,MATCH(dms_TradingName,dms_TradingName_List))
B31: Dollar $ real (the last month before the FRCP_y1) | C31: =IF(dms_SingleYearModel="yes",CONCATENATE(dms_RPTMonth)&" "&VALUE((LEFT(CRY,2))&RIGHT(CRY,2)),CONCATENATE(dms_RPTMonth)&" "&dms_DollarReal_year) -> December 2017 | D31: dms_DollarReal | E31: =IF(SUM(dms_SingleYear_Model)>0,CONCATENATE(dms_RPTMonth)&" "&VALUE((LEFT(CRY,2))&RIGHT(CRY,2)),CONCATENATE(dms_RPTMonth)&" "&VALUE((LEFT(dms_RYE,2)&RIGHT(dms_RYE,2))))
B32: Dollar $ real previous year (PRCP_y5) | C32: =IF(dms_SingleYearModel="yes",CONCATENATE(dms_RPTMonth)&" "&VALUE((LEFT(CRY,2))&RIGHT(CRY,2)),CONCATENATE(dms_RPTMonth)&" "&dms_Previous_DollarReal_year) -> December 2017 | D32: dms_DollarReal_Prev | E32: =IF(SUM(dms_SingleYear_Model)>0,CONCATENATE(dms_RPTMonth)&" "&VALUE(((LEFT(CRY,2))&RIGHT(CRY,2))-1),CONCATENATE(dms_RPTMonth)&" "&VALUE(((LEFT(dms_CRCP_FirstYear_Result,2)&RIGHT(dms_CRCP_FirstYear_Result,2))))-1)
B33: PTRM/ RFMs
B34: Form of control | C34: =INDEX(dms_FormControl_List,MATCH(dms_TradingName,dms_TradingName_List)) -> Weighted average price cap | D34: dms_FormControl | E34: =INDEX(dms_FormControl_List,MATCH(dms_TradingName,dms_TradingName_List))
A35: All potential values for Regulatory Years or RYEs as calculated | B35: This block works out the various RYE's for ALL RIN types and MODELS
B36: dms_start_year | C36: =FRCP_y1 -> 2021 | D36: FRCP_y1 from cover sheet
B37: dms_CRY_start_year | C37: =IFERROR(CRY,CRCP_y4) -> 2017
B38: dms_CRY_start_row | C38: =IFERROR(MATCH(dms_CRY_start_year,INDIRECT(dms_RPT),0),0) -> 30
B39: dms_FRCP_start_row | C39: =MATCH(dms_start_year,INDIRECT(dms_RPT),0) -> 34 | D39: Uses FRCP_y1 as a start reference
B40: dms_CRCP_start_row | C40: =dms_FRCP_start_row-dms_CRCPlength_Num -> 29 | D40: Uses the value in dms_CRCPlength_Num
B41: dms_PRCP_start_row | C41: =dms_FRCP_start_row-dms_CRCPlength_Num-dms_PRCPlength_Num -> 24 | D41: Uses the value in dms_CRCPlength_Num and dms_PRCPlength_Num
B42: dms_RYE_start_row | C42: =dms_FRCP_start_row+(dms_FRCPlength_Num-1) -> 38 | D42: Uses the value in dms_FRCPlength_Num-1
B43: FRCP_start_year | C43: =INDEX(INDIRECT(dms_RPT),dms_FRCP_start_row) -> 2021 | D43: Converts the FRCP start row to display the year
B44: CRCP_start_year | C44: =INDEX(INDIRECT(dms_RPT),dms_CRCP_start_row) -> 2016 | D44: Converts the CRCP start row to display the year
B45: PRCP_start_year | C45: =INDEX(INDIRECT(dms_RPT),dms_PRCP_start_row) -> 2011 | D45: Converts the PRCP start row to display the year
B46: FRCP_final_year | C46: =INDEX(INDIRECT(dms_RPT),dms_FRCP_start_row+dms_FRCPlength_Num-1) -> 2025 | D46: Finds the FRCP final year
B47: CRCP_final_year | C47: =INDEX(INDIRECT(dms_RPT),dms_CRCP_start_row+dms_CRCPlength_Num-1) -> 2020 | D47: Finds the CRCP final year
B48: PRCP_final_year | C48: =INDEX(INDIRECT(dms_RPT),dms_PRCP_start_row+dms_FRCPlength_Num-1) -> 2015 | D48: Finds the PRCP final year
B49: dms_Reset_final_year | C49: =INDEX(INDIRECT(dms_RPT),dms_RYE_start_row) -> 2025 | D49: For Resets and PTRM/RFMs (same as FRCP_final_year)
B50: dms_SpecifiedYear_final_year | C50: =FRY -> 2021 | D50: FRY from cover sheet
B51: dms_DollarReal_year | C51: =LEFT(CRCP_final_year,2)&RIGHT(CRCP_final_year,2) -> 2020 | D51: Uses the value in CRCP_final_year
B52: dms_Previous_DollarReal_year | C52: =LEFT(PRCP_final_year,2)&RIGHT(PRCP_final_year,2) -> 2015 | D52: Uses the value in PRCP_final_year
B53: dms_CRY_RYE | C53: =IFERROR(LEFT(CRY,2)&RIGHT(CRY,2),0) -> 2017 | D53: For ABC single year RINS
B54: dms_Reset_RYE | C54: =IF(dms_Model_Span>1,IF(dms_Model="RFM",(LEFT(dms_DollarReal_year,2)&RIGHT(dms_DollarReal_year,2)),(LEFT(dms_Reset_final_year,2)&RIGHT(dms_Reset_final_year,2))),0) -> 0 | D54: If model span > 1 then uses dms_Reset_RYE otherwise it's a multi year ABC and uses dms_Specified_RYE
B55: dms_Specified_RYE | C55: =IF(dms_MultiYear_ResponseFlag="Yes",(LEFT(dms_Specified_FinalYear,2)&RIGHT(dms_Specified_FinalYear,2)),0) -> 2021 | D55: If multi year ABC - uses dms_Specified_FinalYear
B56: dms_Model_Span | C56: =INDEX(dms_Model_Span_List,MATCH(dms_Model,dms_Model_List)) -> 1 | D56: A result of 5 is used to signify that it is more than 1 year span
B57: dms_RYE_result | C57: =IF(dms_MultiYear_ResponseFlag="yes",dms_Specified_RYE,(IF(dms_Model_Span>1,dms_Reset_RYE,dms_CRY_RYE))) -> 2021 | D57: Nested IF - feeds into dms_RYE
B58: dms_Reset_Span | C58: =IF(dms_Reset_RYE>0,CONCATENATE(FRCP_y1," to ",FRCP_final_year),0) -> 0 | D58: Reset span of years as text
B59: dms_SpecifiedYear_Span | C59: =IF(dms_Specified_RYE>0,CONCATENATE(CRY," to ",dms_Specified_FinalYear),0) -> 2017 to 2021 | D59: Multi year ABC span of years as text
B60: dms_Header_Span | C60: =IF(dms_MultiYear_Flag=1,dms_SpecifiedYear_Span,IF(dms_Model_Span>1,dms_Reset_Span,CRY)) -> 2017 to 2021 | D60: NESTED IF - for Sheet Headers
B61: ABC RINS THAT SPAN MULTIPLE YEARS
B62: This is a multi year ABC RIN? | C62: Yes
C63: =IF(dms_MultiYear_ResponseFlag="No",0,1) -> 1 | D63: dms_MultiYear_Flag | E63: This is set from the answer provided above
C64: =IF(dms_MultiYear_Flag=1,FRY,"not a Multiple year submission") -> 2021 | D64: dms_Specified_FinalYear | E64: The result here is returned to dms_CRCP_FinalYear_Result if response to Q in C73 is "yes" and dms_MultiYear_Flag is set to 1
B65: Start year for 5.2 in Multi year ABC RINS | C65: =IFERROR(IF(dms_MultiYear_Flag=1,FRY,CRY),"not an ABC") -> 2021 | D65: dms_0502_Inst_Year | E65: =IF(dms_MultiYear_Flag=1,FRY,CRY) | G65: For single year RINS this is CRY - multi year RINS need to start a the end of the span of years (ie. FRY)
B66: WHAT IS THE RYE?
B67: Reg Period Lengths
B68: PRCP length in years | C68: =INDEX(dms_PRCPlength_List,MATCH(dms_TradingName,dms_TradingName_List)) -> 5 | D68: dms_PRCPlength_Num | E68: =INDEX(dms_PRCPlength_List,MATCH(dms_TradingName,dms_TradingName_List))
B69: CRCP length in years | C69: =INDEX(dms_CRCPlength_List,MATCH(dms_TradingName,dms_TradingName_List)) -> 5 | D69: dms_CRCPlength_Num | E69: =INDEX(dms_CRCPlength_List,MATCH(dms_TradingName,dms_TradingName_List))
B70: FRCP length in years | C70: =INDEX(dms_FRCPlength_List,MATCH(dms_TradingName,dms_TradingName_List)) -> 5 | D70: dms_FRCPlength_Num | E70: =INDEX(dms_FRCPlength_List,MATCH(dms_TradingName,dms_TradingName_List))
B71: Single year RIN?
B72: Single Year ABC RIN ? | C72: =IF(dms_Model="EB",1,0) -> 0 | D72: dms_EB
C73: =IF(dms_Model="CA",1,0) -> 0 | D73: dms_CA | E73: =dms_SingleYear_Model
C74: =IF(dms_Model="ARR",1,0) -> 1 | D74: dms_ARR
B75: Is this a single Year ABC RIN? | C75: =IF(SUM(dms_SingleYear_Model)=1,"yes","no") -> yes | D75: dms_SingleYearModel | E75: =IF(SUM(dms_SingleYear_Model)=1,"yes","no")
B76: Single Year Final Year Result | C76: =IF(AND(dms_SingleYearModel="yes",dms_MultiYear_Flag=0),CRY,0) -> 0 | D76: dms_SingleYear_FinalYear_Result | E76: =IFERROR(IF(SUM(dms_SingleYear_Model)<>0,(INDIRECT(dms_SingleYear_FinalYear_Ref)),"not a single year RIN"),"CRY not present")
B77: Multi year RIN?
B79: Multi Year Reset/Model? | C79: =IF(dms_Model_Span>1,"yes","no") -> no
B80: Final year result for Reset/Model | C80: =IF(dms_Model_Span>1,dms_Reset_final_year,0) -> 0 | D80: dms_MultiYear_FinalYear_Result
B82: Multi Year ABC RIN? | C82: =IF(dms_MultiYear_Flag=1,"yes","no") -> yes | D82: dms_MultiYear_ABC_RIN
B83: Final year result for ABC multi year | C83: =IF(dms_MultiYear_Flag=1,C50,0) -> 2021
B85: EB RINS
B86: Calendar Year for table 3.6 data | C86: =IFERROR(IF(dms_Segment="Transmission",dms_Cal_Year_B4_CRY,CRY),"CRY not present") -> 2017 | D86: dms_0306_Year | E86: =IF(dms_Segment="Transmission",dms_Cal_Year_B4_CRY,CRY)
B87: CA RINS
B88: Find how many rows in tables 6.3 sustained interruptions? | E88: dms_060301_MaxRows only returns a valid value when cover sheet is attached to a CA file
C89: =IF(dms_Model<>"CA","not a CA","Is a CA") -> not a CA | E89: =IF(dms_Model<>"CA","not a CA","Is a CA")
B90: dms_060301_Avg_Duration_Sustained_Int_Values present? | C90: =IFERROR(IF(INDEX(dms_060301_Avg_Duration_Sustained_Int_Values,1,1)<>"","yes","no"),"no") -> no | D90: dms_060301_checkvalue | E90: =IFERROR(IF(INDEX(dms_060301_Avg_Duration_Sustained_Int_Values,1,1)<>"","yes","no"),"no")
C91: =IF(AND(dms_Model="CA",(dms_060301_checkvalue="no")),"error - NR not present","no errors") -> no errors | E91: =IF(AND(dms_Model="CA",(dms_060301_checkvalue="no")),"error - NR not present","no errors")
B92: Table 6.3.1 - last row reference | C92: =IFERROR(IF(dms_Model="CA",LOOKUP(2,1/(dms_060301_Avg_Duration_Sustained_Int_Values<>""),(ROW(dms_060301_Avg_Duration_Sustained_Int_Values))),"not a CA"),"6.3 not present") -> not a CA | D92: dms_060301_LastRow | E92: =IFERROR(IF(dms_Model="CA",LOOKUP(2,1/(dms_060301_Avg_Duration_Sustained_Int_Values<>""),(ROW(dms_060301_Avg_Duration_Sustained_Int_Values))),"not a CA"),"6.3 not present")
B93: Table 6.3.1 - max number rows | C93: =IFERROR(IF(dms_Model="CA",(dms_060301_LastRow-15),"not a CA"),"error") -> not a CA | D93: dms_060301_MaxRows | E93: =IFERROR(IF(dms_Model="CA",(dms_060301_LastRow-15),"not a CA"),"error")
B94: Table 6.6.3 - Public lighting repair - no. business days | C94: =INDEX(dms_663_List,MATCH(dms_TradingName,dms_TradingName_List)) -> x | D94: dms_663 | E94: =INDEX(dms_663_List,MATCH(dms_TradingName,dms_TradingName_List))
B95: ARR or RESET RINS
B96: How many rows in tables 6.1 or 6.7? (leap year?) | C96: insert dms_LeapYear NR if required | E96: 'dms_LeapYear is used to determine dms_060701_Max_Rows BUT it is only found on worksheet 6.1 or 6.7 and the date value in the cell is used to determine whether it is a leap year
B97: Is dms_LeapYear named range present? | C97: =IFERROR(IF(dms_LeapYear,"yes"),"no") -> no
B98: Table 6.7.1 - includes a leap year? | C98: =IFERROR(IF(MONTH(DATE(YEAR(dms_LeapYear),2,29))=2,"is a leap year","not a leap year"), "dms_LeapYear not present") -> dms_LeapYear not present | D98: dms_LeapYear_Result | E98: =IFERROR(IF(MONTH(DATE(YEAR(dms_LeapYear),2,29))=2,"is a leap year","not a leap year"),"dms_LeapYear not present")
B99: MaxRows if Reset and leap year | C99: =IF(dms_LeapYear_Result="is a leap year",1827,1826) -> 1826 | D99: dms_060701_Reset_MaxRows | E99: =IF(dms_LeapYear_Result="is a leap year",1827,1826) | H99: number of days present in Reset RIN table
B100: MaxRows if ARR and leap year | C100: =IF(dms_LeapYear_Result="is a leap year",366,365) -> 365 | D100: dms_060701_ARR_MaxRows | E100: =IF(dms_LeapYear_Result="is a leap year",366,365) | H100: number of days present in ARR RIN table
B101: Table 6.7.1 - Max Rows (leap year/ non leap year) | C101: =IF(dms_Model="ARR",dms_060701_ARR_MaxRows,IF(dms_Model="Reset",dms_060701_Reset_MaxRows,"not a relevant RIN type")) -> 365 | D101: dms_060701_MaxRows | E101: =IF(dms_Model="ARR",dms_060701_ARR_MaxRows,IF(dms_Model="Reset",dms_060701_Reset_MaxRows,"not a relevant RIN type"))
B102: How many columns in 6.7? (4 or 5 feeder categories) | C102: =IF(dms_FifthFeeder_flag_NSP="NO","This NSP has only 4 feeder categories","This NSP has 5 feeder categories") -> This NSP has only 4 feeder categories
B103: Table 6.7.1 - Last column (# of feeder categories > 4) | C103: =IF(dms_FifthFeeder_flag_NSP="NO",10,12) -> 10 | D103: dms_060701_MaxCols | E103: =IF(dms_FifthFeeder_flag_NSP="NO",8,10)
B104: Table 6.7.1 - Number of offset rows | C104: =IF(dms_Model="ARR",15,9) -> 15 | D104: dms_060701_OffsetRows | E104: =IF(dms_Model="ARR",15,9)
B105: Start date for telephone answering in 6.1 or 6.7? | E105: Using 060101 as naming standard not 060701 for start dates
B106: Table 6.1.1 and 6.7.1 - Start Date as Text | C106: =IF(dms_SingleYearModel="yes",(CONCATENATE(IF(LEN(CRY)=4,"1-Jan-","1-Jul-"),LEFT(CRY,4))),(CONCATENATE(IF(LEN(PRCP_y4)=4,"1-Jan-","1-Jul-"),LEFT(PRCP_y4,4)))) -> 1-Jan-2017 | D106: dms_060101_StartDateTxt | E106: =IF(SUM(dms_SingleYear_Model)>1,(CONCATENATE(IF(LEN(CRY)=4,"1-Jan-","1-Jul-"),LEFT(CRY,4))),(CONCATENATE(IF(LEN(CRCP_y4)=4,"1-Jan-","1-Jul-"),LEFT(CRCP_y4,4))))
B107: Table 6.1.1 and 6.7.1 - Start Date as Date Value | C107: =DATEVALUE(dms_060701_StartDateTxt) -> 42736 | D107: dms_060101_StartDateVal | E107: =DATEVALUE(dms_060701_StartDateTxt)
B108: ARRs
B109: How many rows in table 6.8? | C109: insert dms_060801_StartCell NR if required | E109: dms_060801_StartCell is only found on worksheet 6.8 and is used to determine the starting date for the date range
B110: Is dms_060801_StartCell named range present? | C110: yes | E110: =IFERROR(IF((ROW(dms_060801_StartCell)-1)=1,"yes","yes"),"no")
B111: Table 6.8 - Number of offset rows | C111: 12 | D111: dms_0608_OffsetRows | E111: =IFERROR(IF(dms_Model="ARR",(ROW(dms_060801_StartCell)-1),"not an ARR"),"6.8 error")
B112: Table 6.8 - Last row | C112: 0 | D112: dms_0608_LastRow | E112: =IFERROR(IF(dms_060801_StartCell<>"",IF(dms_Model="ARR",(LOOKUP(2,1/(dms_060801_01_Values<>""),(ROW(dms_060801_01_Values)))),"not an ARR"),0),"0")
B113: Table 6.8 - MaxRows | C113: =IFERROR(IF(dms_Model="ARR",(MAX(0,dms_0608_LastRow-dms_0608_OffsetRows)),"not an ARR"),"0") -> 0 | D113: dms_060801_MaxRows | E113: =IFERROR(IF(dms_Model="ARR",(MAX(0,dms_0608_LastRow-dms_0608_OffsetRows)),"not an ARR"),"0")
B114: TNSP RESET RINS
B115: Table 7.9.4 only appears in TNSPs Reset RIN
B116: Table 7.9.4 - first year | C116: =LEFT(PRCP_y3,4) -> 2013 | D116: dms_070904_Start_Year | E116: =LEFT(PRCP_y3,4)
B118: MISC
B119: Distribution Determination Reference | C119: =INDEX(dms_DeterminationRef_List,MATCH(dms_TradingName,dms_TradingName_List)) -> 0 | D119: dms_DeterminationRef
B120: Public lighting NSP? | C120: =INDEX(dms_Public_Lighting_List,MATCH(dms_TradingName,dms_TradingName_List)) -> NO | D120: dms_Public_Lighting | E120: =INDEX(dms_Public_Lighting_List,MATCH(dms_TradingName,dms_TradingName_List))
B121: CBD Feeder for this business | C121: =INDEX(dms_CBD_flag,MATCH(dms_TradingName,dms_TradingName_List)) -> NO | D121: dms_CBD_flag_NSP
B122: Urban Feeder for this business | C122: =INDEX(dms_Urban_flag,MATCH(dms_TradingName,dms_TradingName_List)) -> NO | D122: dms_Urban_flag_NSP
B123: Short rural Feeder for this business | C123: =INDEX(dms_ShortRural_flag,MATCH(dms_TradingName,dms_TradingName_List)) -> NO | D123: dms_ShortRural_flag_NSP
B124: Long rural Feeder for this business | C124: =INDEX(dms_LongRural_flag,MATCH(dms_TradingName,dms_TradingName_List)) -> NO | D124: dms_LongRural_flag_NSP
B125: Fifth Feeder Category (eg. TasNetworks (D)) | C125: =INDEX(dms_FeederType_5_flag,MATCH(dms_TradingName,dms_TradingName_List)) -> NO | D125: dms_FifthFeeder_flag_NSP | E125: =INDEX(dms_FeederType_5_flag,MATCH(dms_TradingName,dms_TradingName_List))
B127: DISCARD FILES
B128: discard this record? | C128: NO | D128: dms_DISCARD | E128: If record is to be discarded from DB set this flag to YES
B130: SUBSET FILES
B131: Is this Submission File a Subset File | C131: NO | D131: dms_Partial
B134: REGULATORY YEARS FOR MULTI RYE SUBMISSIONS
B135: Multiple RYE flag | C135: YES | D135: dms_Multi_RYE_flag
C136: Manually specify RYE | D136: Named ranges to apply
C137: 2015 | D137: dms_RYE_01
C138: 2016 | D138: dms_RYE_02
C139: 2017 | D139: dms_RYE_03
C140: 2018 | D140: dms_RYE_04
C141: 2019 | D141: dms_RYE_05
C142: 2020 | D142: dms_RYE_06
C143: 2021 | D143: dms_RYE_07
C144: 2022 | D144: dms_RYE_08
C145: 2023 | D145: dms_RYE_09

Sheet Instructions
B2: =CONCATENATE(dms_Sector," ",dms_Segment," ", "Pipeline Service Provider") -> Gas Distribution Pipeline Service Provider
B3: =IF(dms_Model="Reset","Regulatory Proposal RIN Template","Annual Reporting RIN") -> Annual Reporting RIN
B5: INSTRUCTIONS
B6: GENERAL | C6: Complete the Business & other details worksheet before entering data or values in any other worksheets. The Business & other details worksheet is linked to other worksheets within the workbook and automatically generates certain column headings and conditional formatting.
B8: CONFIDENTIAL INFORMATION | C8: Please use the macro at the top of each worksheet to identify confidential information in the confidential workbook.
C9: -Do this by selecting the cell or cells that contain confidential information and then run the Mark selection as CONFIDENTIAL macro. This will format the cells a specific colour that is identified by the AER's database which in turn marks that information as confidential. -To reverse this, select the cell or cells and run the Return selection to NON-CONFIDENTIAL macro.
B11: RESPONSES | C11: Please return two (2) files to the AER: 1. A confidential version which must contain a complete set of all responses with confidential information marked using the Mark selection CONFIDENTIAL macro and which has been completed using the locked template file provided by the AER. 2. A public version with confidential information either removed completely or aggregated in some form together with writtten consent to disclose the public version of the response. Use the drop down box on the Business and other details worksheet to identify the file as either confidential ('consolidated') or public.
B13: AMENDMENTS | C13: If an NSP wishes to correct data previously submitted to the AER it should resubmit that data using the original completed submission as the starting point. Please make any necessary changes to the data. Data that is not being amended should be left unchanged. NSPs must identify the reason for the amendments in the Amendment Reason box on the Business and other details worksheet. NSPs may provide further details regarding any amendments in the Amendments worksheet. .
C14: NSP may use Amended Data macro to highlight cells that contain amended data. NB: if data is also CONFIDENTIAL, re-apply the Confidentiality macro after applying the Amended macro
C15: Please resubmit two (2) files - a confidential version and a public version of the amended submission to the AER
B17: UNITS OF MEASURE | C17: All amounts are to be unrounded and reported on a one for one basis: that is 1000 is to be entered as '1000'. Applicable units of measure may be identified in the table column headings or row descriptors.
B19: INPUT / NON-INPUT CELLS
D20: Yellow = Input cell (mandatory)
D21: Darker yellow = input cell (mandatory)
D22: Orange = input cell (if data available)
D23: Grey = Not applicable/No inputs required
D24: PLEASE DO NOT ENTER TEXT into cells that are to contain numeric data.
B27: NAVIGATION | C27: Many tables in the worksheets have been "grouped" to allow for easy navigation. To ungroup or group data use the outline symbols in the left margin (for Row groupings) or above the columns (for column groupings).

Sheet CONTENTS
B1: =INDEX(dms_Worksheet_List,MATCH(dms_Model,dms_Model_List)) -> HISTORICAL ANNUAL REPORTING
B2: =dms_TradingName -> AGN (Albury and Victoria)
B3: =dms_Header_Span -> 2017 to 2021
C7: CONTENTS
C9: TEMPLATE | D9: FINAL RIN MARCH 2022
C11: SUBMISSION | D11: Business & other details
C13: EXPENDITURE | D13: E2. Mains Repex
D14: E3. Mains Augex
D15: E4. Meter replacement
D16: E5. New Connections
D17: E6. Non-network
D18: E10. Overheads
D19: E12. ICT
D20: E13. Other capex
C22: ADMIN | D22: Additional disclosures

Sheet Business & other details
V1: =INDEX(dms_Worksheet_List,MATCH(dms_Model,dms_Model_List)) -> HISTORICAL ANNUAL REPORTING
V2: =dms_TradingName -> AGN (Albury and Victoria)
V3: =dms_Header_Span -> 2017 to 2021
V4: BUSINESS & OTHER DETAILS
V6: INSTRUCTIONS
V7: Complete the following business details regulatory template before entering data or values in any other regulatory template. This regulatory template is linked to other cells within the spreadsheet and automatically generates column headings and conditional formatting to distinguish business specific input and non-input cells.
Q9: SUBMISSION PARTICULARS INPUT SHEET
V12: ENTITY DETAILS
V14: Business Name
V16: Short name | AL16: AGN (Albury and Victoria)
V17: ACN/ABN | AL17: =INDEX(dms_ABN_List,MATCH(dms_TradingName,dms_TradingName_List)) -> 19078551685
V21: Business Address | BQ21: Postal Address
V23: Address 1 | AL23: =INDEX(dms_Addr1_List,MATCH(dms_TradingName,dms_TradingName_List)) -> Level 6 | BI23: Address 1 | BQ23: =INDEX(dms_PAddr1_List,MATCH(dms_TradingName,dms_TradingName_List)) -> PO Box 6468
V24: Address 2 | AL24: =IF(ISBLANK(INDEX(dms_Addr2_List,MATCH(dms_TradingName,dms_TradingName_List))),"",(INDEX(dms_Addr2_List,MATCH(dms_TradingName,dms_TradingName_List)))) -> 400 King William Street | BI24: Address 2 | BQ24: =IF(ISBLANK(INDEX(dms_PAddr2_List,MATCH(dms_TradingName,dms_TradingName_List))),"",(INDEX(dms_PAddr2_List,MATCH(dms_TradingName,dms_TradingName_List)))) -> Halifax Street
V25: Suburb | AL25: =INDEX(dms_Suburb_List,MATCH(dms_TradingName,dms_TradingName_List)) -> ADELAIDE | BI25: Suburb | BQ25: =INDEX(dms_PSuburb_List,MATCH(dms_TradingName,dms_TradingName_List)) -> ADELAIDE
V26: State | AL26: =INDEX(dms_State_List,MATCH(dms_TradingName,dms_TradingName_List)) -> SA | AV26: Post code | BI26: State | BQ26: =INDEX(dms_PState_List,MATCH(dms_TradingName,dms_TradingName_List)) -> SA | CA26: Post code
BA28: `
V30: Contact Names
V32: Name | BI32: Name
V33: Phone | BI33: Phone
V34: Email | BI34: Email
Q39: REGULATORY PERIODS
Z42: Forthcoming period | AL42: 2021 | AU42: =FRCP_y2 -> 2022 | BD42: =FRCP_y3 -> 2023 | BM42: =FRCP_y4 -> 2024 | BV42: =FRCP_y5 -> 2025
AL43: =FRCP_y6 -> 2026 | AU43: =FRCP_y7 -> 2027 | BD43: =FRCP_y8 -> 2028 | BM43: =FRCP_y9 -> 2029 | BV43: =FRCP_y10 -> 2030
AL44: =FRCP_y11 -> 2031 | AU44: =FRCP_y12 -> 2032 | BD44: =FRCP_y13 -> 2033 | BM44: =FRCP_y14 -> 2034 | BV44: =FRCP_y15 -> 2035
X46: RESETS | Z46: Current period | AL46: =CRCP_y1 -> 2016 | AU46: =CRCP_y2 -> 2017 | BD46: =CRCP_y3 -> 2018 | BM46: =CRCP_y4 -> 2019 | BV46: =CRCP_y5 -> 2020
AL47: =CRCP_y6 -> 2021 | AU47: =CRCP_y7 -> 2022 | BD47: =CRCP_y8 -> 2023 | BM47: =CRCP_y9 -> 2024 | BV47: =CRCP_y10 -> 2025
AL48: =CRCP_y11 -> 2026 | AU48: =CRCP_y12 -> 2027 | BD48: =CRCP_y13 -> 2028 | BM48: =CRCP_y14 -> 2029 | BV48: =CRCP_y15 -> 2030
Z50: Previous period | AL50: =PRCP_y1 -> 2011 | AU50: =PRCP_y2 -> 2012 | BD50: =PRCP_y3 -> 2013 | BM50: =PRCP_y4 -> 2014 | BV50: =PRCP_y5 -> 2015
AL51: =PRCP_y6 -> 2016 | AU51: =PRCP_y7 -> 2017 | BD51: =PRCP_y8 -> 2018 | BM51: =PRCP_y9 -> 2019 | BV51: =PRCP_y10 -> 2020
AL52: =PRCP_y11 -> 2021 | AU52: =PRCP_y12 -> 2022 | BD52: =PRCP_y13 -> 2023 | BM52: =PRCP_y14 -> 2024 | BV52: =PRCP_y15 -> 2025
Z54: Commencing year | AL54: 2017
X55: ANNUAL RINS
Z56: Final year | AL56: 2021
Q60: SUBMISSION DETAILS
Z62: RIN type | AL62: =INDIRECT(dms_Model) -> Annual Reporting
Z64: Source | AL64: Reporting
X66: THIS FILE | Z66: Data Quality | AL66: Actual
Z68: Confidentiality Status | AL68: Public
Z70: Amended RIN Amendment Reason
Z74: Submission Date | AL74: 2022-07-01 | BE74: Please enter date this file submitted to AER

Sheet E2. Mains Repex
B1: =INDEX(dms_Worksheet_List,MATCH(dms_Model,dms_Model_List)) -> HISTORICAL ANNUAL REPORTING
B2: =dms_TradingName -> AGN (Albury and Victoria)
B3: =dms_Header_Span -> 2017 to 2021
B4: E2. MAINS REPLACEMENT
B7: Please list all projects here:
B8: 2350 MAINS RENEWAL - PRESSURE INCREASE BLOCK - Abbortsford
B9: 2350 MAINS RENEWAL - PRESSURE INCREASE BLOCK - Alphington
B10: 2350 MAINS RENEWAL - PRESSURE INCREASE BLOCK - Benalla
B11: 2350 MAINS RENEWAL - PRESSURE INCREASE BLOCK - Brunswick
B12: 2350 MAINS RENEWAL - PRESSURE INCREASE BLOCK - Brunswick West
B13: 2350 MAINS RENEWAL - PRESSURE INCREASE BLOCK - Carlton
B14: 2350 MAINS RENEWAL - PRESSURE INCREASE BLOCK - Carlton North
B15: 2350 MAINS RENEWAL - PRESSURE INCREASE BLOCK - Clifton Hill
B16: 2350 MAINS RENEWAL - PRESSURE INCREASE BLOCK - Collingwood
B17: 2350 MAINS RENEWAL - PRESSURE INCREASE BLOCK - East Melbourne
B18: 2350 MAINS RENEWAL - PRESSURE INCREASE BLOCK - East Preston
B19: 2350 MAINS RENEWAL - PRESSURE INCREASE BLOCK - East Richmond
B20: 2350 MAINS RENEWAL - PRESSURE INCREASE BLOCK - Fitzroy
B21: 2350 MAINS RENEWAL - PRESSURE INCREASE BLOCK - Fitzroy North
B22: 2350 MAINS RENEWAL - PRESSURE INCREASE BLOCK - Heidelberg
B23: 2350 MAINS RENEWAL - PRESSURE INCREASE BLOCK - Ivanhoe
B24: 2350 MAINS RENEWAL - PRESSURE INCREASE BLOCK - Melbourne
B25: 2350 MAINS RENEWAL - PRESSURE INCREASE BLOCK - Mornington
B26: 2350 MAINS RENEWAL - PRESSURE INCREASE BLOCK - North Melbourne
B27: 2350 MAINS RENEWAL - PRESSURE INCREASE BLOCK - Northcote
B28: 2350 MAINS RENEWAL - PRESSURE INCREASE BLOCK - Pakenham
B29: 2350 MAINS RENEWAL - PRESSURE INCREASE BLOCK - Parkville
B30: 2350 MAINS RENEWAL - PRESSURE INCREASE BLOCK - Preston
B31: 2350 MAINS RENEWAL - PRESSURE INCREASE BLOCK - Richmond
B32: 2350 MAINS RENEWAL - PRESSURE INCREASE BLOCK - Shepparton
B33: 2350 MAINS RENEWAL - PRESSURE INCREASE BLOCK - Thomastown
B34: 2350 MAINS RENEWAL - PRESSURE INCREASE BLOCK - Thornbury
B35: 2350 MAINS RENEWAL - PRESSURE INCREASE BLOCK - Traralgon
B36: 2350 MAINS RENEWAL - PRESSURE INCREASE BLOCK - West Melbourne
B37: 2350 MAINS RENEWAL - PRESSURE INCREASE BLOCK - West Preston
B38: 2356 MAINS RENEWAL - PRESSURE INCREASE CBD BLOCK
B39: 2358 MAINS RENEWAL - PRESSURE INCREASE CBD TRUNK
B40: 2359 MAINS RENEWAL - PRESSURE INCREASE CBD TRUNK DECOMMISSIONED
B41: 2354 MAINS RENEWAL - PRESSURE INCREASE TRUNK
B42: 2365 MAINS RENEWAL - PRESSURE INCREASE TRUNK DECOMMISSIONED
B43: 2357 MAINS RENEWAL - PRESSURE INCREASE CBD BLOCK DECOMMISSIONED
B60: E2.1 - CAPEX
B61: E2.1.1 - PROACTIVE - BY PROJECT
D62: EXPENDITURE
D63: $0's, Nominal
D64: =dms_y1 -> 2017 | E64: =dms_y2 -> 2018 | F64: =dms_y3 -> 2019 | G64: =dms_y4 -> 2020 | H64: =dms_y5 -> 2021
B65: A. DIRECT INTERNAL LABOUR EXPENDITURE
B66: =IF(ISBLANK(dms_E2_Projects_01),"",dms_E2_Projects_01) -> 2350 MAINS RENEWAL - PRESSURE INCREASE BLOCK - Abbortsford
B67: =IF(ISBLANK(dms_E2_Projects_02),"",dms_E2_Projects_02) -> 2350 MAINS RENEWAL - PRESSURE INCREASE BLOCK - Alphington
B68: =IF(ISBLANK(dms_E2_Projects_03),"",dms_E2_Projects_03) -> 2350 MAINS RENEWAL - PRESSURE INCREASE BLOCK - Benalla
B69: =IF(ISBLANK(dms_E2_Projects_04),"",dms_E2_Projects_04) -> 2350 MAINS RENEWAL - PRESSURE INCREASE BLOCK - Brunswick
B70: =IF(ISBLANK(dms_E2_Projects_05),"",dms_E2_Projects_05) -> 2350 MAINS RENEWAL - PRESSURE INCREASE BLOCK - Brunswick West
B71: =IF(ISBLANK(dms_E2_Projects_06),"",dms_E2_Projects_06) -> 2350 MAINS RENEWAL - PRESSURE INCREASE BLOCK - Carlton
B72: =IF(ISBLANK(dms_E2_Projects_07),"",dms_E2_Projects_07) -> 2350 MAINS RENEWAL - PRESSURE INCREASE BLOCK - Carlton North
B73: =IF(ISBLANK(dms_E2_Projects_08),"",dms_E2_Projects_08) -> 2350 MAINS RENEWAL - PRESSURE INCREASE BLOCK - Clifton Hill
B74: =IF(ISBLANK(dms_E2_Projects_09),"",dms_E2_Projects_09) -> 2350 MAINS RENEWAL - PRESSURE INCREASE BLOCK - Collingwood
B75: =IF(ISBLANK(dms_E2_Projects_10),"",dms_E2_Projects_10) -> 2350 MAINS RENEWAL - PRESSURE INCREASE BLOCK - East Melbourne
B76: =IF(ISBLANK(dms_E2_Projects_11),"",dms_E2_Projects_11) -> 2350 MAINS RENEWAL - PRESSURE INCREASE BLOCK - East Preston
B77: =IF(ISBLANK(dms_E2_Projects_12),"",dms_E2_Projects_12) -> 2350 MAINS RENEWAL - PRESSURE INCREASE BLOCK - East Richmond
B78: =IF(ISBLANK(dms_E2_Projects_13),"",dms_E2_Projects_13) -> 2350 MAINS RENEWAL - PRESSURE INCREASE BLOCK - Fitzroy
B79: =IF(ISBLANK(dms_E2_Projects_14),"",dms_E2_Projects_14) -> 2350 MAINS RENEWAL - PRESSURE INCREASE BLOCK - Fitzroy North
B80: =IF(ISBLANK(dms_E2_Projects_15),"",dms_E2_Projects_15) -> 2350 MAINS RENEWAL - PRESSURE INCREASE BLOCK - Heidelberg
B81: =IF(ISBLANK(dms_E2_Projects_16),"",dms_E2_Projects_16) -> 2350 MAINS RENEWAL - PRESSURE INCREASE BLOCK - Ivanhoe
B82: =IF(ISBLANK(dms_E2_Projects_17),"",dms_E2_Projects_17) -> 2350 MAINS RENEWAL - PRESSURE INCREASE BLOCK - Melbourne
B83: =IF(ISBLANK(dms_E2_Projects_18),"",dms_E2_Projects_18) -> 2350 MAINS RENEWAL - PRESSURE INCREASE BLOCK - Mornington
B84: =IF(ISBLANK(dms_E2_Projects_19),"",dms_E2_Projects_19) -> 2350 MAINS RENEWAL - PRESSURE INCREASE BLOCK - North Melbourne
B85: =IF(ISBLANK(dms_E2_Projects_20),"",dms_E2_Projects_20) -> 2350 MAINS RENEWAL - PRESSURE INCREASE BLOCK - Northcote
B86: =IF(ISBLANK(dms_E2_Projects_21),"",dms_E2_Projects_21) -> 2350 MAINS RENEWAL - PRESSURE INCREASE BLOCK - Pakenham
B87: =IF(ISBLANK(dms_E2_Projects_22),"",dms_E2_Projects_22) -> 2350 MAINS RENEWAL - PRESSURE INCREASE BLOCK - Parkville
B88: =IF(ISBLANK(dms_E2_Projects_23),"",dms_E2_Projects_23) -> 2350 MAINS RENEWAL - PRESSURE INCREASE BLOCK - Preston
B89: =IF(ISBLANK(dms_E2_Projects_24),"",dms_E2_Projects_24) -> 2350 MAINS RENEWAL - PRESSURE INCREASE BLOCK - Richmond
B90: =IF(ISBLANK(dms_E2_Projects_25),"",dms_E2_Projects_25) -> 2350 MAINS RENEWAL - PRESSURE INCREASE BLOCK - Shepparton
B91: =IF(ISBLANK(dms_E2_Projects_25),"",dms_E2_Projects_26) -> 2350 MAINS RENEWAL - PRESSURE INCREASE BLOCK - Thomastown
B92: =IF(ISBLANK(dms_E2_Projects_27),"",dms_E2_Projects_27) -> 2350 MAINS RENEWAL - PRESSURE INCREASE BLOCK - Thornbury
B93: =IF(ISBLANK(dms_E2_Projects_28),"",dms_E2_Projects_28) -> 2350 MAINS RENEWAL - PRESSURE INCREASE BLOCK - Traralgon
B94: =IF(ISBLANK(dms_E2_Projects_29),"",dms_E2_Projects_29) -> 2350 MAINS RENEWAL - PRESSURE INCREASE BLOCK - West Melbourne
B95: =IF(ISBLANK(dms_E2_Projects_30),"",dms_E2_Projects_30) -> 2350 MAINS RENEWAL - PRESSURE INCREASE BLOCK - West Preston
B96: =IF(ISBLANK(dms_E2_Projects_31),"",dms_E2_Projects_31) -> 2356 MAINS RENEWAL - PRESSURE INCREASE CBD BLOCK
B97: =IF(ISBLANK(dms_E2_Projects_32),"",dms_E2_Projects_32) -> 2358 MAINS RENEWAL - PRESSURE INCREASE CBD TRUNK
B98: =IF(ISBLANK(dms_E2_Projects_33),"",dms_E2_Projects_33) -> 2359 MAINS RENEWAL - PRESSURE INCREASE CBD TRUNK DECOMMISSIONED
B99: =IF(ISBLANK(dms_E2_Projects_34),"",dms_E2_Projects_34) -> 2354 MAINS RENEWAL - PRESSURE INCREASE TRUNK
B100: =IF(ISBLANK(dms_E2_Projects_35),"",dms_E2_Projects_35) -> 2365 MAINS RENEWAL - PRESSURE INCREASE TRUNK DECOMMISSIONED
B101: =IF(ISBLANK(dms_E2_Projects_36),"",dms_E2_Projects_36) -> 2357 MAINS RENEWAL - PRESSURE INCREASE CBD BLOCK DECOMMISSIONED
B102: =IF(ISBLANK(dms_E2_Projects_37),"",dms_E2_Projects_37) -> 
B103: =IF(ISBLANK(dms_E2_Projects_38),"",dms_E2_Projects_38) -> 
B104: =IF(ISBLANK(dms_E2_Projects_39),"",dms_E2_Projects_39) -> 
B105: =IF(ISBLANK(dms_E2_Projects_40),"",dms_E2_Projects_40) -> 
B106: =IF(ISBLANK(dms_E2_Projects_41),"",dms_E2_Projects_41) -> 
B107: =IF(ISBLANK(dms_E2_Projects_42),"",dms_E2_Projects_42) -> 
B108: =IF(ISBLANK(dms_E2_Projects_43),"",dms_E2_Projects_43) -> 
B109: =IF(ISBLANK(dms_E2_Projects_44),"",dms_E2_Projects_44) -> 
B110: =IF(ISBLANK(dms_E2_Projects_45),"",dms_E2_Projects_45) -> 
B111: =IF(ISBLANK(dms_E2_Projects_46),"",dms_E2_Projects_46) -> 
B112: =IF(ISBLANK(dms_E2_Projects_47),"",dms_E2_Projects_47) -> 
B113: =IF(ISBLANK(dms_E2_Projects_48),"",dms_E2_Projects_48) -> 
B114: =IF(ISBLANK(dms_E2_Projects_49),"",dms_E2_Projects_49) -> 
B115: =IF(ISBLANK(dms_E2_Projects_50),"",dms_E2_Projects_50) -> 
B116: Other projects with expenditure of less than $500,000
C117: Total | D117: =SUM(D66:D116) -> 0 | E117: =SUM(E66:E116) -> 0 | F117: =SUM(F66:F116) -> 0 | G117: =SUM(G66:G116) -> 0 | H117: =SUM(H66:H116) -> 0
B119: B. DIRECT CONTRACTOR EXPENDITURE
D120: EXPENDITURE
D121: $0's, Nominal
D122: =dms_y1 -> 2017 | E122: =dms_y2 -> 2018 | F122: =dms_y3 -> 2019 | G122: =dms_y4 -> 2020 | H122: =dms_y5 -> 2021
B123: =IF(ISBLANK(dms_E2_Projects_01),"",dms_E2_Projects_01) -> 2350 MAINS RENEWAL - PRESSURE INCREASE BLOCK - Abbortsford
B124: =IF(ISBLANK(dms_E2_Projects_02),"",dms_E2_Projects_02) -> 2350 MAINS RENEWAL - PRESSURE INCREASE BLOCK - Alphington
B125: =IF(ISBLANK(dms_E2_Projects_03),"",dms_E2_Projects_03) -> 2350 MAINS RENEWAL - PRESSURE INCREASE BLOCK - Benalla
B126: =IF(ISBLANK(dms_E2_Projects_04),"",dms_E2_Projects_04) -> 2350 MAINS RENEWAL - PRESSURE INCREASE BLOCK - Brunswick
B127: =IF(ISBLANK(dms_E2_Projects_05),"",dms_E2_Projects_05) -> 2350 MAINS RENEWAL - PRESSURE INCREASE BLOCK - Brunswick West
B128: =IF(ISBLANK(dms_E2_Projects_06),"",dms_E2_Projects_06) -> 2350 MAINS RENEWAL - PRESSURE INCREASE BLOCK - Carlton
B129: =IF(ISBLANK(dms_E2_Projects_07),"",dms_E2_Projects_07) -> 2350 MAINS RENEWAL - PRESSURE INCREASE BLOCK - Carlton North
B130: =IF(ISBLANK(dms_E2_Projects_08),"",dms_E2_Projects_08) -> 2350 MAINS RENEWAL - PRESSURE INCREASE BLOCK - Clifton Hill
B131: =IF(ISBLANK(dms_E2_Projects_09),"",dms_E2_Projects_09) -> 2350 MAINS RENEWAL - PRESSURE INCREASE BLOCK - Collingwood
B132: =IF(ISBLANK(dms_E2_Projects_10),"",dms_E2_Projects_10) -> 2350 MAINS RENEWAL - PRESSURE INCREASE BLOCK - East Melbourne
B133: =IF(ISBLANK(dms_E2_Projects_11),"",dms_E2_Projects_11) -> 2350 MAINS RENEWAL - PRESSURE INCREASE BLOCK - East Preston
B134: =IF(ISBLANK(dms_E2_Projects_12),"",dms_E2_Projects_12) -> 2350 MAINS RENEWAL - PRESSURE INCREASE BLOCK - East Richmond
B135: =IF(ISBLANK(dms_E2_Projects_13),"",dms_E2_Projects_13) -> 2350 MAINS RENEWAL - PRESSURE INCREASE BLOCK - Fitzroy
B136: =IF(ISBLANK(dms_E2_Projects_14),"",dms_E2_Projects_14) -> 2350 MAINS RENEWAL - PRESSURE INCREASE BLOCK - Fitzroy North
B137: =IF(ISBLANK(dms_E2_Projects_15),"",dms_E2_Projects_15) -> 2350 MAINS RENEWAL - PRESSURE INCREASE BLOCK - Heidelberg
B138: =IF(ISBLANK(dms_E2_Projects_16),"",dms_E2_Projects_16) -> 2350 MAINS RENEWAL - PRESSURE INCREASE BLOCK - Ivanhoe
B139: =IF(ISBLANK(dms_E2_Projects_17),"",dms_E2_Projects_17) -> 2350 MAINS RENEWAL - PRESSURE INCREASE BLOCK - Melbourne
B140: =IF(ISBLANK(dms_E2_Projects_18),"",dms_E2_Projects_18) -> 2350 MAINS RENEWAL - PRESSURE INCREASE BLOCK - Mornington
B141: =IF(ISBLANK(dms_E2_Projects_19),"",dms_E2_Projects_19) -> 2350 MAINS RENEWAL - PRESSURE INCREASE BLOCK - North Melbourne
B142: =IF(ISBLANK(dms_E2_Projects_20),"",dms_E2_Projects_20) -> 2350 MAINS RENEWAL - PRESSURE INCREASE BLOCK - Northcote
B143: =IF(ISBLANK(dms_E2_Projects_21),"",dms_E2_Projects_21) -> 2350 MAINS RENEWAL - PRESSURE INCREASE BLOCK - Pakenham
B144: =IF(ISBLANK(dms_E2_Projects_22),"",dms_E2_Projects_22) -> 2350 MAINS RENEWAL - PRESSURE INCREASE BLOCK - Parkville
B145: =IF(ISBLANK(dms_E2_Projects_23),"",dms_E2_Projects_23) -> 2350 MAINS RENEWAL - PRESSURE INCREASE BLOCK - Preston
B146: =IF(ISBLANK(dms_E2_Projects_24),"",dms_E2_Projects_24) -> 2350 MAINS RENEWAL - PRESSURE INCREASE BLOCK - Richmond
B147: =IF(ISBLANK(dms_E2_Projects_25),"",dms_E2_Projects_25) -> 2350 MAINS RENEWAL - PRESSURE INCREASE BLOCK - Shepparton
B148: =IF(ISBLANK(dms_E2_Projects_25),"",dms_E2_Projects_26) -> 2350 MAINS RENEWAL - PRESSURE INCREASE BLOCK - Thomastown
B149: =IF(ISBLANK(dms_E2_Projects_27),"",dms_E2_Projects_27) -> 2350 MAINS RENEWAL - PRESSURE INCREASE BLOCK - Thornbury
B150: =IF(ISBLANK(dms_E2_Projects_28),"",dms_E2_Projects_28) -> 2350 MAINS RENEWAL - PRESSURE INCREASE BLOCK - Traralgon
B151: =IF(ISBLANK(dms_E2_Projects_29),"",dms_E2_Projects_29) -> 2350 MAINS RENEWAL - PRESSURE INCREASE BLOCK - West Melbourne
B152: =IF(ISBLANK(dms_E2_Projects_30),"",dms_E2_Projects_30) -> 2350 MAINS RENEWAL - PRESSURE INCREASE BLOCK - West Preston
B153: =IF(ISBLANK(dms_E2_Projects_31),"",dms_E2_Projects_31) -> 2356 MAINS RENEWAL - PRESSURE INCREASE CBD BLOCK
B154: =IF(ISBLANK(dms_E2_Projects_32),"",dms_E2_Projects_32) -> 2358 MAINS RENEWAL - PRESSURE INCREASE CBD TRUNK
B155: =IF(ISBLANK(dms_E2_Projects_33),"",dms_E2_Projects_33) -> 2359 MAINS RENEWAL - PRESSURE INCREASE CBD TRUNK DECOMMISSIONED
B156: =IF(ISBLANK(dms_E2_Projects_34),"",dms_E2_Projects_34) -> 2354 MAINS RENEWAL - PRESSURE INCREASE TRUNK
B157: =IF(ISBLANK(dms_E2_Projects_35),"",dms_E2_Projects_35) -> 2365 MAINS RENEWAL - PRESSURE INCREASE TRUNK DECOMMISSIONED
B158: =IF(ISBLANK(dms_E2_Projects_36),"",dms_E2_Projects_36) -> 2357 MAINS RENEWAL - PRESSURE INCREASE CBD BLOCK DECOMMISSIONED
B159: =IF(ISBLANK(dms_E2_Projects_37),"",dms_E2_Projects_37) -> 
B160: =IF(ISBLANK(dms_E2_Projects_38),"",dms_E2_Projects_38) -> 
B161: =IF(ISBLANK(dms_E2_Projects_39),"",dms_E2_Projects_39) -> 
B162: =IF(ISBLANK(dms_E2_Projects_40),"",dms_E2_Projects_40) -> 
B163: =IF(ISBLANK(dms_E2_Projects_41),"",dms_E2_Projects_41) -> 
B164: =IF(ISBLANK(dms_E2_Projects_42),"",dms_E2_Projects_42) -> 
B165: =IF(ISBLANK(dms_E2_Projects_43),"",dms_E2_Projects_43) -> 
B166: =IF(ISBLANK(dms_E2_Projects_44),"",dms_E2_Projects_44) -> 
B167: =IF(ISBLANK(dms_E2_Projects_45),"",dms_E2_Projects_45) -> 
B168: =IF(ISBLANK(dms_E2_Projects_46),"",dms_E2_Projects_46) -> 
B169: =IF(ISBLANK(dms_E2_Projects_47),"",dms_E2_Projects_47) -> 
B170: =IF(ISBLANK(dms_E2_Projects_48),"",dms_E2_Projects_48) -> 
B171: =IF(ISBLANK(dms_E2_Projects_49),"",dms_E2_Projects_49) -> 
B172: =IF(ISBLANK(dms_E2_Projects_50),"",dms_E2_Projects_50) -> 
B173: Other projects with expenditure of less than $500,000
C174: Total
B176: C. DIRECT MATERIAL EXPENDITURE
D177: EXPENDITURE
D178: $0's, Nominal
D179: =dms_y1 -> 2017 | E179: =dms_y2 -> 2018 | F179: =dms_y3 -> 2019 | G179: =dms_y4 -> 2020 | H179: =dms_y5 -> 2021
B180: =IF(ISBLANK(dms_E2_Projects_01),"",dms_E2_Projects_01) -> 2350 MAINS RENEWAL - PRESSURE INCREASE BLOCK - Abbortsford
B181: =IF(ISBLANK(dms_E2_Projects_02),"",dms_E2_Projects_02) -> 2350 MAINS RENEWAL - PRESSURE INCREASE BLOCK - Alphington
B182: =IF(ISBLANK(dms_E2_Projects_03),"",dms_E2_Projects_03) -> 2350 MAINS RENEWAL - PRESSURE INCREASE BLOCK - Benalla
B183: =IF(ISBLANK(dms_E2_Projects_04),"",dms_E2_Projects_04) -> 2350 MAINS RENEWAL - PRESSURE INCREASE BLOCK - Brunswick
B184: =IF(ISBLANK(dms_E2_Projects_05),"",dms_E2_Projects_05) -> 2350 MAINS RENEWAL - PRESSURE INCREASE BLOCK - Brunswick West
B185: =IF(ISBLANK(dms_E2_Projects_06),"",dms_E2_Projects_06) -> 2350 MAINS RENEWAL - PRESSURE INCREASE BLOCK - Carlton
B186: =IF(ISBLANK(dms_E2_Projects_07),"",dms_E2_Projects_07) -> 2350 MAINS RENEWAL - PRESSURE INCREASE BLOCK - Carlton North
B187: =IF(ISBLANK(dms_E2_Projects_08),"",dms_E2_Projects_08) -> 2350 MAINS RENEWAL - PRESSURE INCREASE BLOCK - Clifton Hill
B188: =IF(ISBLANK(dms_E2_Projects_09),"",dms_E2_Projects_09) -> 2350 MAINS RENEWAL - PRESSURE INCREASE BLOCK - Collingwood
B189: =IF(ISBLANK(dms_E2_Projects_10),"",dms_E2_Projects_10) -> 2350 MAINS RENEWAL - PRESSURE INCREASE BLOCK - East Melbourne
B190: =IF(ISBLANK(dms_E2_Projects_11),"",dms_E2_Projects_11) -> 2350 MAINS RENEWAL - PRESSURE INCREASE BLOCK - East Preston
B191: =IF(ISBLANK(dms_E2_Projects_12),"",dms_E2_Projects_12) -> 2350 MAINS RENEWAL - PRESSURE INCREASE BLOCK - East Richmond
B192: =IF(ISBLANK(dms_E2_Projects_13),"",dms_E2_Projects_13) -> 2350 MAINS RENEWAL - PRESSURE INCREASE BLOCK - Fitzroy
B193: =IF(ISBLANK(dms_E2_Projects_14),"",dms_E2_Projects_14) -> 2350 MAINS RENEWAL - PRESSURE INCREASE BLOCK - Fitzroy North
B194: =IF(ISBLANK(dms_E2_Projects_15),"",dms_E2_Projects_15) -> 2350 MAINS RENEWAL - PRESSURE INCREASE BLOCK - Heidelberg
B195: =IF(ISBLANK(dms_E2_Projects_16),"",dms_E2_Projects_16) -> 2350 MAINS RENEWAL - PRESSURE INCREASE BLOCK - Ivanhoe
B196: =IF(ISBLANK(dms_E2_Projects_17),"",dms_E2_Projects_17) -> 2350 MAINS RENEWAL - PRESSURE INCREASE BLOCK - Melbourne
B197: =IF(ISBLANK(dms_E2_Projects_18),"",dms_E2_Projects_18) -> 2350 MAINS RENEWAL - PRESSURE INCREASE BLOCK - Mornington
B198: =IF(ISBLANK(dms_E2_Projects_19),"",dms_E2_Projects_19) -> 2350 MAINS RENEWAL - PRESSURE INCREASE BLOCK - North Melbourne
B199: =IF(ISBLANK(dms_E2_Projects_20),"",dms_E2_Projects_20) -> 2350 MAINS RENEWAL - PRESSURE INCREASE BLOCK - Northcote
B200: =IF(ISBLANK(dms_E2_Projects_21),"",dms_E2_Projects_21) -> 2350 MAINS RENEWAL - PRESSURE INCREASE BLOCK - Pakenham
B201: =IF(ISBLANK(dms_E2_Projects_22),"",dms_E2_Projects_22) -> 2350 MAINS RENEWAL - PRESSURE INCREASE BLOCK - Parkville
B202: =IF(ISBLANK(dms_E2_Projects_23),"",dms_E2_Projects_23) -> 2350 MAINS RENEWAL - PRESSURE INCREASE BLOCK - Preston
B203: =IF(ISBLANK(dms_E2_Projects_24),"",dms_E2_Projects_24) -> 2350 MAINS RENEWAL - PRESSURE INCREASE BLOCK - Richmond
B204: =IF(ISBLANK(dms_E2_Projects_25),"",dms_E2_Projects_25) -> 2350 MAINS RENEWAL - PRESSURE INCREASE BLOCK - Shepparton
B205: =IF(ISBLANK(dms_E2_Projects_25),"",dms_E2_Projects_26) -> 2350 MAINS RENEWAL - PRESSURE INCREASE BLOCK - Thomastown
B206: =IF(ISBLANK(dms_E2_Projects_27),"",dms_E2_Projects_27) -> 2350 MAINS RENEWAL - PRESSURE INCREASE BLOCK - Thornbury
B207: =IF(ISBLANK(dms_E2_Projects_28),"",dms_E2_Projects_28) -> 2350 MAINS RENEWAL - PRESSURE INCREASE BLOCK - Traralgon
B208: =IF(ISBLANK(dms_E2_Projects_29),"",dms_E2_Projects_29) -> 2350 MAINS RENEWAL - PRESSURE INCREASE BLOCK - West Melbourne
B209: =IF(ISBLANK(dms_E2_Projects_30),"",dms_E2_Projects_30) -> 2350 MAINS RENEWAL - PRESSURE INCREASE BLOCK - West Preston
B210: =IF(ISBLANK(dms_E2_Projects_31),"",dms_E2_Projects_31) -> 2356 MAINS RENEWAL - PRESSURE INCREASE CBD BLOCK
B211: =IF(ISBLANK(dms_E2_Projects_32),"",dms_E2_Projects_32) -> 2358 MAINS RENEWAL - PRESSURE INCREASE CBD TRUNK
B212: =IF(ISBLANK(dms_E2_Projects_33),"",dms_E2_Projects_33) -> 2359 MAINS RENEWAL - PRESSURE INCREASE CBD TRUNK DECOMMISSIONED
B213: =IF(ISBLANK(dms_E2_Projects_34),"",dms_E2_Projects_34) -> 2354 MAINS RENEWAL - PRESSURE INCREASE TRUNK
B214: =IF(ISBLANK(dms_E2_Projects_35),"",dms_E2_Projects_35) -> 2365 MAINS RENEWAL - PRESSURE INCREASE TRUNK DECOMMISSIONED
B215: =IF(ISBLANK(dms_E2_Projects_36),"",dms_E2_Projects_36) -> 2357 MAINS RENEWAL - PRESSURE INCREASE CBD BLOCK DECOMMISSIONED
B216: =IF(ISBLANK(dms_E2_Projects_37),"",dms_E2_Projects_37) -> 
B217: =IF(ISBLANK(dms_E2_Projects_38),"",dms_E2_Projects_38) -> 
B218: =IF(ISBLANK(dms_E2_Projects_39),"",dms_E2_Projects_39) -> 
B219: =IF(ISBLANK(dms_E2_Projects_40),"",dms_E2_Projects_40) -> 
B220: =IF(ISBLANK(dms_E2_Projects_41),"",dms_E2_Projects_41) -> 
... 559 more rows

Sheet E3. Mains Augex
B1: =INDEX(dms_Worksheet_List,MATCH(dms_Model,dms_Model_List)) -> HISTORICAL ANNUAL REPORTING
B2: =dms_TradingName -> AGN (Albury and Victoria)
B3: =dms_Header_Span -> 2017 to 2021
B4: E3. MAINS AUGMENTATION
B7: Please list all projects here:
B8: 3055 MAJOR PROJECTS - PLENTY VALLEY NETWORK AUGMENTATION
B9: 3093 MAJOR PROJECTS - DANDENONG TO CRIB POINT DUPLICATION
B10: 3049 MAJOR PROJECTS - CRANBOURNE EAST
B11: 3106 MAJOR PROJECTS - H07 CRANBOURNE HP AUGMENTATION
B12: 5
B13: 6
B14: 7
B15: 8
B16: 9
B17: 10
B18: 11
B19: 12
B20: 13
B21: 14
B22: 15
B23: 16
B24: 17
B25: 18
B26: 19
B27: 20
B28: 21
B29: 22
B30: 23
B31: 24
B32: 25
B33: 26
B34: 27
B35: 28
B36: 29
B37: 30
B38: 31
B39: 32
B40: 33
B41: 34
B42: 35
B43: 36
B44: 37
B45: 38
B46: 39
B47: 40
B48: 41
B49: 42
B50: 43
B51: 44
B52: 45
B53: 46
B54: 47
B55: 48
B56: 49
B57: 50
B60: E3.1 - CAPEX BY PROJECT
B61: A. DIRECT INTERNAL LABOUR EXPENDITURE
C62: EXPENDITURE
C63: $0's, Nominal
C64: =dms_y1 -> 2017 | D64: =dms_y2 -> 2018 | E64: =dms_y3 -> 2019 | F64: =dms_y4 -> 2020 | G64: =dms_y5 -> 2021
B65: =IF(ISBLANK(dms_E3_Projects_01),"",dms_E3_Projects_01) -> 3055 MAJOR PROJECTS - PLENTY VALLEY NETWORK AUGMENTATION
B66: =IF(ISBLANK(dms_E3_Projects_02),"",dms_E3_Projects_02) -> 3093 MAJOR PROJECTS - DANDENONG TO CRIB POINT DUPLICATION
B67: =IF(ISBLANK(dms_E3_Projects_03),"",dms_E3_Projects_03) -> 3049 MAJOR PROJECTS - CRANBOURNE EAST
B68: =IF(ISBLANK(dms_E3_Projects_04),"",dms_E3_Projects_04) -> 3106 MAJOR PROJECTS - H07 CRANBOURNE HP AUGMENTATION
B69: =IF(ISBLANK(dms_E3_Projects_05),"",dms_E3_Projects_05) -> 5
B70: =IF(ISBLANK(dms_E3_Projects_06),"",dms_E3_Projects_06) -> 6
B71: =IF(ISBLANK(dms_E3_Projects_07),"",dms_E3_Projects_07) -> 7
B72: =IF(ISBLANK(dms_E3_Projects_08),"",dms_E3_Projects_08) -> 8
B73: =IF(ISBLANK(dms_E3_Projects_09),"",dms_E3_Projects_09) -> 9
B74: =IF(ISBLANK(dms_E3_Projects_10),"",dms_E3_Projects_10) -> 10
B75: =IF(ISBLANK(dms_E3_Projects_11),"",dms_E3_Projects_11) -> 11
B76: =IF(ISBLANK(dms_E3_Projects_12),"",dms_E3_Projects_12) -> 12
B77: =IF(ISBLANK(dms_E3_Projects_13),"",dms_E3_Projects_13) -> 13
B78: =IF(ISBLANK(dms_E3_Projects_14),"",dms_E3_Projects_14) -> 14
B79: =IF(ISBLANK(dms_E3_Projects_15),"",dms_E3_Projects_15) -> 15
B80: =IF(ISBLANK(dms_E3_Projects_16),"",dms_E3_Projects_16) -> 16
B81: =IF(ISBLANK(dms_E3_Projects_17),"",dms_E3_Projects_17) -> 17
B82: =IF(ISBLANK(dms_E3_Projects_18),"",dms_E3_Projects_18) -> 18
B83: =IF(ISBLANK(dms_E3_Projects_19),"",dms_E3_Projects_19) -> 19
B84: =IF(ISBLANK(dms_E3_Projects_20),"",dms_E3_Projects_20) -> 20
B85: =IF(ISBLANK(dms_E3_Projects_21),"",dms_E3_Projects_21) -> 21
B86: =IF(ISBLANK(dms_E3_Projects_22),"",dms_E3_Projects_22) -> 22
B87: =IF(ISBLANK(dms_E3_Projects_23),"",dms_E3_Projects_23) -> 23
B88: =IF(ISBLANK(dms_E3_Projects_24),"",dms_E3_Projects_24) -> 24
B89: =IF(ISBLANK(dms_E3_Projects_25),"",dms_E3_Projects_25) -> 25
B90: =IF(ISBLANK(dms_E3_Projects_25),"",dms_E3_Projects_26) -> 26
B91: =IF(ISBLANK(dms_E3_Projects_27),"",dms_E3_Projects_27) -> 27
B92: =IF(ISBLANK(dms_E3_Projects_28),"",dms_E3_Projects_28) -> 28
B93: =IF(ISBLANK(dms_E3_Projects_29),"",dms_E3_Projects_29) -> 29
B94: =IF(ISBLANK(dms_E3_Projects_30),"",dms_E3_Projects_30) -> 30
B95: =IF(ISBLANK(dms_E3_Projects_31),"",dms_E3_Projects_31) -> 31
B96: =IF(ISBLANK(dms_E3_Projects_32),"",dms_E3_Projects_32) -> 32
B97: =IF(ISBLANK(dms_E3_Projects_33),"",dms_E3_Projects_33) -> 33
B98: =IF(ISBLANK(dms_E3_Projects_34),"",dms_E3_Projects_34) -> 34
B99: =IF(ISBLANK(dms_E3_Projects_35),"",dms_E3_Projects_35) -> 35
B100: =IF(ISBLANK(dms_E3_Projects_36),"",dms_E3_Projects_36) -> 36
B101: =IF(ISBLANK(dms_E3_Projects_37),"",dms_E3_Projects_37) -> 37
B102: =IF(ISBLANK(dms_E3_Projects_38),"",dms_E3_Projects_38) -> 38
B103: =IF(ISBLANK(dms_E3_Projects_39),"",dms_E3_Projects_39) -> 39
B104: =IF(ISBLANK(dms_E3_Projects_40),"",dms_E3_Projects_40) -> 40
B105: =IF(ISBLANK(dms_E3_Projects_41),"",dms_E3_Projects_41) -> 41
B106: =IF(ISBLANK(dms_E3_Projects_42),"",dms_E3_Projects_42) -> 42
B107: =IF(ISBLANK(dms_E3_Projects_43),"",dms_E3_Projects_43) -> 43
B108: =IF(ISBLANK(dms_E3_Projects_44),"",dms_E3_Projects_44) -> 44
B109: =IF(ISBLANK(dms_E3_Projects_45),"",dms_E3_Projects_45) -> 45
B110: =IF(ISBLANK(dms_E3_Projects_46),"",dms_E3_Projects_46) -> 46
B111: =IF(ISBLANK(dms_E3_Projects_47),"",dms_E3_Projects_47) -> 47
B112: =IF(ISBLANK(dms_E3_Projects_48),"",dms_E3_Projects_48) -> 48
B113: =IF(ISBLANK(dms_E3_Projects_49),"",dms_E3_Projects_49) -> 49
B114: =IF(ISBLANK(dms_E3_Projects_50),"",dms_E3_Projects_50) -> 50
B115: Aggregate of other projects with total expenditure of less than $500,000
B116: Total | C116: =SUM(C65:C115) -> 0 | D116: =SUM(D65:D115) -> 0 | E116: =SUM(E65:E115) -> 0 | F116: =SUM(F65:F115) -> 0 | G116: =SUM(G65:G115) -> 0
B118: B. DIRECT CONTRACTOR EXPENDITURE
C119: EXPENDITURE
C120: $0's, Nominal
C121: =dms_y1 -> 2017 | D121: =dms_y2 -> 2018 | E121: =dms_y3 -> 2019 | F121: =dms_y4 -> 2020 | G121: =dms_y5 -> 2021
B122: =IF(ISBLANK(dms_E3_Projects_01),"",dms_E3_Projects_01) -> 3055 MAJOR PROJECTS - PLENTY VALLEY NETWORK AUGMENTATION
B123: =IF(ISBLANK(dms_E3_Projects_02),"",dms_E3_Projects_02) -> 3093 MAJOR PROJECTS - DANDENONG TO CRIB POINT DUPLICATION
B124: =IF(ISBLANK(dms_E3_Projects_03),"",dms_E3_Projects_03) -> 3049 MAJOR PROJECTS - CRANBOURNE EAST
B125: =IF(ISBLANK(dms_E3_Projects_04),"",dms_E3_Projects_04) -> 3106 MAJOR PROJECTS - H07 CRANBOURNE HP AUGMENTATION
B126: =IF(ISBLANK(dms_E3_Projects_05),"",dms_E3_Projects_05) -> 5
B127: =IF(ISBLANK(dms_E3_Projects_06),"",dms_E3_Projects_06) -> 6
B128: =IF(ISBLANK(dms_E3_Projects_07),"",dms_E3_Projects_07) -> 7
B129: =IF(ISBLANK(dms_E3_Projects_08),"",dms_E3_Projects_08) -> 8
B130: =IF(ISBLANK(dms_E3_Projects_09),"",dms_E3_Projects_09) -> 9
B131: =IF(ISBLANK(dms_E3_Projects_10),"",dms_E3_Projects_10) -> 10
B132: =IF(ISBLANK(dms_E3_Projects_11),"",dms_E3_Projects_11) -> 11
B133: =IF(ISBLANK(dms_E3_Projects_12),"",dms_E3_Projects_12) -> 12
B134: =IF(ISBLANK(dms_E3_Projects_13),"",dms_E3_Projects_13) -> 13
B135: =IF(ISBLANK(dms_E3_Projects_14),"",dms_E3_Projects_14) -> 14
B136: =IF(ISBLANK(dms_E3_Projects_15),"",dms_E3_Projects_15) -> 15
B137: =IF(ISBLANK(dms_E3_Projects_16),"",dms_E3_Projects_16) -> 16
B138: =IF(ISBLANK(dms_E3_Projects_17),"",dms_E3_Projects_17) -> 17
B139: =IF(ISBLANK(dms_E3_Projects_18),"",dms_E3_Projects_18) -> 18
B140: =IF(ISBLANK(dms_E3_Projects_19),"",dms_E3_Projects_19) -> 19
B141: =IF(ISBLANK(dms_E3_Projects_20),"",dms_E3_Projects_20) -> 20
B142: =IF(ISBLANK(dms_E3_Projects_21),"",dms_E3_Projects_21) -> 21
B143: =IF(ISBLANK(dms_E3_Projects_22),"",dms_E3_Projects_22) -> 22
B144: =IF(ISBLANK(dms_E3_Projects_23),"",dms_E3_Projects_23) -> 23
B145: =IF(ISBLANK(dms_E3_Projects_24),"",dms_E3_Projects_24) -> 24
B146: =IF(ISBLANK(dms_E3_Projects_25),"",dms_E3_Projects_25) -> 25
B147: =IF(ISBLANK(dms_E3_Projects_25),"",dms_E3_Projects_26) -> 26
B148: =IF(ISBLANK(dms_E3_Projects_27),"",dms_E3_Projects_27) -> 27
B149: =IF(ISBLANK(dms_E3_Projects_28),"",dms_E3_Projects_28) -> 28
B150: =IF(ISBLANK(dms_E3_Projects_29),"",dms_E3_Projects_29) -> 29
B151: =IF(ISBLANK(dms_E3_Projects_30),"",dms_E3_Projects_30) -> 30
B152: =IF(ISBLANK(dms_E3_Projects_31),"",dms_E3_Projects_31) -> 31
B153: =IF(ISBLANK(dms_E3_Projects_32),"",dms_E3_Projects_32) -> 32
B154: =IF(ISBLANK(dms_E3_Projects_33),"",dms_E3_Projects_33) -> 33
B155: =IF(ISBLANK(dms_E3_Projects_34),"",dms_E3_Projects_34) -> 34
B156: =IF(ISBLANK(dms_E3_Projects_35),"",dms_E3_Projects_35) -> 35
B157: =IF(ISBLANK(dms_E3_Projects_36),"",dms_E3_Projects_36) -> 36
B158: =IF(ISBLANK(dms_E3_Projects_37),"",dms_E3_Projects_37) -> 37
B159: =IF(ISBLANK(dms_E3_Projects_38),"",dms_E3_Projects_38) -> 38
B160: =IF(ISBLANK(dms_E3_Projects_39),"",dms_E3_Projects_39) -> 39
B161: =IF(ISBLANK(dms_E3_Projects_40),"",dms_E3_Projects_40) -> 40
B162: =IF(ISBLANK(dms_E3_Projects_41),"",dms_E3_Projects_41) -> 41
B163: =IF(ISBLANK(dms_E3_Projects_42),"",dms_E3_Projects_42) -> 42
B164: =IF(ISBLANK(dms_E3_Projects_43),"",dms_E3_Projects_43) -> 43
B165: =IF(ISBLANK(dms_E3_Projects_44),"",dms_E3_Projects_44) -> 44
B166: =IF(ISBLANK(dms_E3_Projects_45),"",dms_E3_Projects_45) -> 45
B167: =IF(ISBLANK(dms_E3_Projects_46),"",dms_E3_Projects_46) -> 46
B168: =IF(ISBLANK(dms_E3_Projects_47),"",dms_E3_Projects_47) -> 47
B169: =IF(ISBLANK(dms_E3_Projects_48),"",dms_E3_Projects_48) -> 48
B170: =IF(ISBLANK(dms_E3_Projects_49),"",dms_E3_Projects_49) -> 49
B171: =IF(ISBLANK(dms_E3_Projects_50),"",dms_E3_Projects_50) -> 50
B172: Aggregate of other projects with total expenditure of less than $500,000
B173: Total
B175: C. DIRECT MATERIAL EXPENDITURE
C176: EXPENDITURE
C177: $0's, Nominal
C178: =dms_y1 -> 2017 | D178: =dms_y2 -> 2018 | E178: =dms_y3 -> 2019 | F178: =dms_y4 -> 2020 | G178: =dms_y5 -> 2021
B179: =IF(ISBLANK(dms_E3_Projects_01),"",dms_E3_Projects_01) -> 3055 MAJOR PROJECTS - PLENTY VALLEY NETWORK AUGMENTATION
B180: =IF(ISBLANK(dms_E3_Projects_02),"",dms_E3_Projects_02) -> 3093 MAJOR PROJECTS - DANDENONG TO CRIB POINT DUPLICATION
B181: =IF(ISBLANK(dms_E3_Projects_03),"",dms_E3_Projects_03) -> 3049 MAJOR PROJECTS - CRANBOURNE EAST
B182: =IF(ISBLANK(dms_E3_Projects_04),"",dms_E3_Projects_04) -> 3106 MAJOR PROJECTS - H07 CRANBOURNE HP AUGMENTATION
B183: =IF(ISBLANK(dms_E3_Projects_05),"",dms_E3_Projects_05) -> 5
B184: =IF(ISBLANK(dms_E3_Projects_06),"",dms_E3_Projects_06) -> 6
B185: =IF(ISBLANK(dms_E3_Projects_07),"",dms_E3_Projects_07) -> 7
B186: =IF(ISBLANK(dms_E3_Projects_08),"",dms_E3_Projects_08) -> 8
B187: =IF(ISBLANK(dms_E3_Projects_09),"",dms_E3_Projects_09) -> 9
B188: =IF(ISBLANK(dms_E3_Projects_10),"",dms_E3_Projects_10) -> 10
B189: =IF(ISBLANK(dms_E3_Projects_11),"",dms_E3_Projects_11) -> 11
B190: =IF(ISBLANK(dms_E3_Projects_12),"",dms_E3_Projects_12) -> 12
B191: =IF(ISBLANK(dms_E3_Projects_13),"",dms_E3_Projects_13) -> 13
B192: =IF(ISBLANK(dms_E3_Projects_14),"",dms_E3_Projects_14) -> 14
B193: =IF(ISBLANK(dms_E3_Projects_15),"",dms_E3_Projects_15) -> 15
B194: =IF(ISBLANK(dms_E3_Projects_16),"",dms_E3_Projects_16) -> 16
B195: =IF(ISBLANK(dms_E3_Projects_17),"",dms_E3_Projects_17) -> 17
B196: =IF(ISBLANK(dms_E3_Projects_18),"",dms_E3_Projects_18) -> 18
B197: =IF(ISBLANK(dms_E3_Projects_19),"",dms_E3_Projects_19) -> 19
B198: =IF(ISBLANK(dms_E3_Projects_20),"",dms_E3_Projects_20) -> 20
B199: =IF(ISBLANK(dms_E3_Projects_21),"",dms_E3_Projects_21) -> 21
B200: =IF(ISBLANK(dms_E3_Projects_22),"",dms_E3_Projects_22) -> 22
B201: =IF(ISBLANK(dms_E3_Projects_23),"",dms_E3_Projects_23) -> 23
B202: =IF(ISBLANK(dms_E3_Projects_24),"",dms_E3_Projects_24) -> 24
B203: =IF(ISBLANK(dms_E3_Projects_25),"",dms_E3_Projects_25) -> 25
B204: =IF(ISBLANK(dms_E3_Projects_25),"",dms_E3_Projects_26) -> 26
B205: =IF(ISBLANK(dms_E3_Projects_27),"",dms_E3_Projects_27) -> 27
B206: =IF(ISBLANK(dms_E3_Projects_28),"",dms_E3_Projects_28) -> 28
... 529 more rows

Sheet E4. Meter replacement
B1: =INDEX(dms_Worksheet_List,MATCH(dms_Model,dms_Model_List)) -> HISTORICAL ANNUAL REPORTING
B2: =dms_TradingName -> AGN (Albury and Victoria)
B3: =dms_Header_Span -> 2017 to 2021
B4: E4. METER REPLACEMENT
B6: E4.1 - CAPEX
B7: E4.1.1 - NEW METERS ACQUIRED
C8: EXPENDITURE
C9: $0's, Nominal
C10: =dms_y1 -> 2017 | D10: =dms_y2 -> 2018 | E10: =dms_y3 -> 2019 | F10: =dms_y4 -> 2020 | G10: =dms_y5 -> 2021
B11: A. DIRECT INTERNAL LABOUR EXPENDITURE
B12: Residential
B13: Industrial and Commercial
B14: Other
B15: Total | C15: =SUM(C12:C14) -> 0 | D15: =SUM(D12:D14) -> 0 | E15: =SUM(E12:E14) -> 0 | F15: =SUM(F12:F14) -> 0 | G15: =SUM(G12:G14) -> 0
B16: B. DIRECT CONTRACTOR EXPENDITURE
B17: Residential
B18: Industrial and Commercial
B19: Other
B20: Total
B21: C. DIRECT MATERIAL EXPENDITURE
B22: Residential
B23: Industrial and Commercial
B24: Other
B25: Total | C25: =SUM(C22:C24) -> 0 | D25: =SUM(D22:D24) -> 0 | E25: =SUM(E22:E24) -> 0 | F25: =SUM(F22:F24) -> 0 | G25: =SUM(G22:G24) -> 0
B26: D. OTHER DIRECT EXPENDITURE
B27: Residential
B28: Industrial and Commercial
B29: Other
B30: Total
B31: E. RELATED PARTY MARGIN EXPENDITURE
B32: Residential
B33: Industrial and Commercial
B34: Other
B35: Total | C35: =SUM(C32:C34) -> 0 | D35: =SUM(D32:D34) -> 0 | E35: =SUM(E32:E34) -> 0 | F35: =SUM(F32:F34) -> 0 | G35: =SUM(G32:G34) -> 0
B36: F. CAPITAL CONTRIBUTIONS included in the above
B37: Residential
B38: Industrial and Commercial
B39: Other
B40: Total | C40: =SUM(C37:C39) -> 0 | D40: =SUM(D37:D39) -> 0 | E40: =SUM(E37:E39) -> 0 | F40: =SUM(F37:F39) -> 0 | G40: =SUM(G37:G39) -> 0
B41: TOTAL
B43: E4.1.2 - METER REFURBISHMENT
C44: EXPENDITURE
C45: $0's, Nominal
C46: =dms_y1 -> 2017 | D46: =dms_y2 -> 2018 | E46: =dms_y3 -> 2019 | F46: =dms_y4 -> 2020 | G46: =dms_y5 -> 2021
B47: A. DIRECT INTERNAL LABOUR EXPENDITURE
B48: Residential
B49: Industrial and Commercial
B50: Other
B51: Total | C51: =SUM(C48:C50) -> 0 | D51: =SUM(D48:D50) -> 0 | E51: =SUM(E48:E50) -> 0 | F51: =SUM(F48:F50) -> 0 | G51: =SUM(G48:G50) -> 0
B52: B. DIRECT CONTRACTOR EXPENDITURE
B53: Residential
B54: Industrial and Commercial
B55: Other
B56: Total
B57: C. DIRECT MATERIAL EXPENDITURE
B58: Residential
B59: Industrial and Commercial
B60: Other
B61: Total | C61: =SUM(C58:C60) -> 0 | D61: =SUM(D58:D60) -> 0 | E61: =SUM(E58:E60) -> 0 | F61: =SUM(F58:F60) -> 0 | G61: =SUM(G58:G60) -> 0
B62: D. OTHER DIRECT EXPENDITURE
B63: Residential
B64: Industrial and Commercial
B65: Other
B66: Total
B67: E. RELATED PARTY MARGIN EXPENDITURE
B68: Residential
B69: Industrial and Commercial
B70: Other
B71: Total | C71: =SUM(C68:C70) -> 0 | D71: =SUM(D68:D70) -> 0 | E71: =SUM(E68:E70) -> 0 | F71: =SUM(F68:F70) -> 0 | G71: =SUM(G68:G70) -> 0
B72: F. CAPITAL CONTRIBUTIONS included in the above
B73: Residential
B74: Industrial and Commercial
B75: Other
B76: Total | C76: =SUM(C73:C75) -> 0 | D76: =SUM(D73:D75) -> 0 | E76: =SUM(E73:E75) -> 0 | F76: =SUM(F73:F75) -> 0 | G76: =SUM(G73:G75) -> 0
B77: TOTAL
B79: E4.1.3 - METER INSTALLATION
C80: EXPENDITURE
C81: $0's, Nominal
C82: =dms_y1 -> 2017 | D82: =dms_y2 -> 2018 | E82: =dms_y3 -> 2019 | F82: =dms_y4 -> 2020 | G82: =dms_y5 -> 2021
B83: A. DIRECT INTERNAL LABOUR EXPENDITURE
B84: Residential
B85: Industrial and Commercial
B86: Other
B87: Total | C87: =SUM(C84:C86) -> 0 | D87: =SUM(D84:D86) -> 0 | E87: =SUM(E84:E86) -> 0 | F87: =SUM(F84:F86) -> 0 | G87: =SUM(G84:G86) -> 0
B88: B. DIRECT CONTRACTOR EXPENDITURE
B89: Residential
B90: Industrial and Commercial
B91: Other
B92: Total | C92: =SUM(C89:C91) -> 0 | D92: =SUM(D89:D91) -> 0 | E92: =SUM(E89:E91) -> 0 | F92: =SUM(F89:F91) -> 0 | G92: =SUM(G89:G91) -> 0
B93: C. DIRECT MATERIAL EXPENDITURE
B94: Residential
B95: Industrial and Commercial
B96: Other
B97: Total | C97: =SUM(C94:C96) -> 0 | D97: =SUM(D94:D96) -> 0 | E97: =SUM(E94:E96) -> 0 | F97: =SUM(F94:F96) -> 0 | G97: =SUM(G94:G96) -> 0
B98: D. OTHER DIRECT EXPENDITURE
B99: Residential
B100: Industrial and Commercial
B101: Other
B102: Total | C102: =SUM(C99:C101) -> 0 | D102: =SUM(D99:D101) -> 0 | E102: =SUM(E99:E101) -> 0 | F102: =SUM(F99:F101) -> 0 | G102: =SUM(G99:G101) -> 0
B103: E. RELATED PARTY MARGIN EXPENDITURE
B104: Residential
B105: Industrial and Commercial
B106: Other
B107: Total | C107: =SUM(C104:C106) -> 0 | D107: =SUM(D104:D106) -> 0 | E107: =SUM(E104:E106) -> 0 | F107: =SUM(F104:F106) -> 0 | G107: =SUM(G104:G106) -> 0
B108: F. CAPITAL CONTRIBUTIONS included in the above
B109: Residential
B110: Industrial and Commercial
B111: Other
B112: Total | C112: =SUM(C109:C111) -> 0 | D112: =SUM(D109:D111) -> 0 | E112: =SUM(E109:E111) -> 0 | F112: =SUM(F109:F111) -> 0 | G112: =SUM(G109:G111) -> 0
B113: TOTAL | C113: =SUM(C87,C92,C97,C102,C107,C112) -> 0 | D113: =SUM(D87,D92,D97,D102,D107,D112) -> 0 | E113: =SUM(E87,E92,E97,E102,E107,E112) -> 0 | F113: =SUM(F87,F92,F97,F102,F107,F112) -> 0 | G113: =SUM(G87,G92,G97,G102,G107,G112) -> 0
B115: E4.1.4 - OTHER METER REPLACEMENT CAPEX
C116: EXPENDITURE
C117: $0's, Nominal
C118: =dms_y1 -> 2017 | D118: =dms_y2 -> 2018 | E118: =dms_y3 -> 2019 | F118: =dms_y4 -> 2020 | G118: =dms_y5 -> 2021
B119: A. DIRECT INTERNAL LABOUR EXPENDITURE
B120: Residential
B121: Industrial and Commercial
B122: Other
B123: Total | C123: =SUM(C120:C122) -> 0 | D123: =SUM(D120:D122) -> 0 | E123: =SUM(E120:E122) -> 0 | F123: =SUM(F120:F122) -> 0 | G123: =SUM(G120:G122) -> 0
B124: B. DIRECT CONTRACTOR EXPENDITURE
B125: Residential
B126: Industrial and Commercial
B127: Other
B128: Total | C128: =SUM(C125:C127) -> 0 | D128: =SUM(D125:D127) -> 0 | E128: =SUM(E125:E127) -> 0 | F128: =SUM(F125:F127) -> 0 | G128: =SUM(G125:G127) -> 0
B129: C. DIRECT MATERIAL EXPENDITURE
B130: Residential
B131: Industrial and Commercial
B132: Other
B133: Total | C133: =SUM(C130:C132) -> 0 | D133: =SUM(D130:D132) -> 0 | E133: =SUM(E130:E132) -> 0 | F133: =SUM(F130:F132) -> 0 | G133: =SUM(G130:G132) -> 0
B134: D. OTHER DIRECT EXPENDITURE
B135: Residential
B136: Industrial and Commercial
B137: Other
B138: Total | C138: =SUM(C135:C137) -> 0 | D138: =SUM(D135:D137) -> 0 | E138: =SUM(E135:E137) -> 0 | F138: =SUM(F135:F137) -> 0 | G138: =SUM(G135:G137) -> 0
B139: E. RELATED PARTY MARGIN EXPENDITURE
B140: Residential
B141: Industrial and Commercial
B142: Other
B143: Total | C143: =SUM(C140:C142) -> 0 | D143: =SUM(D140:D142) -> 0 | E143: =SUM(E140:E142) -> 0 | F143: =SUM(F140:F142) -> 0 | G143: =SUM(G140:G142) -> 0
B144: F. CAPITAL CONTRIBUTIONS included in the above
B145: Residential
B146: Industrial and Commercial
B147: Other
B148: Total | C148: =SUM(C145:C147) -> 0 | D148: =SUM(D145:D147) -> 0 | E148: =SUM(E145:E147) -> 0 | F148: =SUM(F145:F147) -> 0 | G148: =SUM(G145:G147) -> 0
B149: TOTAL | C149: =SUM(C123,C128,C133,C138,C143,C148) -> 0 | D149: =SUM(D123,D128,D133,D138,D143,D148) -> 0 | E149: =SUM(E123,E128,E133,E138,E143,E148) -> 0 | F149: =SUM(F123,F128,F133,F138,F143,F148) -> 0 | G149: =SUM(G123,G128,G133,G138,G143,G148) -> 0
B152: E4.2 - VOLUMES
B153: E4.2.1 - NUMBER OF NEW METERS ACQUIRED
C154: VOLUMES
C155: 0s
C156: =dms_y1 -> 2017 | D156: =dms_y2 -> 2018 | E156: =dms_y3 -> 2019 | F156: =dms_y4 -> 2020 | G156: =dms_y5 -> 2021
B157: Residential | C157: 21642.8 | D157: 18797.38 | E157: 18909.75 | F157: 19363.68 | G157: 17411.25882
B158: Industrial and commercial | C158: 499.8 | D158: 348.69 | E158: 564.48 | F158: 680.82 | G158: 883.5940594
B159: Other
B160: Total | C160: =SUM(C157:C159) -> 22142.6 | D160: =SUM(D157:D159) -> 19146.07 | E160: =SUM(E157:E159) -> 19474.23 | F160: =SUM(F157:F159) -> 20044.5 | G160: =SUM(G157:G159) -> 18294.85288
B163: E4.2.2 - NUMBER OF METERS REFURBISHED
C164: VOLUMES
C165: 0s
C166: =dms_y1 -> 2017 | D166: =dms_y2 -> 2018 | E166: =dms_y3 -> 2019 | F166: =dms_y4 -> 2020 | G166: =dms_y5 -> 2021
B167: A. REFURBISHABLE METERS REMOVED
B168: Residential | C168: 13837.2 | D168: 19564.62 | E168: 14265.25 | F168: 11372.32 | G168: 9906.741176
B169: Industrial and commercial | C169: 333.2 | D169: 242.31 | E169: 587.52 | F169: 940.18 | G169: 1251.405941
B170: Other | C170: 0 | D170: 0 | E170: 0 | F170: 0 | G170: 0
B171: Total | C171: 14170.4 | D171: 19806.93 | E171: 14852.77 | F171: 12312.5 | G171: 11158.14712
B172: B. METERS DECOMMISSIONED
B173: Residential
B174: Industrial and commercial
B175: Other meters
B176: Total
B177: TOTAL
B180: E4.2.3 - NUMBER OF METERS INSTALLED
C181: VOLUMES
C182: 0s
C183: =dms_y1 -> 2017 | D183: =dms_y2 -> 2018 | E183: =dms_y3 -> 2019 | F183: =dms_y4 -> 2020 | G183: =dms_y5 -> 2021
B184: Residential | C184: 35480 | D184: 38362 | E184: 33175 | F184: 30736 | G184: 27318
B185: Industrial and commercial | C185: 833 | D185: 591 | E185: 1152 | F185: 1621 | G185: 2135
B186: Other
B187: Total | C187: =SUM(C184:C186) -> 36313 | D187: =SUM(D184:D186) -> 38953 | E187: =SUM(E184:E186) -> 34327 | F187: =SUM(F184:F186) -> 32357 | G187: =SUM(G184:G186) -> 29453
B190: E4.2.4 - NUMBER OF METERS REMOVED / DECOMMISSIONED
C191: VOLUMES
C192: 0s
C193: =dms_y1 -> 2017 | D193: =dms_y2 -> 2018 | E193: =dms_y3 -> 2019 | F193: =dms_y4 -> 2020 | G193: =dms_y5 -> 2021
B194: Residential
B195: Industrial and commercial
B196: Other
B197: Total | C197: =SUM(C194:C196) -> 0 | D197: =SUM(D194:D196) -> 0 | E197: =SUM(E194:E196) -> 0 | F197: =SUM(F194:F196) -> 0 | G197: =SUM(G194:G196) -> 0
B200: E4.2.5 - OTHER METER REPLACEMENT VOLUMES
C201: VOLUMES
C202: 0s
C203: =dms_y1 -> 2017 | D203: =dms_y2 -> 2018 | E203: =dms_y3 -> 2019 | F203: =dms_y4 -> 2020 | G203: =dms_y5 -> 2021
B204: Residential
B205: Industrial and commercial
B206: Other
B207: Total | C207: =SUM(C204:C206) -> 0 | D207: =SUM(D204:D206) -> 0 | E207: =SUM(E204:E206) -> 0 | F207: =SUM(F204:F206) -> 0 | G207: =SUM(G204:G206) -> 0

Sheet E5. New Connections
B1: =INDEX(dms_Worksheet_List,MATCH(dms_Model,dms_Model_List)) -> HISTORICAL ANNUAL REPORTING
B2: =dms_TradingName -> AGN (Albury and Victoria)
B3: =dms_Header_Span -> 2017 to 2021
B4: E5. NEW CONNECTIONS
B6: E5.1 - EXPENDITURE
B7: E5.1.1 - CAPEX - BY CONNECTION TYPE
B8: A. DIRECT INTERNAL LABOUR EXPENDITURE
D9: EXPENDITURE
D10: $0's, Nominal
D11: =dms_y1 -> 2017 | E11: =dms_y2 -> 2018 | F11: =dms_y3 -> 2019 | G11: =dms_y4 -> 2020 | H11: =dms_y5 -> 2021
B12: (i) ELECTRICITY TO GAS
B13: Distribution Mains
B14: Inlet service pipes
B15: Meters
C16: Total | D16: =SUM(D13:D15) -> 0 | E16: =SUM(E13:E15) -> 0 | F16: =SUM(F13:F15) -> 0 | G16: =SUM(G13:G15) -> 0 | H16: =SUM(H13:H15) -> 0
B17: (ii) NEW HOMES
B18: Distribution Mains
B19: Inlet service pipes
B20: Meters
C21: Total | D21: =SUM(D18:D20) -> 0 | E21: =SUM(E18:E20) -> 0 | F21: =SUM(F18:F20) -> 0 | G21: =SUM(G18:G20) -> 0 | H21: =SUM(H18:H20) -> 0
B22: (iii) NEW MEDIUM DENSITY / HIGH RISE
B23: Distribution Mains
B24: Inlet service pipes
B25: Meters
C26: Total | D26: =SUM(D23:D25) -> 0 | E26: =SUM(E23:E25) -> 0 | F26: =SUM(F23:F25) -> 0 | G26: =SUM(G23:G25) -> 0 | H26: =SUM(H23:H25) -> 0
B27: (iv) INDUSTRIAL & COMMERCIAL TARIFF
B28: Distribution Mains
B29: Inlet service pipes
B30: Meters
C31: Total | D31: =SUM(D28:D30) -> 0 | E31: =SUM(E28:E30) -> 0 | F31: =SUM(F28:F30) -> 0 | G31: =SUM(G28:G30) -> 0 | H31: =SUM(H28:H30) -> 0
B32: (v) INDUSTRIAL & COMMERCIAL CONTRACT
B33: Distribution Mains
B34: Inlet service pipes
B35: Meters
C36: Total | D36: =SUM(D33:D35) -> 0 | E36: =SUM(E33:E35) -> 0 | F36: =SUM(F33:F35) -> 0 | G36: =SUM(G33:G35) -> 0 | H36: =SUM(H33:H35) -> 0
C37: TOTAL | D37: =SUM(D36,D31,D26,D21,D16) -> 0 | E37: =SUM(E36,E31,E26,E21,E16) -> 0 | F37: =SUM(F36,F31,F26,F21,F16) -> 0 | G37: =SUM(G36,G31,G26,G21,G16) -> 0 | H37: =SUM(H36,H31,H26,H21,H16) -> 0
B39: B. DIRECT CONTRACTOR EXPENDITURE
D40: EXPENDITURE
D41: $0's, Nominal
D42: =dms_y1 -> 2017 | E42: =dms_y2 -> 2018 | F42: =dms_y3 -> 2019 | G42: =dms_y4 -> 2020 | H42: =dms_y5 -> 2021
B43: (i) ELECTRICITY TO GAS
B44: Distribution Mains
B45: Inlet service pipes
B46: Meters
C47: Total
B48: (ii) NEW HOMES
B49: Distribution Mains
B50: Inlet service pipes
B51: Meters
C52: Total
B53: (iii) NEW MEDIUM DENSITY / HIGH RISE
B54: Distribution Mains
B55: Inlet service pipes
B56: Meters
C57: Total
B58: (iv) INDUSTRIAL & COMMERCIAL TARIFF
B59: Distribution Mains
B60: Inlet service pipes
B61: Meters
C62: Total
B63: (v) INDUSTRIAL & COMMERCIAL CONTRACT
B64: Distribution Mains
B65: Inlet service pipes
B66: Meters
C67: Total
C68: TOTAL
B70: C. DIRECT MATERIAL EXPENDITURE
D71: EXPENDITURE
D72: $0's, Nominal
D73: =dms_y1 -> 2017 | E73: =dms_y2 -> 2018 | F73: =dms_y3 -> 2019 | G73: =dms_y4 -> 2020 | H73: =dms_y5 -> 2021
B74: (i) ELECTRICITY TO GAS
B75: Distribution Mains
B76: Inlet service pipes
B77: Meters
C78: Total | D78: =SUM(D75:D77) -> 0 | E78: =SUM(E75:E77) -> 0 | F78: =SUM(F75:F77) -> 0 | G78: =SUM(G75:G77) -> 0 | H78: =SUM(H75:H77) -> 0
B79: (ii) NEW HOMES
B80: Distribution Mains
B81: Inlet service pipes
B82: Meters
C83: Total | D83: =SUM(D80:D82) -> 0 | E83: =SUM(E80:E82) -> 0 | F83: =SUM(F80:F82) -> 0 | G83: =SUM(G80:G82) -> 0 | H83: =SUM(H80:H82) -> 0
B84: (iii) NEW MEDIUM DENSITY / HIGH RISE
B85: Distribution Mains
B86: Inlet service pipes
B87: Meters
C88: Total | D88: =SUM(D85:D87) -> 0 | E88: =SUM(E85:E87) -> 0 | F88: =SUM(F85:F87) -> 0 | G88: =SUM(G85:G87) -> 0 | H88: =SUM(H85:H87) -> 0
B89: (iv) INDUSTRIAL & COMMERCIAL TARIFF
B90: Distribution Mains
B91: Inlet service pipes
B92: Meters
C93: Total | D93: =SUM(D90:D92) -> 0 | E93: =SUM(E90:E92) -> 0 | F93: =SUM(F90:F92) -> 0 | G93: =SUM(G90:G92) -> 0 | H93: =SUM(H90:H92) -> 0
B94: (v) INDUSTRIAL & COMMERCIAL CONTRACT
B95: Distribution Mains
B96: Inlet service pipes
B97: Meters
C98: Total | D98: =SUM(D95:D97) -> 0 | E98: =SUM(E95:E97) -> 0 | F98: =SUM(F95:F97) -> 0 | G98: =SUM(G95:G97) -> 0 | H98: =SUM(H95:H97) -> 0
C99: TOTAL | D99: =SUM(D98,D93,D88,D83,D78) -> 0 | E99: =SUM(E98,E93,E88,E83,E78) -> 0 | F99: =SUM(F98,F93,F88,F83,F78) -> 0 | G99: =SUM(G98,G93,G88,G83,G78) -> 0 | H99: =SUM(H98,H93,H88,H83,H78) -> 0
B101: D. OTHER DIRECT EXPENDITURE
D102: EXPENDITURE
D103: $0's, Nominal
D104: =dms_y1 -> 2017 | E104: =dms_y2 -> 2018 | F104: =dms_y3 -> 2019 | G104: =dms_y4 -> 2020 | H104: =dms_y5 -> 2021
B105: (i) ELECTRICITY TO GAS
B106: Distribution Mains
B107: Inlet service pipes
B108: Meters
C109: Total
B110: (ii) NEW HOMES
B111: Distribution Mains
B112: Inlet service pipes
B113: Meters
C114: Total
B115: (iii) NEW MEDIUM DENSITY / HIGH RISE
B116: Distribution Mains
B117: Inlet service pipes
B118: Meters
C119: Total
B120: (iv) INDUSTRIAL & COMMERCIAL TARIFF
B121: Distribution Mains
B122: Inlet service pipes
B123: Meters
C124: Total
B125: (v) INDUSTRIAL & COMMERCIAL CONTRACT
B126: Distribution Mains
B127: Inlet service pipes
B128: Meters
C129: Total
C130: TOTAL
B132: E. RELATED PARTY MARGIN EXPENDITURE
D133: EXPENDITURE
D134: $0's, Nominal
D135: =dms_y1 -> 2017 | E135: =dms_y2 -> 2018 | F135: =dms_y3 -> 2019 | G135: =dms_y4 -> 2020 | H135: =dms_y5 -> 2021
B136: (i) ELECTRICITY TO GAS
B137: Distribution Mains
B138: Inlet service pipes
B139: Meters
C140: Total | D140: =SUM(D137:D139) -> 0 | E140: =SUM(E137:E139) -> 0 | F140: =SUM(F137:F139) -> 0 | G140: =SUM(G137:G139) -> 0 | H140: =SUM(H137:H139) -> 0
B141: (ii) NEW HOMES
B142: Distribution Mains
B143: Inlet service pipes
B144: Meters
C145: Total | D145: =SUM(D142:D144) -> 0 | E145: =SUM(E142:E144) -> 0 | F145: =SUM(F142:F144) -> 0 | G145: =SUM(G142:G144) -> 0 | H145: =SUM(H142:H144) -> 0
B146: (iii) NEW MEDIUM DENSITY / HIGH RISE
B147: Distribution Mains
B148: Inlet service pipes
B149: Meters
C150: Total | D150: =SUM(D147:D149) -> 0 | E150: =SUM(E147:E149) -> 0 | F150: =SUM(F147:F149) -> 0 | G150: =SUM(G147:G149) -> 0 | H150: =SUM(H147:H149) -> 0
B151: (iv) INDUSTRIAL & COMMERCIAL TARIFF
B152: Distribution Mains
B153: Inlet service pipes
B154: Meters
C155: Total | D155: =SUM(D152:D154) -> 0 | E155: =SUM(E152:E154) -> 0 | F155: =SUM(F152:F154) -> 0 | G155: =SUM(G152:G154) -> 0 | H155: =SUM(H152:H154) -> 0
B156: (v) INDUSTRIAL & COMMERCIAL CONTRACT
B157: Distribution Mains
B158: Inlet service pipes
B159: Meters
C160: Total | D160: =SUM(D157:D159) -> 0 | E160: =SUM(E157:E159) -> 0 | F160: =SUM(F157:F159) -> 0 | G160: =SUM(G157:G159) -> 0 | H160: =SUM(H157:H159) -> 0
C161: TOTAL | D161: =SUM(D160,D155,D150,D145,D140) -> 0 | E161: =SUM(E160,E155,E150,E145,E140) -> 0 | F161: =SUM(F160,F155,F150,F145,F140) -> 0 | G161: =SUM(G160,G155,G150,G145,G140) -> 0 | H161: =SUM(H160,H155,H150,H145,H140) -> 0
B163: F. CAPITAL CONTRIBUTIONS included in the above
D164: EXPENDITURE
D165: $0's, Nominal
D166: =dms_y1 -> 2017 | E166: =dms_y2 -> 2018 | F166: =dms_y3 -> 2019 | G166: =dms_y4 -> 2020 | H166: =dms_y5 -> 2021
B167: (i) ELECTRICITY TO GAS
B168: Distribution Mains
B169: Inlet service pipes
B170: Meters
C171: Total | D171: =SUM(D168:D170) -> 0 | E171: =SUM(E168:E170) -> 0 | F171: =SUM(F168:F170) -> 0 | G171: =SUM(G168:G170) -> 0 | H171: =SUM(H168:H170) -> 0
B172: (ii) NEW HOMES
B173: Distribution Mains | D173: 3856822.989 | E173: 1331598.769 | F173: 1667564.665 | G173: 1406697.16 | H173: 2330864.504
B174: Inlet service pipes | D174: 0 | E174: 0 | F174: 0 | G174: 0 | H174: 0
B175: Meters | D175: 0 | E175: 0 | F175: 0 | G175: 27721.51658 | H175: 1563267.638
C176: Total | D176: =SUM(D173:D175) -> 3856822.989 | E176: =SUM(E173:E175) -> 1331598.769 | F176: =SUM(F173:F175) -> 1667564.665 | G176: =SUM(G173:G175) -> 1434418.676 | H176: =SUM(H173:H175) -> 3894132.142
B177: (iii) NEW MEDIUM DENSITY / HIGH RISE
B178: Distribution Mains
B179: Inlet service pipes
B180: Meters
C181: Total | D181: =SUM(D178:D180) -> 0 | E181: =SUM(E178:E180) -> 0 | F181: =SUM(F178:F180) -> 0 | G181: =SUM(G178:G180) -> 0 | H181: =SUM(H178:H180) -> 0
B182: (iv) INDUSTRIAL & COMMERCIAL TARIFF
B183: Distribution Mains
B184: Inlet service pipes
B185: Meters
C186: Total | D186: =SUM(D183:D185) -> 0 | E186: =SUM(E183:E185) -> 0 | F186: =SUM(F183:F185) -> 0 | G186: =SUM(G183:G185) -> 0 | H186: =SUM(H183:H185) -> 0
B187: (v) INDUSTRIAL & COMMERCIAL CONTRACT
B188: Distribution Mains | D188: 30379.05813 | E188: 762547.6587 | F188: 1721617.965 | G188: 3273710.422 | H188: 3684177.887
B189: Inlet service pipes | D189: 197053.0759 | E189: 121653.4866 | F189: 340531.9519 | G189: 290497.3785 | H189: 201522.7207
B190: Meters | D190: 348302.5013 | E190: 390048.4443 | F190: 250035.5428 | G190: 540171.1646 | H190: 121391.2809
C191: Total | D191: =SUM(D188:D190) -> 575734.6354 | E191: =SUM(E188:E190) -> 1274249.59 | F191: =SUM(F188:F190) -> 2312185.46 | G191: =SUM(G188:G190) -> 4104378.965 | H191: =SUM(H188:H190) -> 4007091.888
C192: TOTAL | D192: =SUM(D191,D186,D181,D176,D171) -> 4432557.625 | E192: =SUM(E191,E186,E181,E176,E171) -> 2605848.358 | F192: =SUM(F191,F186,F181,F176,F171) -> 3979750.125 | G192: =SUM(G191,G186,G181,G176,G171) -> 5538797.642 | H192: =SUM(H191,H186,H181,H176,H171) -> 7901224.031
B195: E5.2 - UNIT RATES
B196: E5.2.1 - UNIT RATES - PER CONNECTION - BY CONNECTION TYPE
D197: RATES PER CONNECTION
D198: $0's, Nominal
C199: Units | D199: =dms_y1 -> 2017 | E199: =dms_y2 -> 2018 | F199: =dms_y3 -> 2019 | G199: =dms_y4 -> 2020 | H199: =dms_y5 -> 2021
B200: A. ELECTRICITY TO GAS
B201: Distribution mains | C201: per metre per connection
B202: Inlet service pipes | C202: per service per connection
B203: Meters | C203: number per connection
B204: B. NEW HOMES
B205: Distribution mains | C205: per metre per connection
B206: Inlet service pipes | C206: per service per connection
B207: Meters | C207: number per connection
B208: C. NEW MEDIUM DENSITY / HIGH RISE
... 67 more rows

Sheet E6. Non-network
B1: =INDEX(dms_Worksheet_List,MATCH(dms_Model,dms_Model_List)) -> HISTORICAL ANNUAL REPORTING
B2: =dms_TradingName -> AGN (Albury and Victoria)
B3: =dms_Header_Span -> 2017 to 2021
B4: E6. NON-NETWORK EXPENDITURE
B6: E6.5 - TELEMETRY
B8: Please list all projects here:
B9: Project 1
B26: E6.5.1 - CAPEX - BY PROJECT
B27: A. DIRECT INTERNAL LABOUR EXPENDITURE
C28: EXPENDITURE
C29: $0's, Nominal
C30: =dms_y1 -> 2017 | D30: =dms_y2 -> 2018 | E30: =dms_y3 -> 2019 | F30: =dms_y4 -> 2020 | G30: =dms_y5 -> 2021
B31: =IF(ISBLANK(dms_E65_Projects_01),"",dms_E65_Projects_01) -> Project 1
B32: =IF(ISBLANK(dms_E65_Projects_02),"",dms_E65_Projects_02) -> 
B33: =IF(ISBLANK(dms_E65_Projects_03),"",dms_E65_Projects_03) -> 
B34: =IF(ISBLANK(dms_E65_Projects_04),"",dms_E65_Projects_04) -> 
B35: =IF(ISBLANK(dms_E65_Projects_05),"",dms_E65_Projects_05) -> 
B36: =IF(ISBLANK(dms_E65_Projects_06),"",dms_E65_Projects_06) -> 
B37: =IF(ISBLANK(dms_E65_Projects_07),"",dms_E65_Projects_07) -> 
B38: =IF(ISBLANK(dms_E65_Projects_08),"",dms_E65_Projects_08) -> 
B39: =IF(ISBLANK(dms_E65_Projects_09),"",dms_E65_Projects_09) -> 
B40: =IF(ISBLANK(dms_E65_Projects_10),"",dms_E65_Projects_10) -> 
B41: =IF(ISBLANK(dms_E65_Projects_11),"",dms_E65_Projects_11) -> 
B42: =IF(ISBLANK(dms_E65_Projects_12),"",dms_E65_Projects_12) -> 
B43: =IF(ISBLANK(dms_E65_Projects_13),"",dms_E65_Projects_13) -> 
B44: =IF(ISBLANK(dms_E65_Projects_14),"",dms_E65_Projects_14) -> 
B45: =IF(ISBLANK(dms_E65_Projects_15),"",dms_E65_Projects_15) -> 
B46: Aggregate of other projects with total expenditure of less than $500,000
B47: Total | C47: =SUM(C31:C46) -> 0 | D47: =SUM(D31:D46) -> 0 | E47: =SUM(E31:E46) -> 0 | F47: =SUM(F31:F46) -> 0 | G47: =SUM(G31:G46) -> 0
B49: B. DIRECT CONTRACTOR EXPENDITURE
B50: =IF(ISBLANK(dms_E65_Projects_01),"",dms_E65_Projects_01) -> Project 1
B51: =IF(ISBLANK(dms_E65_Projects_02),"",dms_E65_Projects_02) -> 
B52: =IF(ISBLANK(dms_E65_Projects_03),"",dms_E65_Projects_03) -> 
B53: =IF(ISBLANK(dms_E65_Projects_04),"",dms_E65_Projects_04) -> 
B54: =IF(ISBLANK(dms_E65_Projects_05),"",dms_E65_Projects_05) -> 
B55: =IF(ISBLANK(dms_E65_Projects_06),"",dms_E65_Projects_06) -> 
B56: =IF(ISBLANK(dms_E65_Projects_07),"",dms_E65_Projects_07) -> 
B57: =IF(ISBLANK(dms_E65_Projects_08),"",dms_E65_Projects_08) -> 
B58: =IF(ISBLANK(dms_E65_Projects_09),"",dms_E65_Projects_09) -> 
B59: =IF(ISBLANK(dms_E65_Projects_10),"",dms_E65_Projects_10) -> 
B60: =IF(ISBLANK(dms_E65_Projects_11),"",dms_E65_Projects_11) -> 
B61: =IF(ISBLANK(dms_E65_Projects_12),"",dms_E65_Projects_12) -> 
B62: =IF(ISBLANK(dms_E65_Projects_13),"",dms_E65_Projects_13) -> 
B63: =IF(ISBLANK(dms_E65_Projects_14),"",dms_E65_Projects_14) -> 
B64: =IF(ISBLANK(dms_E65_Projects_15),"",dms_E65_Projects_15) -> 
B65: Aggregate of other projects with total expenditure of less than $500,000 | C65: 234884.89 | D65: 288393.33 | E65: 171343.04 | F65: 485777.88 | G65: 400236.41
B66: Total | C66: =SUM(C50:C65) -> 234884.89 | D66: =SUM(D50:D65) -> 288393.33 | E66: =SUM(E50:E65) -> 171343.04 | F66: =SUM(F50:F65) -> 485777.88 | G66: =SUM(G50:G65) -> 400236.41
B68: C. DIRECT MATERIAL EXPENDITURE
B69: =IF(ISBLANK(dms_E65_Projects_01),"",dms_E65_Projects_01) -> Project 1
B70: =IF(ISBLANK(dms_E65_Projects_02),"",dms_E65_Projects_02) -> 
B71: =IF(ISBLANK(dms_E65_Projects_03),"",dms_E65_Projects_03) -> 
B72: =IF(ISBLANK(dms_E65_Projects_04),"",dms_E65_Projects_04) -> 
B73: =IF(ISBLANK(dms_E65_Projects_05),"",dms_E65_Projects_05) -> 
B74: =IF(ISBLANK(dms_E65_Projects_06),"",dms_E65_Projects_06) -> 
B75: =IF(ISBLANK(dms_E65_Projects_07),"",dms_E65_Projects_07) -> 
B76: =IF(ISBLANK(dms_E65_Projects_08),"",dms_E65_Projects_08) -> 
B77: =IF(ISBLANK(dms_E65_Projects_09),"",dms_E65_Projects_09) -> 
B78: =IF(ISBLANK(dms_E65_Projects_10),"",dms_E65_Projects_10) -> 
B79: =IF(ISBLANK(dms_E65_Projects_11),"",dms_E65_Projects_11) -> 
B80: =IF(ISBLANK(dms_E65_Projects_12),"",dms_E65_Projects_12) -> 
B81: =IF(ISBLANK(dms_E65_Projects_13),"",dms_E65_Projects_13) -> 
B82: =IF(ISBLANK(dms_E65_Projects_14),"",dms_E65_Projects_14) -> 
B83: =IF(ISBLANK(dms_E65_Projects_15),"",dms_E65_Projects_15) -> 
B84: Aggregate of other projects with total expenditure of less than $500,000
B85: Total | C85: =SUM(C69:C84) -> 0 | D85: =SUM(D69:D84) -> 0 | E85: =SUM(E69:E84) -> 0 | F85: =SUM(F69:F84) -> 0 | G85: =SUM(G69:G84) -> 0
B87: D. OTHER DIRECT EXPENDITURE
B88: =IF(ISBLANK(dms_E65_Projects_01),"",dms_E65_Projects_01) -> Project 1
B89: =IF(ISBLANK(dms_E65_Projects_02),"",dms_E65_Projects_02) -> 
B90: =IF(ISBLANK(dms_E65_Projects_03),"",dms_E65_Projects_03) -> 
B91: =IF(ISBLANK(dms_E65_Projects_04),"",dms_E65_Projects_04) -> 
B92: =IF(ISBLANK(dms_E65_Projects_05),"",dms_E65_Projects_05) -> 
B93: =IF(ISBLANK(dms_E65_Projects_06),"",dms_E65_Projects_06) -> 
B94: =IF(ISBLANK(dms_E65_Projects_07),"",dms_E65_Projects_07) -> 
B95: =IF(ISBLANK(dms_E65_Projects_08),"",dms_E65_Projects_08) -> 
B96: =IF(ISBLANK(dms_E65_Projects_09),"",dms_E65_Projects_09) -> 
B97: =IF(ISBLANK(dms_E65_Projects_10),"",dms_E65_Projects_10) -> 
B98: =IF(ISBLANK(dms_E65_Projects_11),"",dms_E65_Projects_11) -> 
B99: =IF(ISBLANK(dms_E65_Projects_12),"",dms_E65_Projects_12) -> 
B100: =IF(ISBLANK(dms_E65_Projects_13),"",dms_E65_Projects_13) -> 
B101: =IF(ISBLANK(dms_E65_Projects_14),"",dms_E65_Projects_14) -> 
B102: =IF(ISBLANK(dms_E65_Projects_15),"",dms_E65_Projects_15) -> 
B103: Aggregate of other projects with total expenditure of less than $500,000 | C103: 25743.93749 | D103: 32443.42904 | E103: 18364.79534 | F103: 45700.65637 | G103: 37384.95361
B104: Total | C104: =SUM(C88:C103) -> 25743.93749 | D104: =SUM(D88:D103) -> 32443.42904 | E104: =SUM(E88:E103) -> 18364.79534 | F104: =SUM(F88:F103) -> 45700.65637 | G104: =SUM(G88:G103) -> 37384.95361
B106: E. RELATED PARTY MARGIN EXPENDITURE
B107: =IF(ISBLANK(dms_E65_Projects_01),"",dms_E65_Projects_01) -> Project 1
B108: =IF(ISBLANK(dms_E65_Projects_02),"",dms_E65_Projects_02) -> 
B109: =IF(ISBLANK(dms_E65_Projects_03),"",dms_E65_Projects_03) -> 
B110: =IF(ISBLANK(dms_E65_Projects_04),"",dms_E65_Projects_04) -> 
B111: =IF(ISBLANK(dms_E65_Projects_05),"",dms_E65_Projects_05) -> 
B112: =IF(ISBLANK(dms_E65_Projects_06),"",dms_E65_Projects_06) -> 
B113: =IF(ISBLANK(dms_E65_Projects_07),"",dms_E65_Projects_07) -> 
B114: =IF(ISBLANK(dms_E65_Projects_08),"",dms_E65_Projects_08) -> 
B115: =IF(ISBLANK(dms_E65_Projects_09),"",dms_E65_Projects_09) -> 
B116: =IF(ISBLANK(dms_E65_Projects_10),"",dms_E65_Projects_10) -> 
B117: =IF(ISBLANK(dms_E65_Projects_11),"",dms_E65_Projects_11) -> 
B118: =IF(ISBLANK(dms_E65_Projects_12),"",dms_E65_Projects_12) -> 
B119: =IF(ISBLANK(dms_E65_Projects_13),"",dms_E65_Projects_13) -> 
B120: =IF(ISBLANK(dms_E65_Projects_14),"",dms_E65_Projects_14) -> 
B121: =IF(ISBLANK(dms_E65_Projects_15),"",dms_E65_Projects_15) -> 
B122: Aggregate of other projects with total expenditure of less than $500,000
B123: Total | C123: =SUM(C107:C122) -> 0 | D123: =SUM(D107:D122) -> 0 | E123: =SUM(E107:E122) -> 0 | F123: =SUM(F107:F122) -> 0 | G123: =SUM(G107:G122) -> 0
B125: F. CAPITAL CONTRIBUTIONS included in the above
B126: =IF(ISBLANK(dms_E65_Projects_01),"",dms_E65_Projects_01) -> Project 1
B127: =IF(ISBLANK(dms_E65_Projects_02),"",dms_E65_Projects_02) -> 
B128: =IF(ISBLANK(dms_E65_Projects_03),"",dms_E65_Projects_03) -> 
B129: =IF(ISBLANK(dms_E65_Projects_04),"",dms_E65_Projects_04) -> 
B130: =IF(ISBLANK(dms_E65_Projects_05),"",dms_E65_Projects_05) -> 
B131: =IF(ISBLANK(dms_E65_Projects_06),"",dms_E65_Projects_06) -> 
B132: =IF(ISBLANK(dms_E65_Projects_07),"",dms_E65_Projects_07) -> 
B133: =IF(ISBLANK(dms_E65_Projects_08),"",dms_E65_Projects_08) -> 
B134: =IF(ISBLANK(dms_E65_Projects_09),"",dms_E65_Projects_09) -> 
B135: =IF(ISBLANK(dms_E65_Projects_10),"",dms_E65_Projects_10) -> 
B136: =IF(ISBLANK(dms_E65_Projects_11),"",dms_E65_Projects_11) -> 
B137: =IF(ISBLANK(dms_E65_Projects_12),"",dms_E65_Projects_12) -> 
B138: =IF(ISBLANK(dms_E65_Projects_13),"",dms_E65_Projects_13) -> 
B139: =IF(ISBLANK(dms_E65_Projects_14),"",dms_E65_Projects_14) -> 
B140: =IF(ISBLANK(dms_E65_Projects_15),"",dms_E65_Projects_15) -> 
B141: Aggregate of other projects with total expenditure of less than $500,000
B142: Total | C142: =SUM(C126:C141) -> 0 | D142: =SUM(D126:D141) -> 0 | E142: =SUM(E126:E141) -> 0 | F142: =SUM(F126:F141) -> 0 | G142: =SUM(G126:G141) -> 0

Sheet E10. Overheads
B1: =INDEX(dms_Worksheet_List,MATCH(dms_Model,dms_Model_List)) -> HISTORICAL ANNUAL REPORTING
B2: =dms_TradingName -> AGN (Albury and Victoria)
B3: =dms_Header_Span -> 2017 to 2021
B4: E10. OVERHEADS EXPENDITURE
B6: E10.1 - NETWORK
C7: EXPENDITURE
C8: $0's, Nominal
C9: =dms_y1 -> 2017 | D9: =dms_y2 -> 2018 | E9: =dms_y3 -> 2019 | F9: =dms_y4 -> 2020 | G9: =dms_y5 -> 2021
B10: E10.1.1 - OPEX
B11: Reference services
B12: Non-reference services
B13: Total | C13: =SUM(C11:C12) -> 0 | D13: =SUM(D11:D12) -> 0 | E13: =SUM(E11:E12) -> 0 | F13: =SUM(F11:F12) -> 0 | G13: =SUM(G11:G12) -> 0
B14: E10.1.2 - CAPEX
B15: Reference services | C15: 9998380.25 | D15: 9051194.603 | E15: 10534343.83 | F15: 12434002 | G15: 13827032.6
B16: Non-reference services
B17: Total | C17: =SUM(C15:C16) -> 9998380.25 | D17: =SUM(D15:D16) -> 9051194.603 | E17: =SUM(E15:E16) -> 10534343.83 | F17: =SUM(F15:F16) -> 12434002 | G17: =SUM(G15:G16) -> 13827032.6
B21: E10.2 - CORPORATE
C22: EXPENDITURE
C23: $0's, Nominal
C24: =dms_y1 -> 2017 | D24: =dms_y2 -> 2018 | E24: =dms_y3 -> 2019 | F24: =dms_y4 -> 2020 | G24: =dms_y5 -> 2021
B25: E10.2.1 - OPEX
B26: Reference services
B27: Non-reference services
B28: Total | C28: =SUM(C26:C27) -> 0 | D28: =SUM(D26:D27) -> 0 | E28: =SUM(E26:E27) -> 0 | F28: =SUM(F26:F27) -> 0 | G28: =SUM(G26:G27) -> 0
B29: E10.2.2 - CAPEX
B30: Reference services
B31: Non-reference services
B32: Total | C32: =SUM(C30:C31) -> 0 | D32: =SUM(D30:D31) -> 0 | E32: =SUM(E30:E31) -> 0 | F32: =SUM(F30:F31) -> 0 | G32: =SUM(G30:G31) -> 0

Sheet E12. ICT
B1: =INDEX(dms_Worksheet_List,MATCH(dms_Model,dms_Model_List)) -> HISTORICAL ANNUAL REPORTING
B2: =dms_TradingName -> AGN (Albury and Victoria)
B3: =dms_Header_Span -> 2017 to 2021
B4: E12. INFORMATION AND COMMUNICATION TECHNOLOGY
B6: Please list all projects here:
B7: 3198 MAJOR PROJECTS - GIS CONSOLIDATION
B8: 3202 MAJOR PROJECTS - MOBILITY INTEGRATION
B9: 3203 MAJOR PROJECTS - BUSINESS INTELLIGENCE
B10: 3210 MAJOR PROJECTS - EAM UPGRADE
B11: 3229 MAJOR PROJECTS - APPLICATIONS RENEWAL - CC&B UPGRADE
B12: 3235 MAJOR PROJECTS - BIZTALK SYSTEM UPGRADE
B13: AGIG IT Strategy and Roadmap
B14: 3254 MAJOR PROJECTS - LIFE SUPPORT B2B
B23: E12.1 - CAPEX - BY PROJECT
B24: A. DIRECT INTERNAL LABOUR EXPENDITURE
C25: EXPENDITURE
C26: $0's, Nominal
C27: =dms_y1 -> 2017 | D27: =dms_y2 -> 2018 | E27: =dms_y3 -> 2019 | F27: =dms_y4 -> 2020 | G27: =dms_y5 -> 2021
B28: =IF(ISBLANK(dms_E12_Projects_01),"",dms_E12_Projects_01) -> 3198 MAJOR PROJECTS - GIS CONSOLIDATION | C28: 0 | D28: 0 | E28: 0 | F28: 0 | G28: 0
B29: =IF(ISBLANK(dms_E12_Projects_02),"",dms_E12_Projects_02) -> 3202 MAJOR PROJECTS - MOBILITY INTEGRATION | C29: 0 | D29: 0 | E29: 0 | F29: 0 | G29: 0
B30: =IF(ISBLANK(dms_E12_Projects_03),"",dms_E12_Projects_03) -> 3203 MAJOR PROJECTS - BUSINESS INTELLIGENCE | C30: 0 | D30: 0 | E30: 0 | F30: 0 | G30: 0
B31: =IF(ISBLANK(dms_E12_Projects_04),"",dms_E12_Projects_04) -> 3210 MAJOR PROJECTS - EAM UPGRADE | C31: 0 | D31: 0 | E31: 0 | F31: 0 | G31: 0
B32: =IF(ISBLANK(dms_E12_Projects_05),"",dms_E12_Projects_05) -> 3229 MAJOR PROJECTS - APPLICATIONS RENEWAL - CC&B UPGRADE | C32: 0 | D32: 0 | E32: 0 | F32: 0 | G32: 0
B33: =IF(ISBLANK(dms_E12_Projects_06),"",dms_E12_Projects_06) -> 3235 MAJOR PROJECTS - BIZTALK SYSTEM UPGRADE | C33: 0 | D33: 0 | E33: 0 | F33: 0 | G33: 0
B34: =IF(ISBLANK(dms_E12_Projects_07),"",dms_E12_Projects_07) -> AGIG IT Strategy and Roadmap | C34: 0 | D34: 0 | E34: 483403.0577 | F34: 762913.7564 | G34: 3400377.954
B35: =IF(ISBLANK(dms_E12_Projects_08),"",dms_E12_Projects_08) -> 3254 MAJOR PROJECTS - LIFE SUPPORT B2B | C35: 0 | D35: 0 | E35: 0 | F35: 0 | G35: 0
B36: =IF(ISBLANK(dms_E12_Projects_09),"",dms_E12_Projects_09) -> 
B37: =IF(ISBLANK(dms_E12_Projects_10),"",dms_E12_Projects_10) -> 
B38: =IF(ISBLANK(dms_E12_Projects_11),"",dms_E12_Projects_11) -> 
B39: =IF(ISBLANK(dms_E12_Projects_12),"",dms_E12_Projects_12) -> 
B40: =IF(ISBLANK(dms_E12_Projects_13),"",dms_E12_Projects_13) -> 
B41: =IF(ISBLANK(dms_E12_Projects_14),"",dms_E12_Projects_14) -> 
B42: =IF(ISBLANK(dms_E12_Projects_15),"",dms_E12_Projects_15) -> 
B43: Aggregate of other projects with total expenditure of less than $500,000 | C43: 0 | D43: 0 | E43: 0 | F43: 8054.74 | G43: 0
B44: Total | C44: =SUM(C28:C43) -> 0 | D44: =SUM(D28:D43) -> 0 | E44: =SUM(E28:E43) -> 483403.0577 | F44: =SUM(F28:F43) -> 770968.4964 | G44: =SUM(G28:G43) -> 3400377.954
B46: B. DIRECT CONTRACTOR EXPENDITURE
B47: =IF(ISBLANK(dms_E12_Projects_01),"",dms_E12_Projects_01) -> 3198 MAJOR PROJECTS - GIS CONSOLIDATION | C47: 563314.5054 | D47: 955696.7341 | E47: 2320878.869 | F47: 3832470.661 | G47: 6791449.817
B48: =IF(ISBLANK(dms_E12_Projects_02),"",dms_E12_Projects_02) -> 3202 MAJOR PROJECTS - MOBILITY INTEGRATION | C48: 111980 | D48: 419128.3225 | E48: 439767.7094 | F48: 85765.97389 | G48: 2521578.815
B49: =IF(ISBLANK(dms_E12_Projects_03),"",dms_E12_Projects_03) -> 3203 MAJOR PROJECTS - BUSINESS INTELLIGENCE | C49: 186021.176 | D49: 269029.5768 | E49: 213308.9647 | F49: 0 | G49: 0
B50: =IF(ISBLANK(dms_E12_Projects_04),"",dms_E12_Projects_04) -> 3210 MAJOR PROJECTS - EAM UPGRADE | C50: 228884.5669 | D50: 690811.5657 | E50: -20878.01599 | F50: 0 | G50: 0
B51: =IF(ISBLANK(dms_E12_Projects_05),"",dms_E12_Projects_05) -> 3229 MAJOR PROJECTS - APPLICATIONS RENEWAL - CC&B UPGRADE | C51: 102473.7602 | D51: 531028.3493 | E51: 3158207.798 | F51: 1575110.083 | G51: 0
B52: =IF(ISBLANK(dms_E12_Projects_06),"",dms_E12_Projects_06) -> 3235 MAJOR PROJECTS - BIZTALK SYSTEM UPGRADE | C52: 0 | D52: 501763.3886 | E52: 11008.13548 | F52: 0 | G52: 0
B53: =IF(ISBLANK(dms_E12_Projects_07),"",dms_E12_Projects_07) -> AGIG IT Strategy and Roadmap | C53: 0 | D53: 0 | E53: 1783.325182 | F53: 4277.068393 | G53: 37988.94515
B54: =IF(ISBLANK(dms_E12_Projects_08),"",dms_E12_Projects_08) -> 3254 MAJOR PROJECTS - LIFE SUPPORT B2B | C54: 0 | D54: 0 | E54: 0 | F54: 0 | G54: 1118225.845
B55: =IF(ISBLANK(dms_E12_Projects_09),"",dms_E12_Projects_09) -> 
B56: =IF(ISBLANK(dms_E12_Projects_10),"",dms_E12_Projects_10) -> 
B57: =IF(ISBLANK(dms_E12_Projects_11),"",dms_E12_Projects_11) -> 
B58: =IF(ISBLANK(dms_E12_Projects_12),"",dms_E12_Projects_12) -> 
B59: =IF(ISBLANK(dms_E12_Projects_13),"",dms_E12_Projects_13) -> 
B60: =IF(ISBLANK(dms_E12_Projects_14),"",dms_E12_Projects_14) -> 
B61: =IF(ISBLANK(dms_E12_Projects_15),"",dms_E12_Projects_15) -> 
B62: Aggregate of other projects with total expenditure of less than $500,000 | C62: 801079.0594 | D62: 569197.2395 | E62: 673638.2115 | F62: 409567.2509 | G62: 651541.8984
B63: Total | C63: =SUM(C47:C62) -> 1993753.068 | D63: =SUM(D47:D62) -> 3936655.176 | E63: =SUM(E47:E62) -> 6797714.997 | F63: =SUM(F47:F62) -> 5907191.038 | G63: =SUM(G47:G62) -> 11120785.32
B65: C. DIRECT MATERIAL EXPENDITURE
B66: =IF(ISBLANK(dms_E12_Projects_01),"",dms_E12_Projects_01) -> 3198 MAJOR PROJECTS - GIS CONSOLIDATION
B67: =IF(ISBLANK(dms_E12_Projects_02),"",dms_E12_Projects_02) -> 3202 MAJOR PROJECTS - MOBILITY INTEGRATION
B68: =IF(ISBLANK(dms_E12_Projects_03),"",dms_E12_Projects_03) -> 3203 MAJOR PROJECTS - BUSINESS INTELLIGENCE
B69: =IF(ISBLANK(dms_E12_Projects_04),"",dms_E12_Projects_04) -> 3210 MAJOR PROJECTS - EAM UPGRADE
B70: =IF(ISBLANK(dms_E12_Projects_05),"",dms_E12_Projects_05) -> 3229 MAJOR PROJECTS - APPLICATIONS RENEWAL - CC&B UPGRADE
B71: =IF(ISBLANK(dms_E12_Projects_06),"",dms_E12_Projects_06) -> 3235 MAJOR PROJECTS - BIZTALK SYSTEM UPGRADE
B72: =IF(ISBLANK(dms_E12_Projects_07),"",dms_E12_Projects_07) -> AGIG IT Strategy and Roadmap
B73: =IF(ISBLANK(dms_E12_Projects_08),"",dms_E12_Projects_08) -> 3254 MAJOR PROJECTS - LIFE SUPPORT B2B
B74: =IF(ISBLANK(dms_E12_Projects_09),"",dms_E12_Projects_09) -> 
B75: =IF(ISBLANK(dms_E12_Projects_10),"",dms_E12_Projects_10) -> 
B76: =IF(ISBLANK(dms_E12_Projects_11),"",dms_E12_Projects_11) -> 
B77: =IF(ISBLANK(dms_E12_Projects_12),"",dms_E12_Projects_12) -> 
B78: =IF(ISBLANK(dms_E12_Projects_13),"",dms_E12_Projects_13) -> 
B79: =IF(ISBLANK(dms_E12_Projects_14),"",dms_E12_Projects_14) -> 
B80: =IF(ISBLANK(dms_E12_Projects_15),"",dms_E12_Projects_15) -> 
B81: Aggregate of other projects with total expenditure of less than $500,000 | C81: 0 | D81: 0 | E81: 53914.63472 | F81: 242109.2848 | G81: 97349.92404
B82: Total | C82: =SUM(C66:C81) -> 0 | D82: =SUM(D66:D81) -> 0 | E82: =SUM(E66:E81) -> 53914.63472 | F82: =SUM(F66:F81) -> 242109.2848 | G82: =SUM(G66:G81) -> 97349.92404
B84: D. OTHER DIRECT EXPENDITURE
B85: =IF(ISBLANK(dms_E12_Projects_01),"",dms_E12_Projects_01) -> 3198 MAJOR PROJECTS - GIS CONSOLIDATION
B86: =IF(ISBLANK(dms_E12_Projects_02),"",dms_E12_Projects_02) -> 3202 MAJOR PROJECTS - MOBILITY INTEGRATION
B87: =IF(ISBLANK(dms_E12_Projects_03),"",dms_E12_Projects_03) -> 3203 MAJOR PROJECTS - BUSINESS INTELLIGENCE
B88: =IF(ISBLANK(dms_E12_Projects_04),"",dms_E12_Projects_04) -> 3210 MAJOR PROJECTS - EAM UPGRADE
B89: =IF(ISBLANK(dms_E12_Projects_05),"",dms_E12_Projects_05) -> 3229 MAJOR PROJECTS - APPLICATIONS RENEWAL - CC&B UPGRADE
B90: =IF(ISBLANK(dms_E12_Projects_06),"",dms_E12_Projects_06) -> 3235 MAJOR PROJECTS - BIZTALK SYSTEM UPGRADE
B91: =IF(ISBLANK(dms_E12_Projects_07),"",dms_E12_Projects_07) -> AGIG IT Strategy and Roadmap | C91: 0 | D91: 0 | E91: 352422.7805 | F91: 843035.6455 | G91: 339391.9207
B92: =IF(ISBLANK(dms_E12_Projects_08),"",dms_E12_Projects_08) -> 3254 MAJOR PROJECTS - LIFE SUPPORT B2B
B93: =IF(ISBLANK(dms_E12_Projects_09),"",dms_E12_Projects_09) -> 
B94: =IF(ISBLANK(dms_E12_Projects_10),"",dms_E12_Projects_10) -> 
B95: =IF(ISBLANK(dms_E12_Projects_11),"",dms_E12_Projects_11) -> 
B96: =IF(ISBLANK(dms_E12_Projects_12),"",dms_E12_Projects_12) -> 
B97: =IF(ISBLANK(dms_E12_Projects_13),"",dms_E12_Projects_13) -> 
B98: =IF(ISBLANK(dms_E12_Projects_14),"",dms_E12_Projects_14) -> 
B99: =IF(ISBLANK(dms_E12_Projects_15),"",dms_E12_Projects_15) -> 
B100: Aggregate of other projects with total expenditure of less than $500,000 | E100: 407090.24
B101: Total | C101: =SUM(C85:C100) -> 0 | D101: =SUM(D85:D100) -> 0 | E101: =SUM(E85:E100) -> 759513.0205 | F101: =SUM(F85:F100) -> 843035.6455 | G101: =SUM(G85:G100) -> 339391.9207
B103: E. RELATED PARTY MARGIN EXPENDITURE
B104: =IF(ISBLANK(dms_E12_Projects_01),"",dms_E12_Projects_01) -> 3198 MAJOR PROJECTS - GIS CONSOLIDATION
B105: =IF(ISBLANK(dms_E12_Projects_02),"",dms_E12_Projects_02) -> 3202 MAJOR PROJECTS - MOBILITY INTEGRATION
B106: =IF(ISBLANK(dms_E12_Projects_03),"",dms_E12_Projects_03) -> 3203 MAJOR PROJECTS - BUSINESS INTELLIGENCE
B107: =IF(ISBLANK(dms_E12_Projects_04),"",dms_E12_Projects_04) -> 3210 MAJOR PROJECTS - EAM UPGRADE
B108: =IF(ISBLANK(dms_E12_Projects_05),"",dms_E12_Projects_05) -> 3229 MAJOR PROJECTS - APPLICATIONS RENEWAL - CC&B UPGRADE
B109: =IF(ISBLANK(dms_E12_Projects_06),"",dms_E12_Projects_06) -> 3235 MAJOR PROJECTS - BIZTALK SYSTEM UPGRADE
B110: =IF(ISBLANK(dms_E12_Projects_07),"",dms_E12_Projects_07) -> AGIG IT Strategy and Roadmap
B111: =IF(ISBLANK(dms_E12_Projects_08),"",dms_E12_Projects_08) -> 3254 MAJOR PROJECTS - LIFE SUPPORT B2B
B112: =IF(ISBLANK(dms_E12_Projects_09),"",dms_E12_Projects_09) -> 
B113: =IF(ISBLANK(dms_E12_Projects_10),"",dms_E12_Projects_10) -> 
B114: =IF(ISBLANK(dms_E12_Projects_11),"",dms_E12_Projects_11) -> 
B115: =IF(ISBLANK(dms_E12_Projects_12),"",dms_E12_Projects_12) -> 
B116: =IF(ISBLANK(dms_E12_Projects_13),"",dms_E12_Projects_13) -> 
B117: =IF(ISBLANK(dms_E12_Projects_14),"",dms_E12_Projects_14) -> 
B118: =IF(ISBLANK(dms_E12_Projects_15),"",dms_E12_Projects_15) -> 
B119: Aggregate of other projects with total expenditure of less than $500,000
B120: Total | C120: =SUM(C104:C119) -> 0 | D120: =SUM(D104:D119) -> 0 | E120: =SUM(E104:E119) -> 0 | F120: =SUM(F104:F119) -> 0 | G120: =SUM(G104:G119) -> 0
B122: F. CAPITAL CONTRIBUTIONS included in the above
B123: =IF(ISBLANK(dms_E12_Projects_01),"",dms_E12_Projects_01) -> 3198 MAJOR PROJECTS - GIS CONSOLIDATION
B124: =IF(ISBLANK(dms_E12_Projects_02),"",dms_E12_Projects_02) -> 3202 MAJOR PROJECTS - MOBILITY INTEGRATION
B125: =IF(ISBLANK(dms_E12_Projects_03),"",dms_E12_Projects_03) -> 3203 MAJOR PROJECTS - BUSINESS INTELLIGENCE
B126: =IF(ISBLANK(dms_E12_Projects_04),"",dms_E12_Projects_04) -> 3210 MAJOR PROJECTS - EAM UPGRADE
B127: =IF(ISBLANK(dms_E12_Projects_05),"",dms_E12_Projects_05) -> 3229 MAJOR PROJECTS - APPLICATIONS RENEWAL - CC&B UPGRADE
B128: =IF(ISBLANK(dms_E12_Projects_06),"",dms_E12_Projects_06) -> 3235 MAJOR PROJECTS - BIZTALK SYSTEM UPGRADE
B129: =IF(ISBLANK(dms_E12_Projects_07),"",dms_E12_Projects_07) -> AGIG IT Strategy and Roadmap
B130: =IF(ISBLANK(dms_E12_Projects_08),"",dms_E12_Projects_08) -> 3254 MAJOR PROJECTS - LIFE SUPPORT B2B
B131: =IF(ISBLANK(dms_E12_Projects_09),"",dms_E12_Projects_09) -> 
B132: =IF(ISBLANK(dms_E12_Projects_10),"",dms_E12_Projects_10) -> 
B133: =IF(ISBLANK(dms_E12_Projects_11),"",dms_E12_Projects_11) -> 
B134: =IF(ISBLANK(dms_E12_Projects_12),"",dms_E12_Projects_12) -> 
B135: =IF(ISBLANK(dms_E12_Projects_13),"",dms_E12_Projects_13) -> 
B136: =IF(ISBLANK(dms_E12_Projects_14),"",dms_E12_Projects_14) -> 
B137: =IF(ISBLANK(dms_E12_Projects_15),"",dms_E12_Projects_15) -> 
B138: Aggregate of other projects with total expenditure of less than $500,000
B139: Total | C139: =SUM(C123:C138) -> 0 | D139: =SUM(D123:D138) -> 0 | E139: =SUM(E123:E138) -> 0 | F139: =SUM(F123:F138) -> 0 | G139: =SUM(G123:G138) -> 0

Sheet E13. Other capex
B1: =INDEX(dms_Worksheet_List,MATCH(dms_Model,dms_Model_List)) -> HISTORICAL ANNUAL REPORTING
B2: =dms_TradingName -> AGN (Albury and Victoria)
B3: =dms_Header_Span -> 2017 to 2021
B4: E13. OTHER CAPITAL EXPENDITURE
B6: Please list all projects here:
B7: 3056 MAJOR PROJECTS - MELBOURNE METRO RAIL
B8: 3006 MAJOR PROJECTS - PAKENHAM CITY GATE
B9: 3053 MAJOR PROJECTS - RACV CAPE SCHANK
B10: 2130 MAINS ALTERATIONS - CHARGEABLE - CAPEX - CMA Plenty rd Mernda Rail Ext
B11: 2130 MAINS ALTERATIONS - CHARGEABLE - CAPEX - V_CMA_CY19 Thompsons Rd
B12: 2130 MAINS ALTERATIONS - CHARGEABLE - CAPEX - V_MA_CY19 O'Herns Rd Epping
B13: 2130 MAINS ALTERATIONS - CHARGEABLE - CAPEX - V_CMA_CY20 NELA_CPB
B14: 2130 MAINS ALTERATIONS - CHARGEABLE - CAPEX - V_MA_CY20_O'Herns Rd S2
B15: 2130 MAINS ALTERATIONS - CHARGEABLE - CAPEX - V_CMA_CY20 Plenty Rd Stg2
B16: 2130 MAINS ALTERATIONS - CHARGEABLE - CAPEX - V_CMA_CY20_NELP EW STG1
B17: 2130 MAINS ALTERATIONS - CHARGEABLE - CAPEX - V_CMA_CY20 West Gate Tunnel
B18: 2130 MAINS ALTERATIONS - CHARGEABLE - CAPEX - V_CMA_CY20 RWA Plenty Rd Stg 2
B19: 2130 MAINS ALTERATIONS - CHARGEABLE - CAPEX - V_CMA_CY20 NELP EW STG2
B20: 2130 MAINS ALTERATIONS - CHARGEABLE - CAPEX - V_CMA_CY20 RWA RMH Gratten St
B21: 2130 MAINS ALTERATIONS - CHARGEABLE - CAPEX - V_CMA_CY21 O'Shea Monash Fwy
B22: 2130 MAINS ALTERATIONS - CHARGEABLE - CAPEX - V_CMA_CY21 RWA LXRA Berwick
B23: 2130 MAINS ALTERATION - CHARGEABLE - CAPEX <$500K
B24: 2106 C P - CORROSION PROTECTION - CAPEX <$500K
B25: 2106 C P - CORROSION PROTECTION - CAPEX - V_CP_CY20 TP Coating Repairs
B26: 2131 MAINS ALTERATION - NON CHARGEABLE - CAPEX
B27: 2139 NETWORK - REGULATOR STAY IN BUSINESS
B28: 2142 NETWORK - REGULATOR CAPEX
B29: 2152 NETWORK - STOPPLE EQUIPMENT
B30: 2190 OTHER - NON RETIC CAPITAL
B31: MAJOR PROJECTS - CAPEX <$500K
B32: 3111 MAJOR PROJECTS - LOGIC INDUSTRY PARK WODONGA
B33: 2140 WATER BATH OVERHAUL
B34: 2107 PIPELINE PIGGING (NO MODIFICATIONS)
B35: 2108 PIPELINE DCVG SURVEY
B36: 2461 TRANSMISSION PIPELINE - ENHANCEMENTS
B37: 3106 MAJOR PROJECTS - H07 CRANBOURNE HP AUGMENTATION - CITY GATE
B48: E13.1 - CAPEX - BY PROJECT
C49: EXPENDITURE
C50: $0's, Nominal
C51: =dms_y1 -> 2017 | D51: =dms_y2 -> 2018 | E51: =dms_y3 -> 2019 | F51: =dms_y4 -> 2020 | G51: =dms_y5 -> 2021
B52: A. DIRECT INTERNAL LABOUR EXPENDITURE
B53: =IF(ISBLANK(dms_E13_Projects_01),"",dms_E13_Projects_01) -> 3056 MAJOR PROJECTS - MELBOURNE METRO RAIL
B54: =IF(ISBLANK(dms_E13_Projects_02),"",dms_E13_Projects_02) -> 3006 MAJOR PROJECTS - PAKENHAM CITY GATE
B55: =IF(ISBLANK(dms_E13_Projects_03),"",dms_E13_Projects_03) -> 3053 MAJOR PROJECTS - RACV CAPE SCHANK
B56: =IF(ISBLANK(dms_E13_Projects_04),"",dms_E13_Projects_04) -> 2130 MAINS ALTERATIONS - CHARGEABLE - CAPEX - CMA Plenty rd Mernda Rail Ext
B57: =IF(ISBLANK(dms_E13_Projects_05),"",dms_E13_Projects_05) -> 2130 MAINS ALTERATIONS - CHARGEABLE - CAPEX - V_CMA_CY19 Thompsons Rd
B58: =IF(ISBLANK(dms_E13_Projects_06),"",dms_E13_Projects_06) -> 2130 MAINS ALTERATIONS - CHARGEABLE - CAPEX - V_MA_CY19 O'Herns Rd Epping
B59: =IF(ISBLANK(dms_E13_Projects_07),"",dms_E13_Projects_07) -> 2130 MAINS ALTERATIONS - CHARGEABLE - CAPEX - V_CMA_CY20 NELA_CPB
B60: =IF(ISBLANK(dms_E13_Projects_08),"",dms_E13_Projects_08) -> 2130 MAINS ALTERATIONS - CHARGEABLE - CAPEX - V_MA_CY20_O'Herns Rd S2
B61: =IF(ISBLANK(dms_E13_Projects_09),"",dms_E13_Projects_09) -> 2130 MAINS ALTERATIONS - CHARGEABLE - CAPEX - V_CMA_CY20 Plenty Rd Stg2
B62: =IF(ISBLANK(dms_E13_Projects_10),"",dms_E13_Projects_10) -> 2130 MAINS ALTERATIONS - CHARGEABLE - CAPEX - V_CMA_CY20_NELP EW STG1
B63: =IF(ISBLANK(dms_E13_Projects_11),"",dms_E13_Projects_11) -> 2130 MAINS ALTERATIONS - CHARGEABLE - CAPEX - V_CMA_CY20 West Gate Tunnel
B64: =IF(ISBLANK(dms_E13_Projects_12),"",dms_E13_Projects_12) -> 2130 MAINS ALTERATIONS - CHARGEABLE - CAPEX - V_CMA_CY20 RWA Plenty Rd Stg 2
B65: =IF(ISBLANK(dms_E13_Projects_13),"",dms_E13_Projects_13) -> 2130 MAINS ALTERATIONS - CHARGEABLE - CAPEX - V_CMA_CY20 NELP EW STG2
B66: =IF(ISBLANK(dms_E13_Projects_14),"",dms_E13_Projects_14) -> 2130 MAINS ALTERATIONS - CHARGEABLE - CAPEX - V_CMA_CY20 RWA RMH Gratten St
B67: =IF(ISBLANK(dms_E13_Projects_15),"",dms_E13_Projects_15) -> 2130 MAINS ALTERATIONS - CHARGEABLE - CAPEX - V_CMA_CY21 O'Shea Monash Fwy
B68: =IF(ISBLANK(dms_E13_Projects_16),"",dms_E13_Projects_16) -> 2130 MAINS ALTERATIONS - CHARGEABLE - CAPEX - V_CMA_CY21 RWA LXRA Berwick
B69: =IF(ISBLANK(dms_E13_Projects_17),"",dms_E13_Projects_17) -> 2130 MAINS ALTERATION - CHARGEABLE - CAPEX <$500K
B70: =IF(ISBLANK(dms_E13_Projects_18),"",dms_E13_Projects_18) -> 2106 C P - CORROSION PROTECTION - CAPEX <$500K
B71: =IF(ISBLANK(dms_E13_Projects_19),"",dms_E13_Projects_19) -> 2106 C P - CORROSION PROTECTION - CAPEX - V_CP_CY20 TP Coating Repairs
B72: =IF(ISBLANK(dms_E13_Projects_20),"",dms_E13_Projects_20) -> 2131 MAINS ALTERATION - NON CHARGEABLE - CAPEX
B73: =IF(ISBLANK(dms_E13_Projects_21),"",dms_E13_Projects_21) -> 2139 NETWORK - REGULATOR STAY IN BUSINESS
B74: =IF(ISBLANK(dms_E13_Projects_22),"",dms_E13_Projects_22) -> 2142 NETWORK - REGULATOR CAPEX
B75: =IF(ISBLANK(dms_E13_Projects_23),"",dms_E13_Projects_23) -> 2152 NETWORK - STOPPLE EQUIPMENT
B76: =IF(ISBLANK(dms_E13_Projects_24),"",dms_E13_Projects_24) -> 2190 OTHER - NON RETIC CAPITAL
B77: =IF(ISBLANK(dms_E13_Projects_25),"",dms_E13_Projects_25) -> MAJOR PROJECTS - CAPEX <$500K
B78: =IF(ISBLANK(dms_E13_Projects_26),"",dms_E13_Projects_26) -> 3111 MAJOR PROJECTS - LOGIC INDUSTRY PARK WODONGA
B79: =IF(ISBLANK(dms_E13_Projects_27),"",dms_E13_Projects_27) -> 2140 WATER BATH OVERHAUL
B80: =IF(ISBLANK(dms_E13_Projects_28),"",dms_E13_Projects_28) -> 2107 PIPELINE PIGGING (NO MODIFICATIONS)
B81: =IF(ISBLANK(dms_E13_Projects_29),"",dms_E13_Projects_29) -> 2108 PIPELINE DCVG SURVEY
B82: =IF(ISBLANK(dms_E13_Projects_30),"",dms_E13_Projects_30) -> 2461 TRANSMISSION PIPELINE - ENHANCEMENTS
B83: =IF(ISBLANK(dms_E13_Projects_31),"",dms_E13_Projects_31) -> 3106 MAJOR PROJECTS - H07 CRANBOURNE HP AUGMENTATION - CITY GATE
B84: =IF(ISBLANK(dms_E13_Projects_32),"",dms_E13_Projects_32) -> 
B85: =IF(ISBLANK(dms_E13_Projects_33),"",dms_E13_Projects_33) -> 
B86: =IF(ISBLANK(dms_E13_Projects_34),"",dms_E13_Projects_34) -> 
B87: =IF(ISBLANK(dms_E13_Projects_35),"",dms_E13_Projects_35) -> 
B88: =IF(ISBLANK(dms_E13_Projects_36),"",dms_E13_Projects_36) -> 
B89: =IF(ISBLANK(dms_E13_Projects_37),"",dms_E13_Projects_37) -> 
B90: =IF(ISBLANK(dms_E13_Projects_38),"",dms_E13_Projects_38) -> 
B91: =IF(ISBLANK(dms_E13_Projects_39),"",dms_E13_Projects_39) -> 
B92: =IF(ISBLANK(dms_E13_Projects_40),"",dms_E13_Projects_40) -> 
B93: Aggregate of other projects with total expenditure of less than $500,000
B94: Total | C94: =SUM(C53:C93) -> 0 | D94: =SUM(D53:D93) -> 0 | E94: =SUM(E53:E93) -> 0 | F94: =SUM(F53:F93) -> 0 | G94: =SUM(G53:G93) -> 0
B96: B. DIRECT CONTRACTOR EXPENDITURE
B97: =IF(ISBLANK(dms_E13_Projects_01),"",dms_E13_Projects_01) -> 3056 MAJOR PROJECTS - MELBOURNE METRO RAIL
B98: =IF(ISBLANK(dms_E13_Projects_02),"",dms_E13_Projects_02) -> 3006 MAJOR PROJECTS - PAKENHAM CITY GATE
B99: =IF(ISBLANK(dms_E13_Projects_03),"",dms_E13_Projects_03) -> 3053 MAJOR PROJECTS - RACV CAPE SCHANK
B100: =IF(ISBLANK(dms_E13_Projects_04),"",dms_E13_Projects_04) -> 2130 MAINS ALTERATIONS - CHARGEABLE - CAPEX - CMA Plenty rd Mernda Rail Ext
B101: =IF(ISBLANK(dms_E13_Projects_05),"",dms_E13_Projects_05) -> 2130 MAINS ALTERATIONS - CHARGEABLE - CAPEX - V_CMA_CY19 Thompsons Rd
B102: =IF(ISBLANK(dms_E13_Projects_06),"",dms_E13_Projects_06) -> 2130 MAINS ALTERATIONS - CHARGEABLE - CAPEX - V_MA_CY19 O'Herns Rd Epping
B103: =IF(ISBLANK(dms_E13_Projects_07),"",dms_E13_Projects_07) -> 2130 MAINS ALTERATIONS - CHARGEABLE - CAPEX - V_CMA_CY20 NELA_CPB
B104: =IF(ISBLANK(dms_E13_Projects_08),"",dms_E13_Projects_08) -> 2130 MAINS ALTERATIONS - CHARGEABLE - CAPEX - V_MA_CY20_O'Herns Rd S2
B105: =IF(ISBLANK(dms_E13_Projects_09),"",dms_E13_Projects_09) -> 2130 MAINS ALTERATIONS - CHARGEABLE - CAPEX - V_CMA_CY20 Plenty Rd Stg2
B106: =IF(ISBLANK(dms_E13_Projects_10),"",dms_E13_Projects_10) -> 2130 MAINS ALTERATIONS - CHARGEABLE - CAPEX - V_CMA_CY20_NELP EW STG1
B107: =IF(ISBLANK(dms_E13_Projects_11),"",dms_E13_Projects_11) -> 2130 MAINS ALTERATIONS - CHARGEABLE - CAPEX - V_CMA_CY20 West Gate Tunnel
B108: =IF(ISBLANK(dms_E13_Projects_12),"",dms_E13_Projects_12) -> 2130 MAINS ALTERATIONS - CHARGEABLE - CAPEX - V_CMA_CY20 RWA Plenty Rd Stg 2
B109: =IF(ISBLANK(dms_E13_Projects_13),"",dms_E13_Projects_13) -> 2130 MAINS ALTERATIONS - CHARGEABLE - CAPEX - V_CMA_CY20 NELP EW STG2
B110: =IF(ISBLANK(dms_E13_Projects_14),"",dms_E13_Projects_14) -> 2130 MAINS ALTERATIONS - CHARGEABLE - CAPEX - V_CMA_CY20 RWA RMH Gratten St
B111: =IF(ISBLANK(dms_E13_Projects_15),"",dms_E13_Projects_15) -> 2130 MAINS ALTERATIONS - CHARGEABLE - CAPEX - V_CMA_CY21 O'Shea Monash Fwy
B112: =IF(ISBLANK(dms_E13_Projects_16),"",dms_E13_Projects_16) -> 2130 MAINS ALTERATIONS - CHARGEABLE - CAPEX - V_CMA_CY21 RWA LXRA Berwick
B113: =IF(ISBLANK(dms_E13_Projects_17),"",dms_E13_Projects_17) -> 2130 MAINS ALTERATION - CHARGEABLE - CAPEX <$500K
B114: =IF(ISBLANK(dms_E13_Projects_18),"",dms_E13_Projects_18) -> 2106 C P - CORROSION PROTECTION - CAPEX <$500K
B115: =IF(ISBLANK(dms_E13_Projects_19),"",dms_E13_Projects_19) -> 2106 C P - CORROSION PROTECTION - CAPEX - V_CP_CY20 TP Coating Repairs
B116: =IF(ISBLANK(dms_E13_Projects_20),"",dms_E13_Projects_20) -> 2131 MAINS ALTERATION - NON CHARGEABLE - CAPEX
B117: =IF(ISBLANK(dms_E13_Projects_21),"",dms_E13_Projects_21) -> 2139 NETWORK - REGULATOR STAY IN BUSINESS
B118: =IF(ISBLANK(dms_E13_Projects_22),"",dms_E13_Projects_22) -> 2142 NETWORK - REGULATOR CAPEX
B119: =IF(ISBLANK(dms_E13_Projects_23),"",dms_E13_Projects_23) -> 2152 NETWORK - STOPPLE EQUIPMENT
B120: =IF(ISBLANK(dms_E13_Projects_24),"",dms_E13_Projects_24) -> 2190 OTHER - NON RETIC CAPITAL
B121: =IF(ISBLANK(dms_E13_Projects_25),"",dms_E13_Projects_25) -> MAJOR PROJECTS - CAPEX <$500K
B122: =IF(ISBLANK(dms_E13_Projects_26),"",dms_E13_Projects_26) -> 3111 MAJOR PROJECTS - LOGIC INDUSTRY PARK WODONGA
B123: =IF(ISBLANK(dms_E13_Projects_27),"",dms_E13_Projects_27) -> 2140 WATER BATH OVERHAUL
B124: =IF(ISBLANK(dms_E13_Projects_28),"",dms_E13_Projects_28) -> 2107 PIPELINE PIGGING (NO MODIFICATIONS)
B125: =IF(ISBLANK(dms_E13_Projects_29),"",dms_E13_Projects_29) -> 2108 PIPELINE DCVG SURVEY
B126: =IF(ISBLANK(dms_E13_Projects_30),"",dms_E13_Projects_30) -> 2461 TRANSMISSION PIPELINE - ENHANCEMENTS
B127: =IF(ISBLANK(dms_E13_Projects_31),"",dms_E13_Projects_31) -> 3106 MAJOR PROJECTS - H07 CRANBOURNE HP AUGMENTATION - CITY GATE
B128: =IF(ISBLANK(dms_E13_Projects_32),"",dms_E13_Projects_32) -> 
B129: =IF(ISBLANK(dms_E13_Projects_33),"",dms_E13_Projects_33) -> 
B130: =IF(ISBLANK(dms_E13_Projects_34),"",dms_E13_Projects_34) -> 
B131: =IF(ISBLANK(dms_E13_Projects_35),"",dms_E13_Projects_35) -> 
B132: =IF(ISBLANK(dms_E13_Projects_36),"",dms_E13_Projects_36) -> 
B133: =IF(ISBLANK(dms_E13_Projects_37),"",dms_E13_Projects_37) -> 
B134: =IF(ISBLANK(dms_E13_Projects_38),"",dms_E13_Projects_38) -> 
B135: =IF(ISBLANK(dms_E13_Projects_39),"",dms_E13_Projects_39) -> 
B136: =IF(ISBLANK(dms_E13_Projects_40),"",dms_E13_Projects_40) -> 
B137: Aggregate of other projects with total expenditure of less than $500,000
B138: Total
B140: C. DIRECT MATERIAL EXPENDITURE
B141: =IF(ISBLANK(dms_E13_Projects_01),"",dms_E13_Projects_01) -> 3056 MAJOR PROJECTS - MELBOURNE METRO RAIL
B142: =IF(ISBLANK(dms_E13_Projects_02),"",dms_E13_Projects_02) -> 3006 MAJOR PROJECTS - PAKENHAM CITY GATE
B143: =IF(ISBLANK(dms_E13_Projects_03),"",dms_E13_Projects_03) -> 3053 MAJOR PROJECTS - RACV CAPE SCHANK
B144: =IF(ISBLANK(dms_E13_Projects_04),"",dms_E13_Projects_04) -> 2130 MAINS ALTERATIONS - CHARGEABLE - CAPEX - CMA Plenty rd Mernda Rail Ext
B145: =IF(ISBLANK(dms_E13_Projects_05),"",dms_E13_Projects_05) -> 2130 MAINS ALTERATIONS - CHARGEABLE - CAPEX - V_CMA_CY19 Thompsons Rd
B146: =IF(ISBLANK(dms_E13_Projects_06),"",dms_E13_Projects_06) -> 2130 MAINS ALTERATIONS - CHARGEABLE - CAPEX - V_MA_CY19 O'Herns Rd Epping
B147: =IF(ISBLANK(dms_E13_Projects_07),"",dms_E13_Projects_07) -> 2130 MAINS ALTERATIONS - CHARGEABLE - CAPEX - V_CMA_CY20 NELA_CPB
B148: =IF(ISBLANK(dms_E13_Projects_08),"",dms_E13_Projects_08) -> 2130 MAINS ALTERATIONS - CHARGEABLE - CAPEX - V_MA_CY20_O'Herns Rd S2
B149: =IF(ISBLANK(dms_E13_Projects_09),"",dms_E13_Projects_09) -> 2130 MAINS ALTERATIONS - CHARGEABLE - CAPEX - V_CMA_CY20 Plenty Rd Stg2
B150: =IF(ISBLANK(dms_E13_Projects_10),"",dms_E13_Projects_10) -> 2130 MAINS ALTERATIONS - CHARGEABLE - CAPEX - V_CMA_CY20_NELP EW STG1
B151: =IF(ISBLANK(dms_E13_Projects_11),"",dms_E13_Projects_11) -> 2130 MAINS ALTERATIONS - CHARGEABLE - CAPEX - V_CMA_CY20 West Gate Tunnel
B152: =IF(ISBLANK(dms_E13_Projects_12),"",dms_E13_Projects_12) -> 2130 MAINS ALTERATIONS - CHARGEABLE - CAPEX - V_CMA_CY20 RWA Plenty Rd Stg 2
B153: =IF(ISBLANK(dms_E13_Projects_13),"",dms_E13_Projects_13) -> 2130 MAINS ALTERATIONS - CHARGEABLE - CAPEX - V_CMA_CY20 NELP EW STG2
B154: =IF(ISBLANK(dms_E13_Projects_14),"",dms_E13_Projects_14) -> 2130 MAINS ALTERATIONS - CHARGEABLE - CAPEX - V_CMA_CY20 RWA RMH Gratten St
B155: =IF(ISBLANK(dms_E13_Projects_15),"",dms_E13_Projects_15) -> 2130 MAINS ALTERATIONS - CHARGEABLE - CAPEX - V_CMA_CY21 O'Shea Monash Fwy
B156: =IF(ISBLANK(dms_E13_Projects_16),"",dms_E13_Projects_16) -> 2130 MAINS ALTERATIONS - CHARGEABLE - CAPEX - V_CMA_CY21 RWA LXRA Berwick
B157: =IF(ISBLANK(dms_E13_Projects_17),"",dms_E13_Projects_17) -> 2130 MAINS ALTERATION - CHARGEABLE - CAPEX <$500K
B158: =IF(ISBLANK(dms_E13_Projects_18),"",dms_E13_Projects_18) -> 2106 C P - CORROSION PROTECTION - CAPEX <$500K
B159: =IF(ISBLANK(dms_E13_Projects_19),"",dms_E13_Projects_19) -> 2106 C P - CORROSION PROTECTION - CAPEX - V_CP_CY20 TP Coating Repairs
B160: =IF(ISBLANK(dms_E13_Projects_20),"",dms_E13_Projects_20) -> 2131 MAINS ALTERATION - NON CHARGEABLE - CAPEX
B161: =IF(ISBLANK(dms_E13_Projects_21),"",dms_E13_Projects_21) -> 2139 NETWORK - REGULATOR STAY IN BUSINESS
B162: =IF(ISBLANK(dms_E13_Projects_22),"",dms_E13_Projects_22) -> 2142 NETWORK - REGULATOR CAPEX
B163: =IF(ISBLANK(dms_E13_Projects_23),"",dms_E13_Projects_23) -> 2152 NETWORK - STOPPLE EQUIPMENT
B164: =IF(ISBLANK(dms_E13_Projects_24),"",dms_E13_Projects_24) -> 2190 OTHER - NON RETIC CAPITAL
B165: =IF(ISBLANK(dms_E13_Projects_25),"",dms_E13_Projects_25) -> MAJOR PROJECTS - CAPEX <$500K | F165: 175229.723 | G165: 9733.214519
B166: =IF(ISBLANK(dms_E13_Projects_26),"",dms_E13_Projects_26) -> 3111 MAJOR PROJECTS - LOGIC INDUSTRY PARK WODONGA
B167: =IF(ISBLANK(dms_E13_Projects_27),"",dms_E13_Projects_27) -> 2140 WATER BATH OVERHAUL
B168: =IF(ISBLANK(dms_E13_Projects_28),"",dms_E13_Projects_28) -> 2107 PIPELINE PIGGING (NO MODIFICATIONS)
B169: =IF(ISBLANK(dms_E13_Projects_29),"",dms_E13_Projects_29) -> 2108 PIPELINE DCVG SURVEY
B170: =IF(ISBLANK(dms_E13_Projects_30),"",dms_E13_Projects_30) -> 2461 TRANSMISSION PIPELINE - ENHANCEMENTS
B171: =IF(ISBLANK(dms_E13_Projects_31),"",dms_E13_Projects_31) -> 3106 MAJOR PROJECTS - H07 CRANBOURNE HP AUGMENTATION - CITY GATE
B172: =IF(ISBLANK(dms_E13_Projects_32),"",dms_E13_Projects_32) -> 
B173: =IF(ISBLANK(dms_E13_Projects_33),"",dms_E13_Projects_33) -> 
B174: =IF(ISBLANK(dms_E13_Projects_34),"",dms_E13_Projects_34) -> 
B175: =IF(ISBLANK(dms_E13_Projects_35),"",dms_E13_Projects_35) -> 
B176: =IF(ISBLANK(dms_E13_Projects_36),"",dms_E13_Projects_36) -> 
B177: =IF(ISBLANK(dms_E13_Projects_37),"",dms_E13_Projects_37) -> 
B178: =IF(ISBLANK(dms_E13_Projects_38),"",dms_E13_Projects_38) -> 
B179: =IF(ISBLANK(dms_E13_Projects_39),"",dms_E13_Projects_39) -> 
B180: =IF(ISBLANK(dms_E13_Projects_40),"",dms_E13_Projects_40) -> 
B181: Aggregate of other projects with total expenditure of less than $500,000
B182: Total | C182: =SUM(C141:C181) -> 0 | D182: =SUM(D141:D181) -> 0 | E182: =SUM(E141:E181) -> 0 | F182: =SUM(F141:F181) -> 175229.723 | G182: =SUM(G141:G181) -> 9733.214519
B184: D. OTHER DIRECT EXPENDITURE
B185: =IF(ISBLANK(dms_E13_Projects_01),"",dms_E13_Projects_01) -> 3056 MAJOR PROJECTS - MELBOURNE METRO RAIL
B186: =IF(ISBLANK(dms_E13_Projects_02),"",dms_E13_Projects_02) -> 3006 MAJOR PROJECTS - PAKENHAM CITY GATE
B187: =IF(ISBLANK(dms_E13_Projects_03),"",dms_E13_Projects_03) -> 3053 MAJOR PROJECTS - RACV CAPE SCHANK
B188: =IF(ISBLANK(dms_E13_Projects_04),"",dms_E13_Projects_04) -> 2130 MAINS ALTERATIONS - CHARGEABLE - CAPEX - CMA Plenty rd Mernda Rail Ext
B189: =IF(ISBLANK(dms_E13_Projects_05),"",dms_E13_Projects_05) -> 2130 MAINS ALTERATIONS - CHARGEABLE - CAPEX - V_CMA_CY19 Thompsons Rd
B190: =IF(ISBLANK(dms_E13_Projects_06),"",dms_E13_Projects_06) -> 2130 MAINS ALTERATIONS - CHARGEABLE - CAPEX - V_MA_CY19 O'Herns Rd Epping
B191: =IF(ISBLANK(dms_E13_Projects_07),"",dms_E13_Projects_07) -> 2130 MAINS ALTERATIONS - CHARGEABLE - CAPEX - V_CMA_CY20 NELA_CPB
B192: =IF(ISBLANK(dms_E13_Projects_08),"",dms_E13_Projects_08) -> 2130 MAINS ALTERATIONS - CHARGEABLE - CAPEX - V_MA_CY20_O'Herns Rd S2
B193: =IF(ISBLANK(dms_E13_Projects_09),"",dms_E13_Projects_09) -> 2130 MAINS ALTERATIONS - CHARGEABLE - CAPEX - V_CMA_CY20 Plenty Rd Stg2
B194: =IF(ISBLANK(dms_E13_Projects_10),"",dms_E13_Projects_10) -> 2130 MAINS ALTERATIONS - CHARGEABLE - CAPEX - V_CMA_CY20_NELP EW STG1
B195: =IF(ISBLANK(dms_E13_Projects_11),"",dms_E13_Projects_11) -> 2130 MAINS ALTERATIONS - CHARGEABLE - CAPEX - V_CMA_CY20 West Gate Tunnel
B196: =IF(ISBLANK(dms_E13_Projects_12),"",dms_E13_Projects_12) -> 2130 MAINS ALTERATIONS - CHARGEABLE - CAPEX - V_CMA_CY20 RWA Plenty Rd Stg 2
B197: =IF(ISBLANK(dms_E13_Projects_13),"",dms_E13_Projects_13) -> 2130 MAINS ALTERATIONS - CHARGEABLE - CAPEX - V_CMA_CY20 NELP EW STG2
B198: =IF(ISBLANK(dms_E13_Projects_14),"",dms_E13_Projects_14) -> 2130 MAINS ALTERATIONS - CHARGEABLE - CAPEX - V_CMA_CY20 RWA RMH Gratten St
B199: =IF(ISBLANK(dms_E13_Projects_15),"",dms_E13_Projects_15) -> 2130 MAINS ALTERATIONS - CHARGEABLE - CAPEX - V_CMA_CY21 O'Shea Monash Fwy
B200: =IF(ISBLANK(dms_E13_Projects_16),"",dms_E13_Projects_16) -> 2130 MAINS ALTERATIONS - CHARGEABLE - CAPEX - V_CMA_CY21 RWA LXRA Berwick
B201: =IF(ISBLANK(dms_E13_Projects_17),"",dms_E13_Projects_17) -> 2130 MAINS ALTERATION - CHARGEABLE - CAPEX <$500K
B202: =IF(ISBLANK(dms_E13_Projects_18),"",dms_E13_Projects_18) -> 2106 C P - CORROSION PROTECTION - CAPEX <$500K
B203: =IF(ISBLANK(dms_E13_Projects_19),"",dms_E13_Projects_19) -> 2106 C P - CORROSION PROTECTION - CAPEX - V_CP_CY20 TP Coating Repairs
B204: =IF(ISBLANK(dms_E13_Projects_20),"",dms_E13_Projects_20) -> 2131 MAINS ALTERATION - NON CHARGEABLE - CAPEX
B205: =IF(ISBLANK(dms_E13_Projects_21),"",dms_E13_Projects_21) -> 2139 NETWORK - REGULATOR STAY IN BUSINESS
B206: =IF(ISBLANK(dms_E13_Projects_22),"",dms_E13_Projects_22) -> 2142 NETWORK - REGULATOR CAPEX
B207: =IF(ISBLANK(dms_E13_Projects_23),"",dms_E13_Projects_23) -> 2152 NETWORK - STOPPLE EQUIPMENT
B208: =IF(ISBLANK(dms_E13_Projects_24),"",dms_E13_Projects_24) -> 2190 OTHER - NON RETIC CAPITAL
B209: =IF(ISBLANK(dms_E13_Projects_25),"",dms_E13_Projects_25) -> MAJOR PROJECTS - CAPEX <$500K
B210: =IF(ISBLANK(dms_E13_Projects_26),"",dms_E13_Projects_26) -> 3111 MAJOR PROJECTS - LOGIC INDUSTRY PARK WODONGA
B211: =IF(ISBLANK(dms_E13_Projects_27),"",dms_E13_Projects_27) -> 2140 WATER BATH OVERHAUL
B212: =IF(ISBLANK(dms_E13_Projects_28),"",dms_E13_Projects_28) -> 2107 PIPELINE PIGGING (NO MODIFICATIONS)
B213: =IF(ISBLANK(dms_E13_Projects_29),"",dms_E13_Projects_29) -> 2108 PIPELINE DCVG SURVEY
B214: =IF(ISBLANK(dms_E13_Projects_30),"",dms_E13_Projects_30) -> 2461 TRANSMISSION PIPELINE - ENHANCEMENTS
... 98 more rows

Sheet Additional disclosures
